Workbook

Sheet Startpagina
B1: versie 1.26 | C1: konijn toegevoegd | H1: laatste updates
C2: intervaldieren aangepast | H2: exotische tekens weg 1.25
C3: layout rapport aangepast, nog niet merge transport en individ | H3: 30 regels voor dierenartskosten 1.26
C4: merge transport
B6: Facturatie dierenasielen | C6: U kan per factuur slechts één dossier indienen met behulp van deze Excel bijlage.
B8: Naam dierenasiel | D8: =IF(C8="","verplicht veld","") -> verplicht veld | F8: =IF(LEFT(HKNummer,4)="HK30",0,1) -> 1
B9: Erkenningsnummer (HK30999999) | D9: =IF(C9="","verplicht veld","") -> verplicht veld | E9: =IF(G9>0,"verkeerd formaat","") -> verkeerd formaat | F9: =IF(LEN(HKNummer)<>10,1,0) -> 1 | G9: =F8+F9+J9 -> 3 | H9: =RIGHT(HKNummer,8) ->  | I9: =H9+1 ->  | J9: =IF(ISNUMBER(I9),0,1) -> 1
B10: Ondernemingsnummer (0999999999) | D10: =IF(C10="","verplicht veld","") -> verplicht veld | E10: =IF(G10>0,"verkeerd formaat","") -> verkeerd formaat | F10: =IF(LEN(KBONummer)<>10,1,0) -> 1 | G10: =F10+F11+J10 -> 3 | H10: =RIGHT(KBONummer,9) ->  | I10: =H10+1 ->  | J10: =IF(ISNUMBER(I10),0,1) -> 1
F11: =IF(LEFT(KBONummer,1)="0",0,1) -> 1
B12: Dossiernummer | D12: =IF(C12="","verplicht veld",IF(J13,"Formaat moet zijn: G-XX-XXXX","")) -> verplicht veld
B13: Datum IBN (dd/mm/jjjj) | D13: =IF(C13="","verplicht veld","") -> verplicht veld | E13: =IF(NOW()-C13>731,"maximaal 2 jaar terug in de tijd","") -> maximaal 2 jaar terug in de tijd | F13: =IF(C13<Lijsten!B9,Lijsten!D9,"") -> Tab Dierenarts pas invullen vanaf datum IBN 01/06/2023 | H13: =IF(C13<Lijsten!B9,1) -> 1 | J13: =OR(LEFT(C12,1) <> "G",LEN(C12) <> 9,MID(C12,2,1) <> "-",MID(C12,5,1) <> "-" ) -> TRUE
B14: Datum bestemmingsbeslissing (dd/mm/jjjj) (*) | D14: =IF(C14<C13,"datum bestemmingsbeslissing kan niet vroeger zijn dan datum IBN","") -> 
B15: Factuurdatum (dd/mm/jjjj) | D15: =IF(C15="","verplicht veld","") -> verplicht veld | F15: =IF(C15<Lijsten!B10,Lijsten!D10,"") -> Factuurdatum vanaf 01/01/2022 | H15: 1
B16: Dit bestand is de bijlage bij factuur met nummer
B17: Bedrag op te nemen op de factuur | C17: =SUM(C20:C24) -> 0
B19: Uitsplitsing
B20: =Transport!B2 -> Transport | C20: =Transport!H2 -> 0
B21: ='Individuele dieren'!B2 -> Individuele dieren | C21: ='Individuele dieren'!I2 -> 0
B22: =Interval!B2 -> Dieren per Interval | C22: =Interval!K2 -> 0
B23: =Dierenarts!B2 -> Diergeneeskundig verslag | C23: =Dierenarts!P2 -> 0 | D23: =IF(H13=1,"Niet van toepassing","") -> Niet van toepassing
B24: =Dierenarts!B9 -> Dierenartskosten | C24: =Dierenarts!P9 -> 0 | D24: =IF(H13=1,"Niet van toepassing","") -> Niet van toepassing
B27: * of datum ophaling door de eigenaar of, bij niet-ophaling, de uiterste datum voor ophaling zoals in de bestemmingsbeslissing vastgelegd
B29: Het dierenasiel is verantwoordelijk voor de juistheid van alle aan de afdeling overgemaakte gegevens.

Sheet Transport
B1: Datum IBN | C1: =Startpagina!C13 -> 00:00:00 | H1: TOTAAL
B2: Transport | H2: =SUM(G:G) -> 0
B3: Vervoermiddel | C3: Datum rit | D3: Aantal km (Heen en terug) | E3: Forfait km HT | F3: Km vergoeding boven forfait | G3: Totaal | H3: Commentaar
C4: =IF(ISBLANK(B4),"",Startpagina!$C$13) ->  | E4: =IF(B4<>"",VLOOKUP(B4,Lijsten!$A$3:$C$4,2,FALSE),"") ->  | F4: =IF(B4<>"",VLOOKUP(B4,Lijsten!$A$3:$C$4,3,FALSE),"") ->  | G4: =IF(D4<Afstanddrempel,E4,E4+(D4-Afstanddrempel)*F4) -> 
C5: =IF(ISBLANK(B5),"",Startpagina!$C$13) ->  | E5: =IF(B5<>"",VLOOKUP(B5,Lijsten!$A$3:$C$4,2,FALSE),"") ->  | F5: =IF(B5<>"",VLOOKUP(B5,Lijsten!$A$3:$C$4,3,FALSE),"") ->  | G5: =IF(D5<Afstanddrempel,E5,E5+(D5-Afstanddrempel)*F5) -> 
C6: =IF(ISBLANK(B6),"",Startpagina!$C$13) ->  | E6: =IF(B6<>"",VLOOKUP(B6,Lijsten!$A$3:$C$4,2,FALSE),"") ->  | F6: =IF(B6<>"",VLOOKUP(B6,Lijsten!$A$3:$C$4,3,FALSE),"") -> 
C7: =IF(ISBLANK(B7),"",Startpagina!$C$13) ->  | E7: =IF(B7<>"",VLOOKUP(B7,Lijsten!$A$3:$C$4,2,FALSE),"") ->  | F7: =IF(B7<>"",VLOOKUP(B7,Lijsten!$A$3:$C$4,3,FALSE),"") -> 
C8: =IF(ISBLANK(B8),"",Startpagina!$C$13) ->  | E8: =IF(B8<>"",VLOOKUP(B8,Lijsten!$A$3:$C$4,2,FALSE),"") ->  | F8: =IF(B8<>"",VLOOKUP(B8,Lijsten!$A$3:$C$4,3,FALSE),"") -> 
C9: =IF(ISBLANK(B9),"",Startpagina!$C$13) ->  | E9: =IF(B9<>"",VLOOKUP(B9,Lijsten!$A$3:$C$4,2,FALSE),"") ->  | F9: =IF(B9<>"",VLOOKUP(B9,Lijsten!$A$3:$C$4,3,FALSE),"") -> 
C10: =IF(ISBLANK(B10),"",Startpagina!$C$13) ->  | E10: =IF(B10<>"",VLOOKUP(B10,Lijsten!$A$3:$C$4,2,FALSE),"") ->  | F10: =IF(B10<>"",VLOOKUP(B10,Lijsten!$A$3:$C$4,3,FALSE),"") -> 
C11: =IF(ISBLANK(B11),"",Startpagina!$C$13) ->  | E11: =IF(B11<>"",VLOOKUP(B11,Lijsten!$A$3:$C$4,2,FALSE),"") ->  | F11: =IF(B11<>"",VLOOKUP(B11,Lijsten!$A$3:$C$4,3,FALSE),"") -> 
C12: =IF(ISBLANK(B12),"",Startpagina!$C$13) ->  | E12: =IF(B12<>"",VLOOKUP(B12,Lijsten!$A$3:$C$4,2,FALSE),"") ->  | F12: =IF(B12<>"",VLOOKUP(B12,Lijsten!$A$3:$C$4,3,FALSE),"") -> 
C13: =IF(ISBLANK(B13),"",Startpagina!$C$13) ->  | E13: =IF(B13<>"",VLOOKUP(B13,Lijsten!$A$3:$C$4,2,FALSE),"") ->  | F13: =IF(B13<>"",VLOOKUP(B13,Lijsten!$A$3:$C$4,3,FALSE),"") -> 
C14: =IF(ISBLANK(B14),"",Startpagina!$C$13) ->  | E14: =IF(B14<>"",VLOOKUP(B14,Lijsten!$A$3:$C$4,2,FALSE),"") ->  | F14: =IF(B14<>"",VLOOKUP(B14,Lijsten!$A$3:$C$4,3,FALSE),"") -> 
C15: =IF(ISBLANK(B15),"",Startpagina!$C$13) ->  | E15: =IF(B15<>"",VLOOKUP(B15,Lijsten!$A$3:$C$4,2,FALSE),"") ->  | F15: =IF(B15<>"",VLOOKUP(B15,Lijsten!$A$3:$C$4,3,FALSE),"") -> 
C16: =IF(ISBLANK(B16),"",Startpagina!$C$13) ->  | E16: =IF(B16<>"",VLOOKUP(B16,Lijsten!$A$3:$C$4,2,FALSE),"") ->  | F16: =IF(B16<>"",VLOOKUP(B16,Lijsten!$A$3:$C$4,3,FALSE),"") -> 
C17: =IF(ISBLANK(B17),"",Startpagina!$C$13) ->  | E17: =IF(B17<>"",VLOOKUP(B17,Lijsten!$A$3:$C$4,2,FALSE),"") ->  | F17: =IF(B17<>"",VLOOKUP(B17,Lijsten!$A$3:$C$4,3,FALSE),"") -> 
C18: =IF(ISBLANK(B18),"",Startpagina!$C$13) ->  | E18: =IF(B18<>"",VLOOKUP(B18,Lijsten!$A$3:$C$4,2,FALSE),"") ->  | F18: =IF(B18<>"",VLOOKUP(B18,Lijsten!$A$3:$C$4,3,FALSE),"") ->  | G18: =IF(D18<Afstanddrempel,E18,E18+(D18-Afstanddrempel)*F18) -> 
E1026: =IF(C1026<>"",VLOOKUP(C1026,Lijsten!$A$3:$C$4,2,FALSE),"") ->  | F1026: =IF(C1026<>"",VLOOKUP(C1026,Lijsten!$A$3:$C$4,3,FALSE),"") ->  | G1026: =IF(D1026<Afstanddrempel,E1026,E1026+(D1026-Afstanddrempel)*F1026) -> 

Sheet Individuele dieren
B1: Datum IBN | C1: =Startpagina!C13 -> 00:00:00 | I1: TOTAAL
B2: Individuele dieren | I2: =SUM(H:H) -> 0
B3: Diersoort | C3: Tarief per dier | D3: Aantal | E3: Datum in | F3: Datum uit | G3: Aantal dagen | H3: Totaal | I3: Commentaar
C4: =IF(B4<>"",VLOOKUP(B4,Lijsten!$M$3:$N$13,2,FALSE),"") ->  | E4: =IF(ISBLANK(B4),"",Startpagina!$C$13) ->  | F4: =IF(ISBLANK(B4),"",Startpagina!$C$14) ->  | G4: =IF(OR(E4="",F4=""),"",F4-E4+1) ->  | H4: =IF(OR(F4="",G4=""),"",IF(C4="","",G4*D4*C4)) -> 
C5: =IF(B5<>"",VLOOKUP(B5,Lijsten!$M$3:$N$13,2,FALSE),"") ->  | E5: =IF(ISBLANK(B5),"",Startpagina!$C$13) ->  | F5: =IF(ISBLANK(B5),"",Startpagina!$C$14) ->  | G5: =IF(OR(E5="",F5=""),"",F5-E5+1) ->  | H5: =IF(OR(F5="",G5=""),"",IF(C5="","",G5*D5*C5)) -> 
C6: =IF(B6<>"",VLOOKUP(B6,Lijsten!$M$3:$N$13,2,FALSE),"") ->  | E6: =IF(ISBLANK(B6),"",Startpagina!$C$13) ->  | F6: =IF(ISBLANK(B6),"",Startpagina!$C$14) -> 
C7: =IF(B7<>"",VLOOKUP(B7,Lijsten!$M$3:$N$13,2,FALSE),"") ->  | E7: =IF(ISBLANK(B7),"",Startpagina!$C$13) ->  | F7: =IF(ISBLANK(B7),"",Startpagina!$C$14) -> 
C8: =IF(B8<>"",VLOOKUP(B8,Lijsten!$M$3:$N$13,2,FALSE),"") ->  | E8: =IF(ISBLANK(B8),"",Startpagina!$C$13) ->  | F8: =IF(ISBLANK(B8),"",Startpagina!$C$14) -> 
C9: =IF(B9<>"",VLOOKUP(B9,Lijsten!$M$3:$N$13,2,FALSE),"") ->  | E9: =IF(ISBLANK(B9),"",Startpagina!$C$13) ->  | F9: =IF(ISBLANK(B9),"",Startpagina!$C$14) -> 
C10: =IF(B10<>"",VLOOKUP(B10,Lijsten!$M$3:$N$13,2,FALSE),"") ->  | E10: =IF(ISBLANK(B10),"",Startpagina!$C$13) ->  | F10: =IF(ISBLANK(B10),"",Startpagina!$C$14) -> 
C11: =IF(B11<>"",VLOOKUP(B11,Lijsten!$M$3:$N$13,2,FALSE),"") ->  | E11: =IF(ISBLANK(B11),"",Startpagina!$C$13) ->  | F11: =IF(ISBLANK(B11),"",Startpagina!$C$14) -> 
C12: =IF(B12<>"",VLOOKUP(B12,Lijsten!$M$3:$N$13,2,FALSE),"") ->  | E12: =IF(ISBLANK(B12),"",Startpagina!$C$13) ->  | F12: =IF(ISBLANK(B12),"",Startpagina!$C$14) -> 
C13: =IF(B13<>"",VLOOKUP(B13,Lijsten!$M$3:$N$13,2,FALSE),"") ->  | E13: =IF(ISBLANK(B13),"",Startpagina!$C$13) ->  | F13: =IF(ISBLANK(B13),"",Startpagina!$C$14) -> 
C14: =IF(B14<>"",VLOOKUP(B14,Lijsten!$M$3:$N$13,2,FALSE),"") ->  | E14: =IF(ISBLANK(B14),"",Startpagina!$C$13) ->  | F14: =IF(ISBLANK(B14),"",Startpagina!$C$14) -> 
C15: =IF(B15<>"",VLOOKUP(B15,Lijsten!$M$3:$N$13,2,FALSE),"") ->  | E15: =IF(ISBLANK(B15),"",Startpagina!$C$13) ->  | F15: =IF(ISBLANK(B15),"",Startpagina!$C$14) -> 
C16: =IF(B16<>"",VLOOKUP(B16,Lijsten!$M$3:$N$13,2,FALSE),"") ->  | E16: =IF(ISBLANK(B16),"",Startpagina!$C$13) ->  | F16: =IF(ISBLANK(B16),"",Startpagina!$C$14) -> 
C17: =IF(B17<>"",VLOOKUP(B17,Lijsten!$M$3:$N$13,2,FALSE),"") ->  | E17: =IF(ISBLANK(B17),"",Startpagina!$C$13) ->  | F17: =IF(ISBLANK(B17),"",Startpagina!$C$14) -> 
C18: =IF(B18<>"",VLOOKUP(B18,Lijsten!$M$3:$N$13,2,FALSE),"") ->  | E18: =IF(ISBLANK(B18),"",Startpagina!$C$13) ->  | F18: =IF(ISBLANK(B18),"",Startpagina!$C$14) -> 
C1587: =IF(B1587<>"",VLOOKUP(B1587,Lijsten!$M$3:$N$12,2,FALSE),"") ->  | G1587: =IF(OR(E1587="",F1587=""),"",F1587-E1587+1) ->  | H1587: =IF(OR(F1587="",G1587=""),"",IF(C1587="","",G1587*D1587*C1587)) -> 
C1588: =IF(B1588<>"",VLOOKUP(B1588,Lijsten!$M$3:$N$12,2,FALSE),"") -> 
C1589: =IF(B1589<>"",VLOOKUP(B1589,Lijsten!$M$3:$N$12,2,FALSE),"") -> 
C1590: =IF(B1590<>"",VLOOKUP(B1590,Lijsten!$M$3:$N$12,2,FALSE),"") -> 
C1591: =IF(B1591<>"",VLOOKUP(B1591,Lijsten!$M$3:$N$12,2,FALSE),"") -> 
C1592: =IF(B1592<>"",VLOOKUP(B1592,Lijsten!$M$3:$N$12,2,FALSE),"") -> 
C1593: =IF(B1593<>"",VLOOKUP(B1593,Lijsten!$M$3:$N$12,2,FALSE),"") -> 
C1594: =IF(B1594<>"",VLOOKUP(B1594,Lijsten!$M$3:$N$12,2,FALSE),"") -> 
C1595: =IF(B1595<>"",VLOOKUP(B1595,Lijsten!$M$3:$N$12,2,FALSE),"") -> 
C1596: =IF(B1596<>"",VLOOKUP(B1596,Lijsten!$M$3:$N$12,2,FALSE),"") -> 
C1597: =IF(B1597<>"",VLOOKUP(B1597,Lijsten!$M$3:$N$12,2,FALSE),"") -> 
C1598: =IF(B1598<>"",VLOOKUP(B1598,Lijsten!$M$3:$N$12,2,FALSE),"") -> 
C1599: =IF(B1599<>"",VLOOKUP(B1599,Lijsten!$M$3:$N$12,2,FALSE),"") -> 
C1600: =IF(B1600<>"",VLOOKUP(B1600,Lijsten!$M$3:$N$12,2,FALSE),"") -> 
C1601: =IF(B1601<>"",VLOOKUP(B1601,Lijsten!$M$3:$N$12,2,FALSE),"") -> 
C1602: =IF(B1602<>"",VLOOKUP(B1602,Lijsten!$M$3:$N$12,2,FALSE),"") -> 
C1603: =IF(B1603<>"",VLOOKUP(B1603,Lijsten!$M$3:$N$12,2,FALSE),"") -> 
C1604: =IF(B1604<>"",VLOOKUP(B1604,Lijsten!$M$3:$N$12,2,FALSE),"") -> 
C1605: =IF(B1605<>"",VLOOKUP(B1605,Lijsten!$M$3:$N$12,2,FALSE),"") -> 
C1606: =IF(B1606<>"",VLOOKUP(B1606,Lijsten!$M$3:$N$12,2,FALSE),"") -> 
C1607: =IF(B1607<>"",VLOOKUP(B1607,Lijsten!$M$3:$N$12,2,FALSE),"") -> 
C1608: =IF(B1608<>"",VLOOKUP(B1608,Lijsten!$M$3:$N$12,2,FALSE),"") -> 
C1609: =IF(B1609<>"",VLOOKUP(B1609,Lijsten!$M$3:$N$12,2,FALSE),"") ->  | G1609: =IF(OR(E1609="",F1609=""),"",F1609-E1609+1) ->  | H1609: =IF(OR(F1609="",G1609=""),"",IF(C1609="","",G1609*D1609*C1609)) -> 
C1610: =IF(B1610<>"",VLOOKUP(B1610,Lijsten!$M$3:$N$12,2,FALSE),"") -> 
C1611: =IF(B1611<>"",VLOOKUP(B1611,Lijsten!$M$3:$N$12,2,FALSE),"") -> 
C1612: =IF(B1612<>"",VLOOKUP(B1612,Lijsten!$M$3:$N$12,2,FALSE),"") -> 
C1613: =IF(B1613<>"",VLOOKUP(B1613,Lijsten!$M$3:$N$12,2,FALSE),"") -> 
C1614: =IF(B1614<>"",VLOOKUP(B1614,Lijsten!$M$3:$N$12,2,FALSE),"") -> 
C1615: =IF(B1615<>"",VLOOKUP(B1615,Lijsten!$M$3:$N$12,2,FALSE),"") -> 
C1616: =IF(B1616<>"",VLOOKUP(B1616,Lijsten!$M$3:$N$12,2,FALSE),"") -> 
C1617: =IF(B1617<>"",VLOOKUP(B1617,Lijsten!$M$3:$N$12,2,FALSE),"") -> 
C1618: =IF(B1618<>"",VLOOKUP(B1618,Lijsten!$M$3:$N$12,2,FALSE),"") -> 
C1619: =IF(B1619<>"",VLOOKUP(B1619,Lijsten!$M$3:$N$12,2,FALSE),"") -> 
C1620: =IF(B1620<>"",VLOOKUP(B1620,Lijsten!$M$3:$N$12,2,FALSE),"") -> 
C1621: =IF(B1621<>"",VLOOKUP(B1621,Lijsten!$M$3:$N$12,2,FALSE),"") -> 
C1622: =IF(B1622<>"",VLOOKUP(B1622,Lijsten!$M$3:$N$12,2,FALSE),"") -> 
C1623: =IF(B1623<>"",VLOOKUP(B1623,Lijsten!$M$3:$N$12,2,FALSE),"") -> 
C1624: =IF(B1624<>"",VLOOKUP(B1624,Lijsten!$M$3:$N$12,2,FALSE),"") -> 
C1625: =IF(B1625<>"",VLOOKUP(B1625,Lijsten!$M$3:$N$12,2,FALSE),"") -> 
C1626: =IF(B1626<>"",VLOOKUP(B1626,Lijsten!$M$3:$N$12,2,FALSE),"") -> 
C1627: =IF(B1627<>"",VLOOKUP(B1627,Lijsten!$M$3:$N$12,2,FALSE),"") -> 
C1628: =IF(B1628<>"",VLOOKUP(B1628,Lijsten!$M$3:$N$12,2,FALSE),"") -> 
C1629: =IF(B1629<>"",VLOOKUP(B1629,Lijsten!$M$3:$N$12,2,FALSE),"") -> 
C1630: =IF(B1630<>"",VLOOKUP(B1630,Lijsten!$M$3:$N$12,2,FALSE),"") -> 
C1631: =IF(B1631<>"",VLOOKUP(B1631,Lijsten!$M$3:$N$12,2,FALSE),"") -> 
C1632: =IF(B1632<>"",VLOOKUP(B1632,Lijsten!$M$3:$N$12,2,FALSE),"") -> 
C1633: =IF(B1633<>"",VLOOKUP(B1633,Lijsten!$M$3:$N$12,2,FALSE),"") -> 
C1634: =IF(B1634<>"",VLOOKUP(B1634,Lijsten!$M$3:$N$12,2,FALSE),"") -> 

Sheet Interval
B1: Datum IBN | C1: =Startpagina!C13 -> 00:00:00 | K1: TOTAAL
B2: Dieren per Interval | K2: =SUM(J:J) -> 0
B3: In/Uitheems | C3: Diersoort | D3: Aantal | F3: Bedrag per interval | G3: Datum in | H3: Datum uit | I3: Aantal dagen | J3: Totaal | K3: Commentaar
E4: =IF(LEN(D4)=0,"",B4&C4&TEXT(D4,"0000")) ->  | F4: =IF(ISNA(VLOOKUP(B4&C4,Prices!$I$2:$I$546,8,FALSE)),"",VLOOKUP(E4,Prices!$B$2:$C$546,2,TRUE)) ->  | G4: =IF(ISBLANK(B4),"",Startpagina!$C$13) ->  | H4: =IF(ISBLANK(B4),"",Startpagina!$C$14) ->  | I4: =IF(OR(G4="",H4=""),"",H4-G4+1) ->  | J4: =IF(ISNUMBER(F4*I4),F4*I4,"") -> 
E5: =IF(LEN(D5)=0,"",B5&C5&TEXT(D5,"0000")) ->  | F5: =IF(ISNA(VLOOKUP(B5&C5,Prices!$I$2:$I$546,8,FALSE)),"",VLOOKUP(E5,Prices!$B$2:$C$546,2,TRUE)) ->  | G5: =IF(ISBLANK(B5),"",Startpagina!$C$13) ->  | H5: =IF(ISBLANK(B5),"",Startpagina!$C$14) ->  | I5: =IF(OR(G5="",H5=""),"",H5-G5+1) ->  | J5: =IF(ISNUMBER(F5*I5),F5*I5,"") -> 
F6: =IF(ISNA(VLOOKUP(B6&C6,Prices!$I$2:$I$546,8,FALSE)),"",VLOOKUP(E6,Prices!$B$2:$C$546,2,TRUE)) ->  | G6: =IF(ISBLANK(B6),"",Startpagina!$C$13) ->  | H6: =IF(ISBLANK(B6),"",Startpagina!$C$14) -> 
F7: =IF(ISNA(VLOOKUP(B7&C7,Prices!$I$2:$I$546,8,FALSE)),"",VLOOKUP(E7,Prices!$B$2:$C$546,2,TRUE)) ->  | G7: =IF(ISBLANK(B7),"",Startpagina!$C$13) ->  | H7: =IF(ISBLANK(B7),"",Startpagina!$C$14) -> 
F8: =IF(ISNA(VLOOKUP(B8&C8,Prices!$I$2:$I$546,8,FALSE)),"",VLOOKUP(E8,Prices!$B$2:$C$546,2,TRUE)) ->  | G8: =IF(ISBLANK(B8),"",Startpagina!$C$13) ->  | H8: =IF(ISBLANK(B8),"",Startpagina!$C$14) -> 
F9: =IF(ISNA(VLOOKUP(B9&C9,Prices!$I$2:$I$546,8,FALSE)),"",VLOOKUP(E9,Prices!$B$2:$C$546,2,TRUE)) ->  | G9: =IF(ISBLANK(B9),"",Startpagina!$C$13) ->  | H9: =IF(ISBLANK(B9),"",Startpagina!$C$14) -> 
F10: =IF(ISNA(VLOOKUP(B10&C10,Prices!$I$2:$I$546,8,FALSE)),"",VLOOKUP(E10,Prices!$B$2:$C$546,2,TRUE)) ->  | G10: =IF(ISBLANK(B10),"",Startpagina!$C$13) ->  | H10: =IF(ISBLANK(B10),"",Startpagina!$C$14) -> 
F11: =IF(ISNA(VLOOKUP(B11&C11,Prices!$I$2:$I$546,8,FALSE)),"",VLOOKUP(E11,Prices!$B$2:$C$546,2,TRUE)) ->  | G11: =IF(ISBLANK(B11),"",Startpagina!$C$13) ->  | H11: =IF(ISBLANK(B11),"",Startpagina!$C$14) -> 
F12: =IF(ISNA(VLOOKUP(B12&C12,Prices!$I$2:$I$546,8,FALSE)),"",VLOOKUP(E12,Prices!$B$2:$C$546,2,TRUE)) ->  | G12: =IF(ISBLANK(B12),"",Startpagina!$C$13) ->  | H12: =IF(ISBLANK(B12),"",Startpagina!$C$14) -> 
F13: =IF(ISNA(VLOOKUP(B13&C13,Prices!$I$2:$I$546,8,FALSE)),"",VLOOKUP(E13,Prices!$B$2:$C$546,2,TRUE)) ->  | G13: =IF(ISBLANK(B13),"",Startpagina!$C$13) ->  | H13: =IF(ISBLANK(B13),"",Startpagina!$C$14) -> 
F14: =IF(ISNA(VLOOKUP(B14&C14,Prices!$I$2:$I$546,8,FALSE)),"",VLOOKUP(E14,Prices!$B$2:$C$546,2,TRUE)) ->  | G14: =IF(ISBLANK(B14),"",Startpagina!$C$13) ->  | H14: =IF(ISBLANK(B14),"",Startpagina!$C$14) -> 
F15: =IF(ISNA(VLOOKUP(B15&C15,Prices!$I$2:$I$546,8,FALSE)),"",VLOOKUP(E15,Prices!$B$2:$C$546,2,TRUE)) ->  | G15: =IF(ISBLANK(B15),"",Startpagina!$C$13) ->  | H15: =IF(ISBLANK(B15),"",Startpagina!$C$14) -> 
F16: =IF(ISNA(VLOOKUP(B16&C16,Prices!$I$2:$I$546,8,FALSE)),"",VLOOKUP(E16,Prices!$B$2:$C$546,2,TRUE)) ->  | G16: =IF(ISBLANK(B16),"",Startpagina!$C$13) ->  | H16: =IF(ISBLANK(B16),"",Startpagina!$C$14) -> 
F17: =IF(ISNA(VLOOKUP(B17&C17,Prices!$I$2:$I$546,8,FALSE)),"",VLOOKUP(E17,Prices!$B$2:$C$546,2,TRUE)) ->  | G17: =IF(ISBLANK(B17),"",Startpagina!$C$13) ->  | H17: =IF(ISBLANK(B17),"",Startpagina!$C$14) -> 
F18: =IF(ISNA(VLOOKUP(B18&C18,Prices!$I$2:$I$546,8,FALSE)),"",VLOOKUP(E18,Prices!$B$2:$C$546,2,TRUE)) ->  | G18: =IF(ISBLANK(B18),"",Startpagina!$C$13) ->  | H18: =IF(ISBLANK(B18),"",Startpagina!$C$14) -> 
E1058: =IF(LEN(D1058)=0,"",C1058&TEXT(D1058,"0000")) ->  | F1058: =IF(ISNA(VLOOKUP(E1058,Prices!$B$2:$C$465,2,TRUE)),"",VLOOKUP(E1058,Prices!$B$2:$C$465,2,TRUE)) ->  | I1058: =IF(OR(G1058="",H1058=""),"",H1058-G1058+1) ->  | J1058: =IF(ISNUMBER(F1058*I1058),F1058*I1058,"") -> 
F1059: =IF(ISNA(VLOOKUP(E1059,Prices!$B$2:$C$465,2,TRUE)),"",VLOOKUP(E1059,Prices!$B$2:$C$465,2,TRUE)) -> 
F1060: =IF(ISNA(VLOOKUP(E1060,Prices!$B$2:$C$465,2,TRUE)),"",VLOOKUP(E1060,Prices!$B$2:$C$465,2,TRUE)) -> 
F1061: =IF(ISNA(VLOOKUP(E1061,Prices!$B$2:$C$465,2,TRUE)),"",VLOOKUP(E1061,Prices!$B$2:$C$465,2,TRUE)) -> 
F1062: =IF(ISNA(VLOOKUP(E1062,Prices!$B$2:$C$465,2,TRUE)),"",VLOOKUP(E1062,Prices!$B$2:$C$465,2,TRUE)) -> 
F1063: =IF(ISNA(VLOOKUP(E1063,Prices!$B$2:$C$465,2,TRUE)),"",VLOOKUP(E1063,Prices!$B$2:$C$465,2,TRUE)) -> 
F1064: =IF(ISNA(VLOOKUP(E1064,Prices!$B$2:$C$465,2,TRUE)),"",VLOOKUP(E1064,Prices!$B$2:$C$465,2,TRUE)) -> 
F1065: =IF(ISNA(VLOOKUP(E1065,Prices!$B$2:$C$465,2,TRUE)),"",VLOOKUP(E1065,Prices!$B$2:$C$465,2,TRUE)) -> 
F1066: =IF(ISNA(VLOOKUP(E1066,Prices!$B$2:$C$465,2,TRUE)),"",VLOOKUP(E1066,Prices!$B$2:$C$465,2,TRUE)) -> 
F1067: =IF(ISNA(VLOOKUP(E1067,Prices!$B$2:$C$465,2,TRUE)),"",VLOOKUP(E1067,Prices!$B$2:$C$465,2,TRUE)) -> 
F1068: =IF(ISNA(VLOOKUP(E1068,Prices!$B$2:$C$465,2,TRUE)),"",VLOOKUP(E1068,Prices!$B$2:$C$465,2,TRUE)) -> 
F1069: =IF(ISNA(VLOOKUP(E1069,Prices!$B$2:$C$465,2,TRUE)),"",VLOOKUP(E1069,Prices!$B$2:$C$465,2,TRUE)) -> 
F1070: =IF(ISNA(VLOOKUP(E1070,Prices!$B$2:$C$465,2,TRUE)),"",VLOOKUP(E1070,Prices!$B$2:$C$465,2,TRUE)) -> 
F1071: =IF(ISNA(VLOOKUP(E1071,Prices!$B$2:$C$465,2,TRUE)),"",VLOOKUP(E1071,Prices!$B$2:$C$465,2,TRUE)) -> 
F1072: =IF(ISNA(VLOOKUP(E1072,Prices!$B$2:$C$465,2,TRUE)),"",VLOOKUP(E1072,Prices!$B$2:$C$465,2,TRUE)) -> 
F1073: =IF(ISNA(VLOOKUP(E1073,Prices!$B$2:$C$465,2,TRUE)),"",VLOOKUP(E1073,Prices!$B$2:$C$465,2,TRUE)) -> 
F1074: =IF(ISNA(VLOOKUP(E1074,Prices!$B$2:$C$465,2,TRUE)),"",VLOOKUP(E1074,Prices!$B$2:$C$465,2,TRUE)) -> 
F1075: =IF(ISNA(VLOOKUP(E1075,Prices!$B$2:$C$465,2,TRUE)),"",VLOOKUP(E1075,Prices!$B$2:$C$465,2,TRUE)) -> 
F1076: =IF(ISNA(VLOOKUP(E1076,Prices!$B$2:$C$465,2,TRUE)),"",VLOOKUP(E1076,Prices!$B$2:$C$465,2,TRUE)) -> 
F1077: =IF(ISNA(VLOOKUP(E1077,Prices!$B$2:$C$465,2,TRUE)),"",VLOOKUP(E1077,Prices!$B$2:$C$465,2,TRUE)) -> 
F1078: =IF(ISNA(VLOOKUP(E1078,Prices!$B$2:$C$465,2,TRUE)),"",VLOOKUP(E1078,Prices!$B$2:$C$465,2,TRUE)) -> 
F1079: =IF(ISNA(VLOOKUP(E1079,Prices!$B$2:$C$465,2,TRUE)),"",VLOOKUP(E1079,Prices!$B$2:$C$465,2,TRUE)) -> 
F1080: =IF(ISNA(VLOOKUP(E1080,Prices!$B$2:$C$465,2,TRUE)),"",VLOOKUP(E1080,Prices!$B$2:$C$465,2,TRUE)) -> 
F1081: =IF(ISNA(VLOOKUP(E1081,Prices!$B$2:$C$465,2,TRUE)),"",VLOOKUP(E1081,Prices!$B$2:$C$465,2,TRUE)) -> 
F1082: =IF(ISNA(VLOOKUP(E1082,Prices!$B$2:$C$465,2,TRUE)),"",VLOOKUP(E1082,Prices!$B$2:$C$465,2,TRUE)) -> 
F1083: =IF(ISNA(VLOOKUP(E1083,Prices!$B$2:$C$465,2,TRUE)),"",VLOOKUP(E1083,Prices!$B$2:$C$465,2,TRUE)) -> 
F1084: =IF(ISNA(VLOOKUP(E1084,Prices!$B$2:$C$465,2,TRUE)),"",VLOOKUP(E1084,Prices!$B$2:$C$465,2,TRUE)) -> 
F1085: =IF(ISNA(VLOOKUP(E1085,Prices!$B$2:$C$465,2,TRUE)),"",VLOOKUP(E1085,Prices!$B$2:$C$465,2,TRUE)) -> 
F1086: =IF(ISNA(VLOOKUP(E1086,Prices!$B$2:$C$465,2,TRUE)),"",VLOOKUP(E1086,Prices!$B$2:$C$465,2,TRUE)) -> 
F1087: =IF(ISNA(VLOOKUP(E1087,Prices!$B$2:$C$465,2,TRUE)),"",VLOOKUP(E1087,Prices!$B$2:$C$465,2,TRUE)) -> 
F1088: =IF(ISNA(VLOOKUP(E1088,Prices!$B$2:$C$465,2,TRUE)),"",VLOOKUP(E1088,Prices!$B$2:$C$465,2,TRUE)) -> 
F1089: =IF(ISNA(VLOOKUP(E1089,Prices!$B$2:$C$465,2,TRUE)),"",VLOOKUP(E1089,Prices!$B$2:$C$465,2,TRUE)) -> 
F1090: =IF(ISNA(VLOOKUP(E1090,Prices!$B$2:$C$465,2,TRUE)),"",VLOOKUP(E1090,Prices!$B$2:$C$465,2,TRUE)) -> 
F1091: =IF(ISNA(VLOOKUP(E1091,Prices!$B$2:$C$465,2,TRUE)),"",VLOOKUP(E1091,Prices!$B$2:$C$465,2,TRUE)) -> 
F1092: =IF(ISNA(VLOOKUP(E1092,Prices!$B$2:$C$465,2,TRUE)),"",VLOOKUP(E1092,Prices!$B$2:$C$465,2,TRUE)) -> 
F1093: =IF(ISNA(VLOOKUP(E1093,Prices!$B$2:$C$465,2,TRUE)),"",VLOOKUP(E1093,Prices!$B$2:$C$465,2,TRUE)) -> 
F1094: =IF(ISNA(VLOOKUP(E1094,Prices!$B$2:$C$465,2,TRUE)),"",VLOOKUP(E1094,Prices!$B$2:$C$465,2,TRUE)) -> 
F1095: =IF(ISNA(VLOOKUP(E1095,Prices!$B$2:$C$465,2,TRUE)),"",VLOOKUP(E1095,Prices!$B$2:$C$465,2,TRUE)) -> 
F1096: =IF(ISNA(VLOOKUP(E1096,Prices!$B$2:$C$465,2,TRUE)),"",VLOOKUP(E1096,Prices!$B$2:$C$465,2,TRUE)) -> 
E1097: =IF(LEN(D1097)=0,"",C1097&TEXT(D1097,"0000")) ->  | F1097: =IF(ISNA(VLOOKUP(E1097,Prices!$B$2:$C$465,2,TRUE)),"",VLOOKUP(E1097,Prices!$B$2:$C$465,2,TRUE)) ->  | I1097: =IF(OR(G1097="",H1097=""),"",H1097-G1097+1) ->  | J1097: =IF(ISNUMBER(F1097*I1097),F1097*I1097,"") -> 
F1098: =IF(ISNA(VLOOKUP(E1098,Prices!$B$2:$C$465,2,TRUE)),"",VLOOKUP(E1098,Prices!$B$2:$C$465,2,TRUE)) -> 
F1099: =IF(ISNA(VLOOKUP(E1099,Prices!$B$2:$C$465,2,TRUE)),"",VLOOKUP(E1099,Prices!$B$2:$C$465,2,TRUE)) -> 
F1100: =IF(ISNA(VLOOKUP(E1100,Prices!$B$2:$C$465,2,TRUE)),"",VLOOKUP(E1100,Prices!$B$2:$C$465,2,TRUE)) -> 
F1101: =IF(ISNA(VLOOKUP(E1101,Prices!$B$2:$C$465,2,TRUE)),"",VLOOKUP(E1101,Prices!$B$2:$C$465,2,TRUE)) -> 
F1102: =IF(ISNA(VLOOKUP(E1102,Prices!$B$2:$C$465,2,TRUE)),"",VLOOKUP(E1102,Prices!$B$2:$C$465,2,TRUE)) -> 
F1103: =IF(ISNA(VLOOKUP(E1103,Prices!$B$2:$C$465,2,TRUE)),"",VLOOKUP(E1103,Prices!$B$2:$C$465,2,TRUE)) -> 
F1104: =IF(ISNA(VLOOKUP(E1104,Prices!$B$2:$C$465,2,TRUE)),"",VLOOKUP(E1104,Prices!$B$2:$C$465,2,TRUE)) -> 
F1105: =IF(ISNA(VLOOKUP(E1105,Prices!$B$2:$C$465,2,TRUE)),"",VLOOKUP(E1105,Prices!$B$2:$C$465,2,TRUE)) -> 
F1106: =IF(ISNA(VLOOKUP(E1106,Prices!$B$2:$C$465,2,TRUE)),"",VLOOKUP(E1106,Prices!$B$2:$C$465,2,TRUE)) -> 
F1107: =IF(ISNA(VLOOKUP(E1107,Prices!$B$2:$C$465,2,TRUE)),"",VLOOKUP(E1107,Prices!$B$2:$C$465,2,TRUE)) -> 
F1108: =IF(ISNA(VLOOKUP(E1108,Prices!$B$2:$C$465,2,TRUE)),"",VLOOKUP(E1108,Prices!$B$2:$C$465,2,TRUE)) -> 
F1109: =IF(ISNA(VLOOKUP(E1109,Prices!$B$2:$C$465,2,TRUE)),"",VLOOKUP(E1109,Prices!$B$2:$C$465,2,TRUE)) -> 
F1110: =IF(ISNA(VLOOKUP(E1110,Prices!$B$2:$C$465,2,TRUE)),"",VLOOKUP(E1110,Prices!$B$2:$C$465,2,TRUE)) -> 
F1111: =IF(ISNA(VLOOKUP(E1111,Prices!$B$2:$C$465,2,TRUE)),"",VLOOKUP(E1111,Prices!$B$2:$C$465,2,TRUE)) -> 
F1112: =IF(ISNA(VLOOKUP(E1112,Prices!$B$2:$C$465,2,TRUE)),"",VLOOKUP(E1112,Prices!$B$2:$C$465,2,TRUE)) -> 
F1113: =IF(ISNA(VLOOKUP(E1113,Prices!$B$2:$C$465,2,TRUE)),"",VLOOKUP(E1113,Prices!$B$2:$C$465,2,TRUE)) -> 
F1114: =IF(ISNA(VLOOKUP(E1114,Prices!$B$2:$C$465,2,TRUE)),"",VLOOKUP(E1114,Prices!$B$2:$C$465,2,TRUE)) -> 
F1115: =IF(ISNA(VLOOKUP(E1115,Prices!$B$2:$C$465,2,TRUE)),"",VLOOKUP(E1115,Prices!$B$2:$C$465,2,TRUE)) -> 
F1116: =IF(ISNA(VLOOKUP(E1116,Prices!$B$2:$C$465,2,TRUE)),"",VLOOKUP(E1116,Prices!$B$2:$C$465,2,TRUE)) -> 
F1117: =IF(ISNA(VLOOKUP(E1117,Prices!$B$2:$C$465,2,TRUE)),"",VLOOKUP(E1117,Prices!$B$2:$C$465,2,TRUE)) -> 
F1118: =IF(ISNA(VLOOKUP(E1118,Prices!$B$2:$C$465,2,TRUE)),"",VLOOKUP(E1118,Prices!$B$2:$C$465,2,TRUE)) -> 
F1119: =IF(ISNA(VLOOKUP(E1119,Prices!$B$2:$C$465,2,TRUE)),"",VLOOKUP(E1119,Prices!$B$2:$C$465,2,TRUE)) -> 
F1120: =IF(ISNA(VLOOKUP(E1120,Prices!$B$2:$C$465,2,TRUE)),"",VLOOKUP(E1120,Prices!$B$2:$C$465,2,TRUE)) -> 
F1121: =IF(ISNA(VLOOKUP(E1121,Prices!$B$2:$C$465,2,TRUE)),"",VLOOKUP(E1121,Prices!$B$2:$C$465,2,TRUE)) -> 
F1122: =IF(ISNA(VLOOKUP(E1122,Prices!$B$2:$C$465,2,TRUE)),"",VLOOKUP(E1122,Prices!$B$2:$C$465,2,TRUE)) -> 
F1123: =IF(ISNA(VLOOKUP(E1123,Prices!$B$2:$C$465,2,TRUE)),"",VLOOKUP(E1123,Prices!$B$2:$C$465,2,TRUE)) -> 
F1124: =IF(ISNA(VLOOKUP(E1124,Prices!$B$2:$C$465,2,TRUE)),"",VLOOKUP(E1124,Prices!$B$2:$C$465,2,TRUE)) -> 
F1125: =IF(ISNA(VLOOKUP(E1125,Prices!$B$2:$C$465,2,TRUE)),"",VLOOKUP(E1125,Prices!$B$2:$C$465,2,TRUE)) -> 
F1126: =IF(ISNA(VLOOKUP(E1126,Prices!$B$2:$C$465,2,TRUE)),"",VLOOKUP(E1126,Prices!$B$2:$C$465,2,TRUE)) -> 
F1127: =IF(ISNA(VLOOKUP(E1127,Prices!$B$2:$C$465,2,TRUE)),"",VLOOKUP(E1127,Prices!$B$2:$C$465,2,TRUE)) -> 
F1128: =IF(ISNA(VLOOKUP(E1128,Prices!$B$2:$C$465,2,TRUE)),"",VLOOKUP(E1128,Prices!$B$2:$C$465,2,TRUE)) -> 
F1129: =IF(ISNA(VLOOKUP(E1129,Prices!$B$2:$C$465,2,TRUE)),"",VLOOKUP(E1129,Prices!$B$2:$C$465,2,TRUE)) -> 
F1130: =IF(ISNA(VLOOKUP(E1130,Prices!$B$2:$C$465,2,TRUE)),"",VLOOKUP(E1130,Prices!$B$2:$C$465,2,TRUE)) -> 
F1131: =IF(ISNA(VLOOKUP(E1131,Prices!$B$2:$C$465,2,TRUE)),"",VLOOKUP(E1131,Prices!$B$2:$C$465,2,TRUE)) -> 
F1132: =IF(ISNA(VLOOKUP(E1132,Prices!$B$2:$C$465,2,TRUE)),"",VLOOKUP(E1132,Prices!$B$2:$C$465,2,TRUE)) -> 
F1133: =IF(ISNA(VLOOKUP(E1133,Prices!$B$2:$C$465,2,TRUE)),"",VLOOKUP(E1133,Prices!$B$2:$C$465,2,TRUE)) -> 
F1134: =IF(ISNA(VLOOKUP(E1134,Prices!$B$2:$C$465,2,TRUE)),"",VLOOKUP(E1134,Prices!$B$2:$C$465,2,TRUE)) -> 
F1135: =IF(ISNA(VLOOKUP(E1135,Prices!$B$2:$C$465,2,TRUE)),"",VLOOKUP(E1135,Prices!$B$2:$C$465,2,TRUE)) -> 
F1136: =IF(ISNA(VLOOKUP(E1136,Prices!$B$2:$C$465,2,TRUE)),"",VLOOKUP(E1136,Prices!$B$2:$C$465,2,TRUE)) -> 
F1137: =IF(ISNA(VLOOKUP(E1137,Prices!$B$2:$C$465,2,TRUE)),"",VLOOKUP(E1137,Prices!$B$2:$C$465,2,TRUE)) -> 
F1138: =IF(ISNA(VLOOKUP(E1138,Prices!$B$2:$C$465,2,TRUE)),"",VLOOKUP(E1138,Prices!$B$2:$C$465,2,TRUE)) -> 
F1139: =IF(ISNA(VLOOKUP(E1139,Prices!$B$2:$C$465,2,TRUE)),"",VLOOKUP(E1139,Prices!$B$2:$C$465,2,TRUE)) -> 
F1140: =IF(ISNA(VLOOKUP(E1140,Prices!$B$2:$C$465,2,TRUE)),"",VLOOKUP(E1140,Prices!$B$2:$C$465,2,TRUE)) -> 
F1141: =IF(ISNA(VLOOKUP(E1141,Prices!$B$2:$C$465,2,TRUE)),"",VLOOKUP(E1141,Prices!$B$2:$C$465,2,TRUE)) -> 
F1142: =IF(ISNA(VLOOKUP(E1142,Prices!$B$2:$C$465,2,TRUE)),"",VLOOKUP(E1142,Prices!$B$2:$C$465,2,TRUE)) -> 
F1143: =IF(ISNA(VLOOKUP(E1143,Prices!$B$2:$C$465,2,TRUE)),"",VLOOKUP(E1143,Prices!$B$2:$C$465,2,TRUE)) -> 
F1144: =IF(ISNA(VLOOKUP(E1144,Prices!$B$2:$C$465,2,TRUE)),"",VLOOKUP(E1144,Prices!$B$2:$C$465,2,TRUE)) -> 
F1145: =IF(ISNA(VLOOKUP(E1145,Prices!$B$2:$C$465,2,TRUE)),"",VLOOKUP(E1145,Prices!$B$2:$C$465,2,TRUE)) -> 
F1146: =IF(ISNA(VLOOKUP(E1146,Prices!$B$2:$C$465,2,TRUE)),"",VLOOKUP(E1146,Prices!$B$2:$C$465,2,TRUE)) -> 
F1147: =IF(ISNA(VLOOKUP(E1147,Prices!$B$2:$C$465,2,TRUE)),"",VLOOKUP(E1147,Prices!$B$2:$C$465,2,TRUE)) -> 
F1148: =IF(ISNA(VLOOKUP(E1148,Prices!$B$2:$C$465,2,TRUE)),"",VLOOKUP(E1148,Prices!$B$2:$C$465,2,TRUE)) -> 
F1149: =IF(ISNA(VLOOKUP(E1149,Prices!$B$2:$C$465,2,TRUE)),"",VLOOKUP(E1149,Prices!$B$2:$C$465,2,TRUE)) -> 
F1150: =IF(ISNA(VLOOKUP(E1150,Prices!$B$2:$C$465,2,TRUE)),"",VLOOKUP(E1150,Prices!$B$2:$C$465,2,TRUE)) -> 
F1151: =IF(ISNA(VLOOKUP(E1151,Prices!$B$2:$C$465,2,TRUE)),"",VLOOKUP(E1151,Prices!$B$2:$C$465,2,TRUE)) -> 
F1152: =IF(ISNA(VLOOKUP(E1152,Prices!$B$2:$C$465,2,TRUE)),"",VLOOKUP(E1152,Prices!$B$2:$C$465,2,TRUE)) -> 
F1153: =IF(ISNA(VLOOKUP(E1153,Prices!$B$2:$C$465,2,TRUE)),"",VLOOKUP(E1153,Prices!$B$2:$C$465,2,TRUE)) -> 
F1154: =IF(ISNA(VLOOKUP(E1154,Prices!$B$2:$C$465,2,TRUE)),"",VLOOKUP(E1154,Prices!$B$2:$C$465,2,TRUE)) -> 
F1155: =IF(ISNA(VLOOKUP(E1155,Prices!$B$2:$C$465,2,TRUE)),"",VLOOKUP(E1155,Prices!$B$2:$C$465,2,TRUE)) -> 
F1156: =IF(ISNA(VLOOKUP(E1156,Prices!$B$2:$C$465,2,TRUE)),"",VLOOKUP(E1156,Prices!$B$2:$C$465,2,TRUE)) -> 
F1157: =IF(ISNA(VLOOKUP(E1157,Prices!$B$2:$C$465,2,TRUE)),"",VLOOKUP(E1157,Prices!$B$2:$C$465,2,TRUE)) -> 
F1158: =IF(ISNA(VLOOKUP(E1158,Prices!$B$2:$C$465,2,TRUE)),"",VLOOKUP(E1158,Prices!$B$2:$C$465,2,TRUE)) -> 
F1159: =IF(ISNA(VLOOKUP(E1159,Prices!$B$2:$C$465,2,TRUE)),"",VLOOKUP(E1159,Prices!$B$2:$C$465,2,TRUE)) -> 
F1160: =IF(ISNA(VLOOKUP(E1160,Prices!$B$2:$C$465,2,TRUE)),"",VLOOKUP(E1160,Prices!$B$2:$C$465,2,TRUE)) -> 
E1161: =IF(LEN(D1161)=0,"",C1161&TEXT(D1161,"0000")) ->  | F1161: =IF(ISNA(VLOOKUP(E1161,Prices!$B$2:$C$465,2,TRUE)),"",VLOOKUP(E1161,Prices!$B$2:$C$465,2,TRUE)) ->  | I1161: =IF(OR(G1161="",H1161=""),"",H1161-G1161+1) ->  | J1161: =IF(ISNUMBER(F1161*I1161),F1161*I1161,"") -> 
F1162: =IF(ISNA(VLOOKUP(E1162,Prices!$B$2:$C$465,2,TRUE)),"",VLOOKUP(E1162,Prices!$B$2:$C$465,2,TRUE)) -> 
F1163: =IF(ISNA(VLOOKUP(E1163,Prices!$B$2:$C$465,2,TRUE)),"",VLOOKUP(E1163,Prices!$B$2:$C$465,2,TRUE)) -> 
F1164: =IF(ISNA(VLOOKUP(E1164,Prices!$B$2:$C$465,2,TRUE)),"",VLOOKUP(E1164,Prices!$B$2:$C$465,2,TRUE)) -> 
F1165: =IF(ISNA(VLOOKUP(E1165,Prices!$B$2:$C$465,2,TRUE)),"",VLOOKUP(E1165,Prices!$B$2:$C$465,2,TRUE)) -> 
F1166: =IF(ISNA(VLOOKUP(E1166,Prices!$B$2:$C$465,2,TRUE)),"",VLOOKUP(E1166,Prices!$B$2:$C$465,2,TRUE)) -> 
F1167: =IF(ISNA(VLOOKUP(E1167,Prices!$B$2:$C$465,2,TRUE)),"",VLOOKUP(E1167,Prices!$B$2:$C$465,2,TRUE)) -> 
F1168: =IF(ISNA(VLOOKUP(E1168,Prices!$B$2:$C$465,2,TRUE)),"",VLOOKUP(E1168,Prices!$B$2:$C$465,2,TRUE)) -> 
F1169: =IF(ISNA(VLOOKUP(E1169,Prices!$B$2:$C$465,2,TRUE)),"",VLOOKUP(E1169,Prices!$B$2:$C$465,2,TRUE)) -> 
F1170: =IF(ISNA(VLOOKUP(E1170,Prices!$B$2:$C$465,2,TRUE)),"",VLOOKUP(E1170,Prices!$B$2:$C$465,2,TRUE)) -> 
F1171: =IF(ISNA(VLOOKUP(E1171,Prices!$B$2:$C$465,2,TRUE)),"",VLOOKUP(E1171,Prices!$B$2:$C$465,2,TRUE)) -> 
F1172: =IF(ISNA(VLOOKUP(E1172,Prices!$B$2:$C$465,2,TRUE)),"",VLOOKUP(E1172,Prices!$B$2:$C$465,2,TRUE)) -> 
F1173: =IF(ISNA(VLOOKUP(E1173,Prices!$B$2:$C$465,2,TRUE)),"",VLOOKUP(E1173,Prices!$B$2:$C$465,2,TRUE)) -> 
F1174: =IF(ISNA(VLOOKUP(E1174,Prices!$B$2:$C$465,2,TRUE)),"",VLOOKUP(E1174,Prices!$B$2:$C$465,2,TRUE)) -> 
F1175: =IF(ISNA(VLOOKUP(E1175,Prices!$B$2:$C$465,2,TRUE)),"",VLOOKUP(E1175,Prices!$B$2:$C$465,2,TRUE)) -> 
F1176: =IF(ISNA(VLOOKUP(E1176,Prices!$B$2:$C$465,2,TRUE)),"",VLOOKUP(E1176,Prices!$B$2:$C$465,2,TRUE)) -> 
F1177: =IF(ISNA(VLOOKUP(E1177,Prices!$B$2:$C$465,2,TRUE)),"",VLOOKUP(E1177,Prices!$B$2:$C$465,2,TRUE)) -> 
F1178: =IF(ISNA(VLOOKUP(E1178,Prices!$B$2:$C$465,2,TRUE)),"",VLOOKUP(E1178,Prices!$B$2:$C$465,2,TRUE)) -> 
F1179: =IF(ISNA(VLOOKUP(E1179,Prices!$B$2:$C$465,2,TRUE)),"",VLOOKUP(E1179,Prices!$B$2:$C$465,2,TRUE)) -> 
F1180: =IF(ISNA(VLOOKUP(E1180,Prices!$B$2:$C$465,2,TRUE)),"",VLOOKUP(E1180,Prices!$B$2:$C$465,2,TRUE)) -> 
F1181: =IF(ISNA(VLOOKUP(E1181,Prices!$B$2:$C$465,2,TRUE)),"",VLOOKUP(E1181,Prices!$B$2:$C$465,2,TRUE)) -> 
F1182: =IF(ISNA(VLOOKUP(E1182,Prices!$B$2:$C$465,2,TRUE)),"",VLOOKUP(E1182,Prices!$B$2:$C$465,2,TRUE)) -> 
F1183: =IF(ISNA(VLOOKUP(E1183,Prices!$B$2:$C$465,2,TRUE)),"",VLOOKUP(E1183,Prices!$B$2:$C$465,2,TRUE)) -> 
F1184: =IF(ISNA(VLOOKUP(E1184,Prices!$B$2:$C$465,2,TRUE)),"",VLOOKUP(E1184,Prices!$B$2:$C$465,2,TRUE)) -> 
F1185: =IF(ISNA(VLOOKUP(E1185,Prices!$B$2:$C$465,2,TRUE)),"",VLOOKUP(E1185,Prices!$B$2:$C$465,2,TRUE)) -> 
F1186: =IF(ISNA(VLOOKUP(E1186,Prices!$B$2:$C$465,2,TRUE)),"",VLOOKUP(E1186,Prices!$B$2:$C$465,2,TRUE)) -> 
F1187: =IF(ISNA(VLOOKUP(E1187,Prices!$B$2:$C$465,2,TRUE)),"",VLOOKUP(E1187,Prices!$B$2:$C$465,2,TRUE)) -> 
F1188: =IF(ISNA(VLOOKUP(E1188,Prices!$B$2:$C$465,2,TRUE)),"",VLOOKUP(E1188,Prices!$B$2:$C$465,2,TRUE)) -> 
F1189: =IF(ISNA(VLOOKUP(E1189,Prices!$B$2:$C$465,2,TRUE)),"",VLOOKUP(E1189,Prices!$B$2:$C$465,2,TRUE)) -> 
F1190: =IF(ISNA(VLOOKUP(E1190,Prices!$B$2:$C$465,2,TRUE)),"",VLOOKUP(E1190,Prices!$B$2:$C$465,2,TRUE)) -> 
F1191: =IF(ISNA(VLOOKUP(E1191,Prices!$B$2:$C$465,2,TRUE)),"",VLOOKUP(E1191,Prices!$B$2:$C$465,2,TRUE)) -> 
F1192: =IF(ISNA(VLOOKUP(E1192,Prices!$B$2:$C$465,2,TRUE)),"",VLOOKUP(E1192,Prices!$B$2:$C$465,2,TRUE)) -> 
F1193: =IF(ISNA(VLOOKUP(E1193,Prices!$B$2:$C$465,2,TRUE)),"",VLOOKUP(E1193,Prices!$B$2:$C$465,2,TRUE)) -> 
F1194: =IF(ISNA(VLOOKUP(E1194,Prices!$B$2:$C$465,2,TRUE)),"",VLOOKUP(E1194,Prices!$B$2:$C$465,2,TRUE)) -> 
F1195: =IF(ISNA(VLOOKUP(E1195,Prices!$B$2:$C$465,2,TRUE)),"",VLOOKUP(E1195,Prices!$B$2:$C$465,2,TRUE)) -> 
F1196: =IF(ISNA(VLOOKUP(E1196,Prices!$B$2:$C$465,2,TRUE)),"",VLOOKUP(E1196,Prices!$B$2:$C$465,2,TRUE)) -> 
F1197: =IF(ISNA(VLOOKUP(E1197,Prices!$B$2:$C$465,2,TRUE)),"",VLOOKUP(E1197,Prices!$B$2:$C$465,2,TRUE)) -> 
F1198: =IF(ISNA(VLOOKUP(E1198,Prices!$B$2:$C$465,2,TRUE)),"",VLOOKUP(E1198,Prices!$B$2:$C$465,2,TRUE)) -> 
F1199: =IF(ISNA(VLOOKUP(E1199,Prices!$B$2:$C$465,2,TRUE)),"",VLOOKUP(E1199,Prices!$B$2:$C$465,2,TRUE)) -> 
F1200: =IF(ISNA(VLOOKUP(E1200,Prices!$B$2:$C$465,2,TRUE)),"",VLOOKUP(E1200,Prices!$B$2:$C$465,2,TRUE)) -> 
F1201: =IF(ISNA(VLOOKUP(E1201,Prices!$B$2:$C$465,2,TRUE)),"",VLOOKUP(E1201,Prices!$B$2:$C$465,2,TRUE)) -> 
F1202: =IF(ISNA(VLOOKUP(E1202,Prices!$B$2:$C$465,2,TRUE)),"",VLOOKUP(E1202,Prices!$B$2:$C$465,2,TRUE)) -> 
F1203: =IF(ISNA(VLOOKUP(E1203,Prices!$B$2:$C$465,2,TRUE)),"",VLOOKUP(E1203,Prices!$B$2:$C$465,2,TRUE)) -> 
F1204: =IF(ISNA(VLOOKUP(E1204,Prices!$B$2:$C$465,2,TRUE)),"",VLOOKUP(E1204,Prices!$B$2:$C$465,2,TRUE)) -> 
F1205: =IF(ISNA(VLOOKUP(E1205,Prices!$B$2:$C$465,2,TRUE)),"",VLOOKUP(E1205,Prices!$B$2:$C$465,2,TRUE)) -> 
F1206: =IF(ISNA(VLOOKUP(E1206,Prices!$B$2:$C$465,2,TRUE)),"",VLOOKUP(E1206,Prices!$B$2:$C$465,2,TRUE)) -> 
F1207: =IF(ISNA(VLOOKUP(E1207,Prices!$B$2:$C$465,2,TRUE)),"",VLOOKUP(E1207,Prices!$B$2:$C$465,2,TRUE)) -> 
F1208: =IF(ISNA(VLOOKUP(E1208,Prices!$B$2:$C$465,2,TRUE)),"",VLOOKUP(E1208,Prices!$B$2:$C$465,2,TRUE)) -> 
F1209: =IF(ISNA(VLOOKUP(E1209,Prices!$B$2:$C$465,2,TRUE)),"",VLOOKUP(E1209,Prices!$B$2:$C$465,2,TRUE)) -> 
F1210: =IF(ISNA(VLOOKUP(E1210,Prices!$B$2:$C$465,2,TRUE)),"",VLOOKUP(E1210,Prices!$B$2:$C$465,2,TRUE)) -> 
F1211: =IF(ISNA(VLOOKUP(E1211,Prices!$B$2:$C$465,2,TRUE)),"",VLOOKUP(E1211,Prices!$B$2:$C$465,2,TRUE)) -> 
F1212: =IF(ISNA(VLOOKUP(E1212,Prices!$B$2:$C$465,2,TRUE)),"",VLOOKUP(E1212,Prices!$B$2:$C$465,2,TRUE)) -> 
F1213: =IF(ISNA(VLOOKUP(E1213,Prices!$B$2:$C$465,2,TRUE)),"",VLOOKUP(E1213,Prices!$B$2:$C$465,2,TRUE)) -> 
F1214: =IF(ISNA(VLOOKUP(E1214,Prices!$B$2:$C$465,2,TRUE)),"",VLOOKUP(E1214,Prices!$B$2:$C$465,2,TRUE)) -> 
F1215: =IF(ISNA(VLOOKUP(E1215,Prices!$B$2:$C$465,2,TRUE)),"",VLOOKUP(E1215,Prices!$B$2:$C$465,2,TRUE)) -> 
F1216: =IF(ISNA(VLOOKUP(E1216,Prices!$B$2:$C$465,2,TRUE)),"",VLOOKUP(E1216,Prices!$B$2:$C$465,2,TRUE)) -> 
F1217: =IF(ISNA(VLOOKUP(E1217,Prices!$B$2:$C$465,2,TRUE)),"",VLOOKUP(E1217,Prices!$B$2:$C$465,2,TRUE)) -> 
F1218: =IF(ISNA(VLOOKUP(E1218,Prices!$B$2:$C$465,2,TRUE)),"",VLOOKUP(E1218,Prices!$B$2:$C$465,2,TRUE)) -> 
F1219: =IF(ISNA(VLOOKUP(E1219,Prices!$B$2:$C$465,2,TRUE)),"",VLOOKUP(E1219,Prices!$B$2:$C$465,2,TRUE)) -> 
F1220: =IF(ISNA(VLOOKUP(E1220,Prices!$B$2:$C$465,2,TRUE)),"",VLOOKUP(E1220,Prices!$B$2:$C$465,2,TRUE)) -> 
F1221: =IF(ISNA(VLOOKUP(E1221,Prices!$B$2:$C$465,2,TRUE)),"",VLOOKUP(E1221,Prices!$B$2:$C$465,2,TRUE)) -> 
F1222: =IF(ISNA(VLOOKUP(E1222,Prices!$B$2:$C$465,2,TRUE)),"",VLOOKUP(E1222,Prices!$B$2:$C$465,2,TRUE)) -> 
F1223: =IF(ISNA(VLOOKUP(E1223,Prices!$B$2:$C$465,2,TRUE)),"",VLOOKUP(E1223,Prices!$B$2:$C$465,2,TRUE)) -> 
F1224: =IF(ISNA(VLOOKUP(E1224,Prices!$B$2:$C$465,2,TRUE)),"",VLOOKUP(E1224,Prices!$B$2:$C$465,2,TRUE)) -> 
E1225: =IF(LEN(D1225)=0,"",C1225&TEXT(D1225,"0000")) ->  | F1225: =IF(ISNA(VLOOKUP(E1225,Prices!$B$2:$C$465,2,TRUE)),"",VLOOKUP(E1225,Prices!$B$2:$C$465,2,TRUE)) ->  | I1225: =IF(OR(G1225="",H1225=""),"",H1225-G1225+1) ->  | J1225: =IF(ISNUMBER(F1225*I1225),F1225*I1225,"") -> 
F1226: =IF(ISNA(VLOOKUP(E1226,Prices!$B$2:$C$465,2,TRUE)),"",VLOOKUP(E1226,Prices!$B$2:$C$465,2,TRUE)) -> 
F1227: =IF(ISNA(VLOOKUP(E1227,Prices!$B$2:$C$465,2,TRUE)),"",VLOOKUP(E1227,Prices!$B$2:$C$465,2,TRUE)) -> 
F1228: =IF(ISNA(VLOOKUP(E1228,Prices!$B$2:$C$465,2,TRUE)),"",VLOOKUP(E1228,Prices!$B$2:$C$465,2,TRUE)) -> 
F1229: =IF(ISNA(VLOOKUP(E1229,Prices!$B$2:$C$465,2,TRUE)),"",VLOOKUP(E1229,Prices!$B$2:$C$465,2,TRUE)) -> 
F1230: =IF(ISNA(VLOOKUP(E1230,Prices!$B$2:$C$465,2,TRUE)),"",VLOOKUP(E1230,Prices!$B$2:$C$465,2,TRUE)) -> 
F1231: =IF(ISNA(VLOOKUP(E1231,Prices!$B$2:$C$465,2,TRUE)),"",VLOOKUP(E1231,Prices!$B$2:$C$465,2,TRUE)) -> 
F1232: =IF(ISNA(VLOOKUP(E1232,Prices!$B$2:$C$465,2,TRUE)),"",VLOOKUP(E1232,Prices!$B$2:$C$465,2,TRUE)) -> 
F1233: =IF(ISNA(VLOOKUP(E1233,Prices!$B$2:$C$465,2,TRUE)),"",VLOOKUP(E1233,Prices!$B$2:$C$465,2,TRUE)) -> 
F1234: =IF(ISNA(VLOOKUP(E1234,Prices!$B$2:$C$465,2,TRUE)),"",VLOOKUP(E1234,Prices!$B$2:$C$465,2,TRUE)) -> 
F1235: =IF(ISNA(VLOOKUP(E1235,Prices!$B$2:$C$465,2,TRUE)),"",VLOOKUP(E1235,Prices!$B$2:$C$465,2,TRUE)) -> 
F1236: =IF(ISNA(VLOOKUP(E1236,Prices!$B$2:$C$465,2,TRUE)),"",VLOOKUP(E1236,Prices!$B$2:$C$465,2,TRUE)) -> 
F1237: =IF(ISNA(VLOOKUP(E1237,Prices!$B$2:$C$465,2,TRUE)),"",VLOOKUP(E1237,Prices!$B$2:$C$465,2,TRUE)) -> 
F1238: =IF(ISNA(VLOOKUP(E1238,Prices!$B$2:$C$465,2,TRUE)),"",VLOOKUP(E1238,Prices!$B$2:$C$465,2,TRUE)) -> 
F1239: =IF(ISNA(VLOOKUP(E1239,Prices!$B$2:$C$465,2,TRUE)),"",VLOOKUP(E1239,Prices!$B$2:$C$465,2,TRUE)) -> 
... 54 more rows

Sheet rules (hidden)
A1: Ik weet dat Bente eerder iets anders doorgaf, maar mijn twee collega’s gaven onderstaande feedback (geldt enkel voor hond & paard/pony/ezel):
A3: Identificeren > automatisch ook registreren en paspoort, kan niet alleen
A5: Registreren > kan ook alleen
A6: Een hond kan gechipt zijn en een paspoort hebben maar nog niet geregistreerd zijn.
A8: Paspoort > kan ook alleen
A9: Een hond kan gechipt en geregistreerd zijn. Het paspoort is niet meegekomen.
A11: Hopelijk begrijp je wat er bedoeld wordt? Anders kunnen we hiervoor morgen eens bellen om te verduidelijken.
A13: 1. Pony ontbreekt bij ‘dierenarts’. Kan je hier nog pony toevoegen? Indien dit de layout zou doen verschuiven, mag dit zo gelaten worden.
A14: (Pony’s zijn tenslotte ook paarden)

Sheet Dierenarts
B1: Datum IBN | C1: =Startpagina!C13 -> 00:00:00 | O1: =Startpagina!H13 -> 1 | P1: TOTAAL
B2: Diergeneeskundig verslag | P2: =IF(O1=1,0,SUM(E4:E7)) -> 0
B3: Dierenarts | C3: Datum | D3: Aantal dieren | E3: EUR | I3: =IF(O1=1,Startpagina!F13,"") -> Tab Dierenarts pas invullen vanaf datum IBN 01/06/2023
E4: =IF(D4>0,30+ROUNDUP(D4/10,0)*5,0) -> 0
E5: 0
E6: 0
E7: =IF(D7>0,30+ROUNDUP(D7/10,0)*5,0) -> 0
P8: TOTAAL
B9: Dierenartskosten | D9: =IF(S42>0,"Gelieve de fouten te verbeteren. Zie rode vakjes","") ->  | P9: =IF(O1=1,0,SUM(P11:P40)) -> 0 | W9: paspoort niet meer te valideren
B10: Naam/ omschrijving | C10: Diersoort | D10: Identificatie-nummer | E10: Geslacht (enkel bij Kat) | F10: Identificeren | G10: EUR | H10: Registreren | I10: EUR | J10: Paspoort | K10: EUR | L10: Vaccinatie | M10: EUR | N10: Sterilisatie/ castratie | O10: EUR | P10: Totaal | T10: Idnr | W10: paspoort | Y10: staat nu op 0 | Z10: factor paspoort | AB10: identificeren hond 1 | AC10: paard 4 | AD10: kat 2 | AE10: totaal | AF10: factor
A11: =IF(C11="",0,VLOOKUP(C11,Lijsten!$P$3:$R$6,3,FALSE)) -> 0 | G11: =IF(F11<>"ja",0,IF(C11="",0,AF11*VLOOKUP(C11,Lijsten!$P$3:$Q$6,2,FALSE))) -> 0 | I11: =IF(H11<>"ja",0,IF(C11="",0,VLOOKUP(C11,Lijsten!$P$9:$Q$13,2,FALSE))) -> 0 | K11: =IF($C11="",0,IF(J11<>"ja",0,Z11*VLOOKUP($C11,Lijsten!$P$16:$Q$19,2,FALSE))) -> 0 | M11: =IF($C11="",0,IF(L11<>"ja",0,VLOOKUP($C11,Lijsten!$P$23:$Q$26,2,FALSE))) -> 0 | O11: =IF($E11="",0,IF(N11<>"ja",0,VLOOKUP($E11,Lijsten!$P$30:$Q$31,2,FALSE))) -> 0 | P11: =G11+I11+K11+M11+O11 -> 0 | Q11: =AND(C11<>"Kat",E11<>"") -> FALSE | R11: =AND(C11="Kat",E11="") -> FALSE | S11: =IF(Q11=TRUE,1)+IF(R11=TRUE,1) -> 0 | T11: =IF(AND(C11<> "Kleine Herkauwer",C11<>"",D11=""),1,0) -> 0 | U11: =IF(AND(B11&D11&E11&F11&H11&J11&L11&N11<>"",C11=""),1,0) -> 0 | W11: =IF(AND(C11="Hond",J11="ja",OR(F11<>"ja",H11<>"ja")),1,0) -> 0 | X11: =IF(AND(C11="Paard/Pony/Ezel",J11="ja",OR(F11<>"ja",H11<>"ja")),1,0) -> 0 | Y11: 0 | Z11: =IF(Y11=0,1,0) -> 1 | AB11: =IF(OR(AND(A11=1,F11="ja",H11<>"ja"),AND(A11=1,F11="ja",J11<>"ja")),1,0) -> 0 | AC11: =IF(OR(AND(A11=4,F11="ja",H11<>"ja"),AND(A11=4,F11="ja",J11<>"ja")),1,0) -> 0 | AD11: =IF(AND(A11=2,F11="ja",H11<>"ja"),1,0) -> 0 | AE11: =AB11+AC11+AD11 -> 0 | AF11: =IF(AE11=0,1,0) -> 1
A12: =IF(C12="",0,VLOOKUP(C12,Lijsten!$P$3:$R$6,3,FALSE)) -> 0 | G12: =IF(F12<>"ja",0,IF(C12="",0,AF12*VLOOKUP(C12,Lijsten!$P$3:$Q$6,2,FALSE))) -> 0 | I12: =IF(H12<>"ja",0,IF(C12="",0,VLOOKUP(C12,Lijsten!$P$9:$Q$13,2,FALSE))) -> 0 | K12: =IF($C12="",0,IF(J12<>"ja",0,Z12*VLOOKUP($C12,Lijsten!$P$16:$Q$19,2,FALSE))) -> 0 | M12: =IF($C12="",0,IF(L12<>"ja",0,VLOOKUP($C12,Lijsten!$P$23:$Q$26,2,FALSE))) -> 0 | O12: =IF($E12="",0,IF(N12<>"ja",0,VLOOKUP($E12,Lijsten!$P$30:$Q$31,2,FALSE))) -> 0 | P12: =G12+I12+K12+M12+O12 -> 0 | Q12: =AND(C12<>"Kat",E12<>"") -> FALSE | R12: =AND(C12="Kat",E12="") -> FALSE | S12: =IF(Q12=TRUE,1)+IF(R12=TRUE,1) -> 0 | T12: =IF(AND(C12<> "Kleine Herkauwer",C12<>"",D12=""),1,0) -> 0 | U12: =IF(AND(B12&D12&E12&F12&H12&J12&L12&N12<>"",C12=""),1,0) -> 0 | W12: =IF(AND(C12="Hond",J12="ja",OR(F12<>"ja",H12<>"ja")),1,0) -> 0 | X12: =IF(AND(C12="Paard/Pony/Ezel",J12="ja",OR(F12<>"ja",H12<>"ja")),1,0) -> 0 | Y12: 0 | Z12: =IF(Y12=0,1,0) -> 1 | AB12: =IF(OR(AND(A12=1,F12="ja",H12<>"ja"),AND(A12=1,F12="ja",J12<>"ja")),1,0) -> 0 | AC12: =IF(OR(AND(A12=4,F12="ja",H12<>"ja"),AND(A12=4,F12="ja",J12<>"ja")),1,0) -> 0 | AD12: =IF(AND(A12=2,F12="ja",H12<>"ja"),1,0) -> 0 | AE12: =AB12+AC12+AD12 -> 0 | AF12: =IF(AE12=0,1,0) -> 1
A13: =IF(C13="",0,VLOOKUP(C13,Lijsten!$P$3:$R$6,3,FALSE)) -> 0 | G13: =IF(F13<>"ja",0,IF(C13="",0,AF13*VLOOKUP(C13,Lijsten!$P$3:$Q$6,2,FALSE))) -> 0 | I13: =IF(H13<>"ja",0,IF(C13="",0,VLOOKUP(C13,Lijsten!$P$9:$Q$13,2,FALSE))) -> 0 | K13: =IF($C13="",0,IF(J13<>"ja",0,Z13*VLOOKUP($C13,Lijsten!$P$16:$Q$19,2,FALSE))) -> 0 | M13: =IF($C13="",0,IF(L13<>"ja",0,VLOOKUP($C13,Lijsten!$P$23:$Q$26,2,FALSE))) -> 0 | O13: =IF($E13="",0,IF(N13<>"ja",0,VLOOKUP($E13,Lijsten!$P$30:$Q$31,2,FALSE))) -> 0 | P13: =G13+I13+K13+M13+O13 -> 0 | Q13: =AND(C13<>"Kat",E13<>"") -> FALSE | R13: =AND(C13="Kat",E13="") -> FALSE | S13: =IF(Q13=TRUE,1)+IF(R13=TRUE,1) -> 0 | T13: =IF(AND(C13<> "Kleine Herkauwer",C13<>"",D13=""),1,0) -> 0 | U13: =IF(AND(B13&D13&E13&F13&H13&J13&L13&N13<>"",C13=""),1,0) -> 0 | W13: =IF(AND(C13="Hond",J13="ja",OR(F13<>"ja",H13<>"ja")),1,0) -> 0 | X13: =IF(AND(C13="Paard/Pony/Ezel",J13="ja",OR(F13<>"ja",H13<>"ja")),1,0) -> 0 | Y13: 0 | Z13: =IF(Y13=0,1,0) -> 1 | AB13: =IF(OR(AND(A13=1,F13="ja",H13<>"ja"),AND(A13=1,F13="ja",J13<>"ja")),1,0) -> 0 | AC13: =IF(OR(AND(A13=4,F13="ja",H13<>"ja"),AND(A13=4,F13="ja",J13<>"ja")),1,0) -> 0 | AD13: =IF(AND(A13=2,F13="ja",H13<>"ja"),1,0) -> 0 | AE13: =AB13+AC13+AD13 -> 0 | AF13: =IF(AE13=0,1,0) -> 1
A14: =IF(C14="",0,VLOOKUP(C14,Lijsten!$P$3:$R$6,3,FALSE)) -> 0 | G14: =IF(F14<>"ja",0,IF(C14="",0,AF14*VLOOKUP(C14,Lijsten!$P$3:$Q$6,2,FALSE))) -> 0 | I14: =IF(H14<>"ja",0,IF(C14="",0,VLOOKUP(C14,Lijsten!$P$9:$Q$13,2,FALSE))) -> 0 | K14: =IF($C14="",0,IF(J14<>"ja",0,Z14*VLOOKUP($C14,Lijsten!$P$16:$Q$19,2,FALSE))) -> 0 | M14: =IF($C14="",0,IF(L14<>"ja",0,VLOOKUP($C14,Lijsten!$P$23:$Q$26,2,FALSE))) -> 0 | O14: =IF($E14="",0,IF(N14<>"ja",0,VLOOKUP($E14,Lijsten!$P$30:$Q$31,2,FALSE))) -> 0 | P14: 0 | Q14: FALSE | R14: FALSE | S14: 0 | T14: 0 | U14: 0 | W14: 0 | X14: 0 | Y14: 0 | Z14: 1 | AB14: 0 | AC14: 0 | AD14: 0 | AE14: 0 | AF14: 1
A15: =IF(C15="",0,VLOOKUP(C15,Lijsten!$P$3:$R$6,3,FALSE)) -> 0 | G15: =IF(F15<>"ja",0,IF(C15="",0,AF15*VLOOKUP(C15,Lijsten!$P$3:$Q$6,2,FALSE))) -> 0 | I15: =IF(H15<>"ja",0,IF(C15="",0,VLOOKUP(C15,Lijsten!$P$9:$Q$13,2,FALSE))) -> 0 | K15: =IF($C15="",0,IF(J15<>"ja",0,Z15*VLOOKUP($C15,Lijsten!$P$16:$Q$19,2,FALSE))) -> 0 | M15: =IF($C15="",0,IF(L15<>"ja",0,VLOOKUP($C15,Lijsten!$P$23:$Q$26,2,FALSE))) -> 0 | O15: =IF($E15="",0,IF(N15<>"ja",0,VLOOKUP($E15,Lijsten!$P$30:$Q$31,2,FALSE))) -> 0 | P15: 0 | Q15: FALSE | R15: FALSE | S15: 0 | T15: 0 | U15: 0 | W15: 0 | X15: 0 | Y15: 0 | Z15: 1 | AB15: 0 | AC15: 0 | AD15: 0 | AE15: 0 | AF15: 1
A16: =IF(C16="",0,VLOOKUP(C16,Lijsten!$P$3:$R$6,3,FALSE)) -> 0 | G16: =IF(F16<>"ja",0,IF(C16="",0,AF16*VLOOKUP(C16,Lijsten!$P$3:$Q$6,2,FALSE))) -> 0 | I16: =IF(H16<>"ja",0,IF(C16="",0,VLOOKUP(C16,Lijsten!$P$9:$Q$13,2,FALSE))) -> 0 | K16: =IF($C16="",0,IF(J16<>"ja",0,Z16*VLOOKUP($C16,Lijsten!$P$16:$Q$19,2,FALSE))) -> 0 | M16: =IF($C16="",0,IF(L16<>"ja",0,VLOOKUP($C16,Lijsten!$P$23:$Q$26,2,FALSE))) -> 0 | O16: =IF($E16="",0,IF(N16<>"ja",0,VLOOKUP($E16,Lijsten!$P$30:$Q$31,2,FALSE))) -> 0 | P16: 0 | Q16: FALSE | R16: FALSE | S16: 0 | T16: 0 | U16: 0 | W16: 0 | X16: 0 | Y16: 0 | Z16: 1 | AB16: 0 | AC16: 0 | AD16: 0 | AE16: 0 | AF16: 1
A17: =IF(C17="",0,VLOOKUP(C17,Lijsten!$P$3:$R$6,3,FALSE)) -> 0 | G17: =IF(F17<>"ja",0,IF(C17="",0,AF17*VLOOKUP(C17,Lijsten!$P$3:$Q$6,2,FALSE))) -> 0 | I17: =IF(H17<>"ja",0,IF(C17="",0,VLOOKUP(C17,Lijsten!$P$9:$Q$13,2,FALSE))) -> 0 | K17: =IF($C17="",0,IF(J17<>"ja",0,Z17*VLOOKUP($C17,Lijsten!$P$16:$Q$19,2,FALSE))) -> 0 | M17: =IF($C17="",0,IF(L17<>"ja",0,VLOOKUP($C17,Lijsten!$P$23:$Q$26,2,FALSE))) -> 0 | O17: =IF($E17="",0,IF(N17<>"ja",0,VLOOKUP($E17,Lijsten!$P$30:$Q$31,2,FALSE))) -> 0 | P17: 0 | Q17: FALSE | R17: =AND(C17="Kat",E17="") -> FALSE | S17: 0 | T17: 0 | U17: 0 | W17: 0 | X17: 0 | Y17: 0 | Z17: 1 | AB17: =IF(OR(AND(A17=1,F17="ja",H17<>"ja"),AND(A17=1,F17="ja",J17<>"ja")),1,0) -> 0 | AC17: 0 | AD17: 0 | AE17: 0 | AF17: 1
A18: =IF(C18="",0,VLOOKUP(C18,Lijsten!$P$3:$R$6,3,FALSE)) -> 0 | G18: =IF(F18<>"ja",0,IF(C18="",0,AF18*VLOOKUP(C18,Lijsten!$P$3:$Q$6,2,FALSE))) -> 0 | I18: =IF(H18<>"ja",0,IF(C18="",0,VLOOKUP(C18,Lijsten!$P$9:$Q$13,2,FALSE))) -> 0 | K18: =IF($C18="",0,IF(J18<>"ja",0,Z18*VLOOKUP($C18,Lijsten!$P$16:$Q$19,2,FALSE))) -> 0 | M18: =IF($C18="",0,IF(L18<>"ja",0,VLOOKUP($C18,Lijsten!$P$23:$Q$26,2,FALSE))) -> 0 | O18: =IF($E18="",0,IF(N18<>"ja",0,VLOOKUP($E18,Lijsten!$P$30:$Q$31,2,FALSE))) -> 0 | P18: 0 | Q18: FALSE | R18: FALSE | S18: 0 | T18: 0 | U18: 0 | W18: 0 | X18: 0 | Y18: 0 | Z18: 1 | AB18: 0 | AC18: 0 | AD18: 0 | AE18: 0 | AF18: 1
A19: =IF(C19="",0,VLOOKUP(C19,Lijsten!$P$3:$R$6,3,FALSE)) -> 0 | G19: =IF(F19<>"ja",0,IF(C19="",0,AF19*VLOOKUP(C19,Lijsten!$P$3:$Q$6,2,FALSE))) -> 0 | I19: =IF(H19<>"ja",0,IF(C19="",0,VLOOKUP(C19,Lijsten!$P$9:$Q$13,2,FALSE))) -> 0 | K19: =IF($C19="",0,IF(J19<>"ja",0,Z19*VLOOKUP($C19,Lijsten!$P$16:$Q$19,2,FALSE))) -> 0 | M19: =IF($C19="",0,IF(L19<>"ja",0,VLOOKUP($C19,Lijsten!$P$23:$Q$26,2,FALSE))) -> 0 | O19: =IF($E19="",0,IF(N19<>"ja",0,VLOOKUP($E19,Lijsten!$P$30:$Q$31,2,FALSE))) -> 0 | P19: 0 | Q19: FALSE | R19: FALSE | S19: 0 | T19: 0 | U19: 0 | W19: 0 | X19: 0 | Y19: 0 | Z19: 1 | AB19: 0 | AC19: 0 | AD19: 0 | AE19: 0 | AF19: 1
A20: =IF(C20="",0,VLOOKUP(C20,Lijsten!$P$3:$R$6,3,FALSE)) -> 0 | G20: =IF(F20<>"ja",0,IF(C20="",0,AF20*VLOOKUP(C20,Lijsten!$P$3:$Q$6,2,FALSE))) -> 0 | I20: =IF(H20<>"ja",0,IF(C20="",0,VLOOKUP(C20,Lijsten!$P$9:$Q$13,2,FALSE))) -> 0 | K20: =IF($C20="",0,IF(J20<>"ja",0,Z20*VLOOKUP($C20,Lijsten!$P$16:$Q$19,2,FALSE))) -> 0 | M20: =IF($C20="",0,IF(L20<>"ja",0,VLOOKUP($C20,Lijsten!$P$23:$Q$26,2,FALSE))) -> 0 | O20: =IF($E20="",0,IF(N20<>"ja",0,VLOOKUP($E20,Lijsten!$P$30:$Q$31,2,FALSE))) -> 0 | P20: 0 | Q20: FALSE | R20: FALSE | S20: 0 | T20: 0 | U20: 0 | W20: 0 | X20: 0 | Y20: 0 | Z20: 1 | AB20: 0 | AC20: 0 | AD20: 0 | AE20: 0 | AF20: 1
A21: =IF(C21="",0,VLOOKUP(C21,Lijsten!$P$3:$R$6,3,FALSE)) -> 0 | G21: =IF(F21<>"ja",0,IF(C21="",0,AF21*VLOOKUP(C21,Lijsten!$P$3:$Q$6,2,FALSE))) -> 0 | I21: =IF(H21<>"ja",0,IF(C21="",0,VLOOKUP(C21,Lijsten!$P$9:$Q$13,2,FALSE))) -> 0 | K21: =IF($C21="",0,IF(J21<>"ja",0,Z21*VLOOKUP($C21,Lijsten!$P$16:$Q$19,2,FALSE))) -> 0 | M21: =IF($C21="",0,IF(L21<>"ja",0,VLOOKUP($C21,Lijsten!$P$23:$Q$26,2,FALSE))) -> 0 | O21: =IF($E21="",0,IF(N21<>"ja",0,VLOOKUP($E21,Lijsten!$P$30:$Q$31,2,FALSE))) -> 0 | P21: 0 | Q21: FALSE | R21: =AND(C21="Kat",E21="") -> FALSE | S21: 0 | T21: 0 | U21: 0 | W21: 0 | X21: 0 | Y21: 0 | Z21: 1 | AB21: 0 | AC21: 0 | AD21: 0 | AE21: 0 | AF21: 1
A22: =IF(C22="",0,VLOOKUP(C22,Lijsten!$P$3:$R$6,3,FALSE)) -> 0 | G22: =IF(F22<>"ja",0,IF(C22="",0,AF22*VLOOKUP(C22,Lijsten!$P$3:$Q$6,2,FALSE))) -> 0 | I22: =IF(H22<>"ja",0,IF(C22="",0,VLOOKUP(C22,Lijsten!$P$9:$Q$13,2,FALSE))) -> 0 | K22: =IF($C22="",0,IF(J22<>"ja",0,Z22*VLOOKUP($C22,Lijsten!$P$16:$Q$19,2,FALSE))) -> 0 | M22: =IF($C22="",0,IF(L22<>"ja",0,VLOOKUP($C22,Lijsten!$P$23:$Q$26,2,FALSE))) -> 0 | O22: =IF($E22="",0,IF(N22<>"ja",0,VLOOKUP($E22,Lijsten!$P$30:$Q$31,2,FALSE))) -> 0 | P22: 0 | Q22: FALSE | R22: =AND(C22="Kat",E22="") -> FALSE | S22: 0 | T22: 0 | U22: 0 | W22: 0 | X22: 0 | Y22: 0 | Z22: 1 | AB22: 0 | AC22: 0 | AD22: 0 | AE22: 0 | AF22: 1
A23: =IF(C23="",0,VLOOKUP(C23,Lijsten!$P$3:$R$6,3,FALSE)) -> 0 | G23: =IF(F23<>"ja",0,IF(C23="",0,AF23*VLOOKUP(C23,Lijsten!$P$3:$Q$6,2,FALSE))) -> 0 | I23: =IF(H23<>"ja",0,IF(C23="",0,VLOOKUP(C23,Lijsten!$P$9:$Q$13,2,FALSE))) -> 0 | K23: =IF($C23="",0,IF(J23<>"ja",0,Z23*VLOOKUP($C23,Lijsten!$P$16:$Q$19,2,FALSE))) -> 0 | M23: =IF($C23="",0,IF(L23<>"ja",0,VLOOKUP($C23,Lijsten!$P$23:$Q$26,2,FALSE))) -> 0 | O23: =IF($E23="",0,IF(N23<>"ja",0,VLOOKUP($E23,Lijsten!$P$30:$Q$31,2,FALSE))) -> 0 | P23: 0 | Q23: FALSE | R23: FALSE | S23: 0 | T23: 0 | U23: 0 | W23: 0 | X23: 0 | Y23: 0 | Z23: 1 | AB23: 0 | AC23: 0 | AD23: 0 | AE23: 0 | AF23: 1
A24: =IF(C24="",0,VLOOKUP(C24,Lijsten!$P$3:$R$6,3,FALSE)) -> 0 | G24: =IF(F24<>"ja",0,IF(C24="",0,AF24*VLOOKUP(C24,Lijsten!$P$3:$Q$6,2,FALSE))) -> 0 | I24: =IF(H24<>"ja",0,IF(C24="",0,VLOOKUP(C24,Lijsten!$P$9:$Q$13,2,FALSE))) -> 0 | K24: =IF($C24="",0,IF(J24<>"ja",0,Z24*VLOOKUP($C24,Lijsten!$P$16:$Q$19,2,FALSE))) -> 0 | M24: =IF($C24="",0,IF(L24<>"ja",0,VLOOKUP($C24,Lijsten!$P$23:$Q$26,2,FALSE))) -> 0 | O24: =IF($E24="",0,IF(N24<>"ja",0,VLOOKUP($E24,Lijsten!$P$30:$Q$31,2,FALSE))) -> 0 | P24: 0 | Q24: FALSE | R24: FALSE | S24: 0 | T24: 0 | U24: 0 | W24: 0 | X24: 0 | Y24: 0 | Z24: 1 | AB24: 0 | AC24: 0 | AD24: 0 | AE24: 0 | AF24: 1
A25: =IF(C25="",0,VLOOKUP(C25,Lijsten!$P$3:$R$6,3,FALSE)) -> 0 | G25: =IF(F25<>"ja",0,IF(C25="",0,AF25*VLOOKUP(C25,Lijsten!$P$3:$Q$6,2,FALSE))) -> 0 | I25: =IF(H25<>"ja",0,IF(C25="",0,VLOOKUP(C25,Lijsten!$P$9:$Q$13,2,FALSE))) -> 0 | K25: =IF($C25="",0,IF(J25<>"ja",0,Z25*VLOOKUP($C25,Lijsten!$P$16:$Q$19,2,FALSE))) -> 0 | M25: =IF($C25="",0,IF(L25<>"ja",0,VLOOKUP($C25,Lijsten!$P$23:$Q$26,2,FALSE))) -> 0 | O25: =IF($E25="",0,IF(N25<>"ja",0,VLOOKUP($E25,Lijsten!$P$30:$Q$31,2,FALSE))) -> 0 | P25: 0 | Q25: FALSE | R25: FALSE | S25: 0 | T25: 0 | U25: 0 | W25: 0 | X25: 0 | Y25: 0 | Z25: 1 | AB25: 0 | AC25: 0 | AD25: 0 | AE25: 0 | AF25: 1
A26: =IF(C26="",0,VLOOKUP(C26,Lijsten!$P$3:$R$6,3,FALSE)) -> 0 | G26: =IF(F26<>"ja",0,IF(C26="",0,AF26*VLOOKUP(C26,Lijsten!$P$3:$Q$6,2,FALSE))) -> 0 | I26: =IF(H26<>"ja",0,IF(C26="",0,VLOOKUP(C26,Lijsten!$P$9:$Q$13,2,FALSE))) -> 0 | K26: =IF($C26="",0,IF(J26<>"ja",0,Z26*VLOOKUP($C26,Lijsten!$P$16:$Q$19,2,FALSE))) -> 0 | M26: =IF($C26="",0,IF(L26<>"ja",0,VLOOKUP($C26,Lijsten!$P$23:$Q$26,2,FALSE))) -> 0 | O26: =IF($E26="",0,IF(N26<>"ja",0,VLOOKUP($E26,Lijsten!$P$30:$Q$31,2,FALSE))) -> 0 | P26: 0 | Q26: FALSE | R26: FALSE | S26: 0 | T26: 0 | U26: 0 | W26: 0 | X26: 0 | Y26: 0 | Z26: 1 | AB26: 0 | AC26: 0 | AD26: 0 | AE26: 0 | AF26: 1
A27: =IF(C27="",0,VLOOKUP(C27,Lijsten!$P$3:$R$6,3,FALSE)) -> 0 | G27: =IF(F27<>"ja",0,IF(C27="",0,AF27*VLOOKUP(C27,Lijsten!$P$3:$Q$6,2,FALSE))) -> 0 | I27: =IF(H27<>"ja",0,IF(C27="",0,VLOOKUP(C27,Lijsten!$P$9:$Q$13,2,FALSE))) -> 0 | K27: =IF($C27="",0,IF(J27<>"ja",0,Z27*VLOOKUP($C27,Lijsten!$P$16:$Q$19,2,FALSE))) -> 0 | M27: =IF($C27="",0,IF(L27<>"ja",0,VLOOKUP($C27,Lijsten!$P$23:$Q$26,2,FALSE))) -> 0 | O27: =IF($E27="",0,IF(N27<>"ja",0,VLOOKUP($E27,Lijsten!$P$30:$Q$31,2,FALSE))) -> 0 | P27: 0 | Q27: FALSE | R27: FALSE | S27: 0 | T27: 0 | U27: 0 | W27: 0 | X27: 0 | Y27: 0 | Z27: 1 | AB27: 0 | AC27: 0 | AD27: 0 | AE27: 0 | AF27: 1
A28: =IF(C28="",0,VLOOKUP(C28,Lijsten!$P$3:$R$6,3,FALSE)) -> 0 | G28: =IF(F28<>"ja",0,IF(C28="",0,AF28*VLOOKUP(C28,Lijsten!$P$3:$Q$6,2,FALSE))) -> 0 | I28: =IF(H28<>"ja",0,IF(C28="",0,VLOOKUP(C28,Lijsten!$P$9:$Q$13,2,FALSE))) -> 0 | K28: =IF($C28="",0,IF(J28<>"ja",0,Z28*VLOOKUP($C28,Lijsten!$P$16:$Q$19,2,FALSE))) -> 0 | M28: =IF($C28="",0,IF(L28<>"ja",0,VLOOKUP($C28,Lijsten!$P$23:$Q$26,2,FALSE))) -> 0 | O28: =IF($E28="",0,IF(N28<>"ja",0,VLOOKUP($E28,Lijsten!$P$30:$Q$31,2,FALSE))) -> 0 | P28: 0 | Q28: FALSE | R28: FALSE | S28: 0 | T28: 0 | U28: 0 | W28: 0 | X28: 0 | Y28: 0 | Z28: 1 | AB28: 0 | AC28: 0 | AD28: 0 | AE28: 0 | AF28: 1
A29: =IF(C29="",0,VLOOKUP(C29,Lijsten!$P$3:$R$6,3,FALSE)) -> 0 | G29: =IF(F29<>"ja",0,IF(C29="",0,AF29*VLOOKUP(C29,Lijsten!$P$3:$Q$6,2,FALSE))) -> 0 | I29: =IF(H29<>"ja",0,IF(C29="",0,VLOOKUP(C29,Lijsten!$P$9:$Q$13,2,FALSE))) -> 0 | K29: =IF($C29="",0,IF(J29<>"ja",0,Z29*VLOOKUP($C29,Lijsten!$P$16:$Q$19,2,FALSE))) -> 0 | M29: =IF($C29="",0,IF(L29<>"ja",0,VLOOKUP($C29,Lijsten!$P$23:$Q$26,2,FALSE))) -> 0 | O29: =IF($E29="",0,IF(N29<>"ja",0,VLOOKUP($E29,Lijsten!$P$30:$Q$31,2,FALSE))) -> 0 | P29: =G29+I29+K29+M29+O29 -> 0 | Q29: FALSE | R29: =AND(C29="Kat",E29="") -> FALSE | S29: 0 | T29: =IF(AND(C29<> "Kleine Herkauwer",C29<>"",D29=""),1,0) -> 0 | U29: =IF(AND(B29&D29&E29&F29&H29&J29&L29&N29<>"",C29=""),1,0) -> 0 | W29: =IF(AND(C29="Hond",J29="ja",OR(F29<>"ja",H29<>"ja")),1,0) -> 0 | X29: =IF(AND(C29="Paard/Pony/Ezel",J29="ja",OR(F29<>"ja",H29<>"ja")),1,0) -> 0 | Y29: 0 | Z29: =IF(Y29=0,1,0) -> 1 | AB29: =IF(OR(AND(A29=1,F29="ja",H29<>"ja"),AND(A29=1,F29="ja",J29<>"ja")),1,0) -> 0 | AC29: =IF(OR(AND(A29=4,F29="ja",H29<>"ja"),AND(A29=4,F29="ja",J29<>"ja")),1,0) -> 0 | AD29: =IF(AND(A29=2,F29="ja",H29<>"ja"),1,0) -> 0 | AE29: =AB29+AC29+AD29 -> 0 | AF29: =IF(AE29=0,1,0) -> 1
A30: =IF(C30="",0,VLOOKUP(C30,Lijsten!$P$3:$R$6,3,FALSE)) -> 0 | G30: =IF(F30<>"ja",0,IF(C30="",0,AF30*VLOOKUP(C30,Lijsten!$P$3:$Q$6,2,FALSE))) -> 0 | I30: =IF(H30<>"ja",0,IF(C30="",0,VLOOKUP(C30,Lijsten!$P$9:$Q$13,2,FALSE))) -> 0 | K30: =IF($C30="",0,IF(J30<>"ja",0,Z30*VLOOKUP($C30,Lijsten!$P$16:$Q$19,2,FALSE))) -> 0 | M30: =IF($C30="",0,IF(L30<>"ja",0,VLOOKUP($C30,Lijsten!$P$23:$Q$26,2,FALSE))) -> 0 | O30: =IF($E30="",0,IF(N30<>"ja",0,VLOOKUP($E30,Lijsten!$P$30:$Q$31,2,FALSE))) -> 0 | P30: 0 | Q30: FALSE | R30: =AND(C30="Kat",E30="") -> FALSE | S30: 0 | T30: 0 | U30: 0 | W30: 0 | X30: 0 | Y30: 0 | Z30: 1 | AB30: =IF(OR(AND(A30=1,F30="ja",H30<>"ja"),AND(A30=1,F30="ja",J30<>"ja")),1,0) -> 0 | AC30: 0 | AD30: 0 | AE30: 0 | AF30: 1
A31: =IF(C31="",0,VLOOKUP(C31,Lijsten!$P$3:$R$6,3,FALSE)) -> 0 | G31: =IF(F31<>"ja",0,IF(C31="",0,AF31*VLOOKUP(C31,Lijsten!$P$3:$Q$6,2,FALSE))) -> 0 | I31: =IF(H31<>"ja",0,IF(C31="",0,VLOOKUP(C31,Lijsten!$P$9:$Q$13,2,FALSE))) -> 0 | K31: =IF($C31="",0,IF(J31<>"ja",0,Z31*VLOOKUP($C31,Lijsten!$P$16:$Q$19,2,FALSE))) -> 0 | M31: =IF($C31="",0,IF(L31<>"ja",0,VLOOKUP($C31,Lijsten!$P$23:$Q$26,2,FALSE))) -> 0 | O31: =IF($E31="",0,IF(N31<>"ja",0,VLOOKUP($E31,Lijsten!$P$30:$Q$31,2,FALSE))) -> 0 | P31: 0 | Q31: FALSE | R31: FALSE | S31: 0 | T31: 0 | U31: 0 | W31: 0 | X31: 0 | Y31: 0 | Z31: 1 | AB31: 0 | AC31: 0 | AD31: 0 | AE31: 0 | AF31: 1
A32: =IF(C32="",0,VLOOKUP(C32,Lijsten!$P$3:$R$6,3,FALSE)) -> 0 | G32: =IF(F32<>"ja",0,IF(C32="",0,AF32*VLOOKUP(C32,Lijsten!$P$3:$Q$6,2,FALSE))) -> 0 | I32: =IF(H32<>"ja",0,IF(C32="",0,VLOOKUP(C32,Lijsten!$P$9:$Q$13,2,FALSE))) -> 0 | K32: =IF($C32="",0,IF(J32<>"ja",0,Z32*VLOOKUP($C32,Lijsten!$P$16:$Q$19,2,FALSE))) -> 0 | M32: =IF($C32="",0,IF(L32<>"ja",0,VLOOKUP($C32,Lijsten!$P$23:$Q$26,2,FALSE))) -> 0 | O32: =IF($E32="",0,IF(N32<>"ja",0,VLOOKUP($E32,Lijsten!$P$30:$Q$31,2,FALSE))) -> 0 | P32: 0 | Q32: FALSE | R32: FALSE | S32: 0 | T32: 0 | U32: 0 | W32: 0 | X32: 0 | Y32: 0 | Z32: 1 | AB32: 0 | AC32: 0 | AD32: 0 | AE32: 0 | AF32: 1
A33: =IF(C33="",0,VLOOKUP(C33,Lijsten!$P$3:$R$6,3,FALSE)) -> 0 | G33: =IF(F33<>"ja",0,IF(C33="",0,AF33*VLOOKUP(C33,Lijsten!$P$3:$Q$6,2,FALSE))) -> 0 | I33: =IF(H33<>"ja",0,IF(C33="",0,VLOOKUP(C33,Lijsten!$P$9:$Q$13,2,FALSE))) -> 0 | K33: =IF($C33="",0,IF(J33<>"ja",0,Z33*VLOOKUP($C33,Lijsten!$P$16:$Q$19,2,FALSE))) -> 0 | M33: =IF($C33="",0,IF(L33<>"ja",0,VLOOKUP($C33,Lijsten!$P$23:$Q$26,2,FALSE))) -> 0 | O33: =IF($E33="",0,IF(N33<>"ja",0,VLOOKUP($E33,Lijsten!$P$30:$Q$31,2,FALSE))) -> 0 | P33: 0 | Q33: FALSE | R33: FALSE | S33: 0 | T33: 0 | U33: 0 | W33: 0 | X33: 0 | Y33: 0 | Z33: 1 | AB33: 0 | AC33: 0 | AD33: 0 | AE33: 0 | AF33: 1
A34: =IF(C34="",0,VLOOKUP(C34,Lijsten!$P$3:$R$6,3,FALSE)) -> 0 | G34: =IF(F34<>"ja",0,IF(C34="",0,AF34*VLOOKUP(C34,Lijsten!$P$3:$Q$6,2,FALSE))) -> 0 | I34: =IF(H34<>"ja",0,IF(C34="",0,VLOOKUP(C34,Lijsten!$P$9:$Q$13,2,FALSE))) -> 0 | K34: =IF($C34="",0,IF(J34<>"ja",0,Z34*VLOOKUP($C34,Lijsten!$P$16:$Q$19,2,FALSE))) -> 0 | M34: =IF($C34="",0,IF(L34<>"ja",0,VLOOKUP($C34,Lijsten!$P$23:$Q$26,2,FALSE))) -> 0 | O34: =IF($E34="",0,IF(N34<>"ja",0,VLOOKUP($E34,Lijsten!$P$30:$Q$31,2,FALSE))) -> 0 | P34: 0 | Q34: FALSE | R34: =AND(C34="Kat",E34="") -> FALSE | S34: 0 | T34: 0 | U34: 0 | W34: 0 | X34: 0 | Y34: 0 | Z34: 1 | AB34: 0 | AC34: 0 | AD34: 0 | AE34: 0 | AF34: 1
A35: =IF(C35="",0,VLOOKUP(C35,Lijsten!$P$3:$R$6,3,FALSE)) -> 0 | G35: =IF(F35<>"ja",0,IF(C35="",0,AF35*VLOOKUP(C35,Lijsten!$P$3:$Q$6,2,FALSE))) -> 0 | I35: =IF(H35<>"ja",0,IF(C35="",0,VLOOKUP(C35,Lijsten!$P$9:$Q$13,2,FALSE))) -> 0 | K35: =IF($C35="",0,IF(J35<>"ja",0,Z35*VLOOKUP($C35,Lijsten!$P$16:$Q$19,2,FALSE))) -> 0 | M35: =IF($C35="",0,IF(L35<>"ja",0,VLOOKUP($C35,Lijsten!$P$23:$Q$26,2,FALSE))) -> 0 | O35: =IF($E35="",0,IF(N35<>"ja",0,VLOOKUP($E35,Lijsten!$P$30:$Q$31,2,FALSE))) -> 0 | P35: 0 | Q35: FALSE | R35: =AND(C35="Kat",E35="") -> FALSE | S35: 0 | T35: 0 | U35: 0 | W35: 0 | X35: 0 | Y35: 0 | Z35: 1 | AB35: 0 | AC35: 0 | AD35: 0 | AE35: 0 | AF35: 1
A36: =IF(C36="",0,VLOOKUP(C36,Lijsten!$P$3:$R$6,3,FALSE)) -> 0 | G36: =IF(F36<>"ja",0,IF(C36="",0,AF36*VLOOKUP(C36,Lijsten!$P$3:$Q$6,2,FALSE))) -> 0 | I36: =IF(H36<>"ja",0,IF(C36="",0,VLOOKUP(C36,Lijsten!$P$9:$Q$13,2,FALSE))) -> 0 | K36: =IF($C36="",0,IF(J36<>"ja",0,Z36*VLOOKUP($C36,Lijsten!$P$16:$Q$19,2,FALSE))) -> 0 | M36: =IF($C36="",0,IF(L36<>"ja",0,VLOOKUP($C36,Lijsten!$P$23:$Q$26,2,FALSE))) -> 0 | O36: =IF($E36="",0,IF(N36<>"ja",0,VLOOKUP($E36,Lijsten!$P$30:$Q$31,2,FALSE))) -> 0 | P36: 0 | Q36: FALSE | R36: FALSE | S36: 0 | T36: 0 | U36: 0 | W36: 0 | X36: 0 | Y36: 0 | Z36: 1 | AB36: 0 | AC36: 0 | AD36: 0 | AE36: 0 | AF36: 1
A37: =IF(C37="",0,VLOOKUP(C37,Lijsten!$P$3:$R$6,3,FALSE)) -> 0 | G37: =IF(F37<>"ja",0,IF(C37="",0,AF37*VLOOKUP(C37,Lijsten!$P$3:$Q$6,2,FALSE))) -> 0 | I37: =IF(H37<>"ja",0,IF(C37="",0,VLOOKUP(C37,Lijsten!$P$9:$Q$13,2,FALSE))) -> 0 | K37: =IF($C37="",0,IF(J37<>"ja",0,Z37*VLOOKUP($C37,Lijsten!$P$16:$Q$19,2,FALSE))) -> 0 | M37: =IF($C37="",0,IF(L37<>"ja",0,VLOOKUP($C37,Lijsten!$P$23:$Q$26,2,FALSE))) -> 0 | O37: =IF($E37="",0,IF(N37<>"ja",0,VLOOKUP($E37,Lijsten!$P$30:$Q$31,2,FALSE))) -> 0 | P37: 0 | Q37: FALSE | R37: FALSE | S37: 0 | T37: 0 | U37: 0 | W37: 0 | X37: 0 | Y37: 0 | Z37: 1 | AB37: 0 | AC37: 0 | AD37: 0 | AE37: 0 | AF37: 1
A38: =IF(C38="",0,VLOOKUP(C38,Lijsten!$P$3:$R$6,3,FALSE)) -> 0 | G38: =IF(F38<>"ja",0,IF(C38="",0,AF38*VLOOKUP(C38,Lijsten!$P$3:$Q$6,2,FALSE))) -> 0 | I38: =IF(H38<>"ja",0,IF(C38="",0,VLOOKUP(C38,Lijsten!$P$9:$Q$13,2,FALSE))) -> 0 | K38: =IF($C38="",0,IF(J38<>"ja",0,Z38*VLOOKUP($C38,Lijsten!$P$16:$Q$19,2,FALSE))) -> 0 | M38: =IF($C38="",0,IF(L38<>"ja",0,VLOOKUP($C38,Lijsten!$P$23:$Q$26,2,FALSE))) -> 0 | O38: =IF($E38="",0,IF(N38<>"ja",0,VLOOKUP($E38,Lijsten!$P$30:$Q$31,2,FALSE))) -> 0 | P38: 0 | Q38: FALSE | R38: FALSE | S38: 0 | T38: 0 | U38: 0 | W38: 0 | X38: 0 | Y38: 0 | Z38: 1 | AB38: 0 | AC38: 0 | AD38: 0 | AE38: 0 | AF38: 1
A39: =IF(C39="",0,VLOOKUP(C39,Lijsten!$P$3:$R$6,3,FALSE)) -> 0 | G39: =IF(F39<>"ja",0,IF(C39="",0,AF39*VLOOKUP(C39,Lijsten!$P$3:$Q$6,2,FALSE))) -> 0 | I39: =IF(H39<>"ja",0,IF(C39="",0,VLOOKUP(C39,Lijsten!$P$9:$Q$13,2,FALSE))) -> 0 | K39: =IF($C39="",0,IF(J39<>"ja",0,Z39*VLOOKUP($C39,Lijsten!$P$16:$Q$19,2,FALSE))) -> 0 | M39: =IF($C39="",0,IF(L39<>"ja",0,VLOOKUP($C39,Lijsten!$P$23:$Q$26,2,FALSE))) -> 0 | O39: =IF($E39="",0,IF(N39<>"ja",0,VLOOKUP($E39,Lijsten!$P$30:$Q$31,2,FALSE))) -> 0 | P39: 0 | Q39: FALSE | R39: FALSE | S39: 0 | T39: 0 | U39: 0 | W39: 0 | X39: 0 | Y39: 0 | Z39: 1 | AB39: 0 | AC39: 0 | AD39: 0 | AE39: 0 | AF39: 1
A40: =IF(C40="",0,VLOOKUP(C40,Lijsten!$P$3:$R$6,3,FALSE)) -> 0 | G40: =IF(F40<>"ja",0,IF(C40="",0,AF40*VLOOKUP(C40,Lijsten!$P$3:$Q$6,2,FALSE))) -> 0 | I40: =IF(H40<>"ja",0,IF(C40="",0,VLOOKUP(C40,Lijsten!$P$9:$Q$13,2,FALSE))) -> 0 | K40: =IF($C40="",0,IF(J40<>"ja",0,Z40*VLOOKUP($C40,Lijsten!$P$16:$Q$19,2,FALSE))) -> 0 | M40: =IF($C40="",0,IF(L40<>"ja",0,VLOOKUP($C40,Lijsten!$P$23:$Q$26,2,FALSE))) -> 0 | O40: =IF($E40="",0,IF(N40<>"ja",0,VLOOKUP($E40,Lijsten!$P$30:$Q$31,2,FALSE))) -> 0 | P40: 0 | Q40: FALSE | R40: FALSE | S40: 0 | T40: 0 | U40: 0 | W40: 0 | X40: 0 | Y40: 0 | Z40: 1 | AB40: 0 | AC40: 0 | AD40: 0 | AE40: 0 | AF40: 1
S42: =SUM(S11:S40)+SUM(T11:T40)+SUM(U11:U40)+SUM(Y11:Y40)+SUM(AE11:AE40) -> 0
E1048: =IF(C1048<>"",VLOOKUP(C1048,Lijsten!$A$3:$C$4,2,FALSE),"") ->  | F1048: =IF(A1048<>"",VLOOKUP(A1048,Lijsten!$A$3:$C$4,3,FALSE),"") ->  | G1048: =IF(B1048<Afstanddrempel,C1048,C1048+(B1048-Afstanddrempel)*F1048) -> 0 | N1048: =IF(C1048<>"",VLOOKUP(C1048,Lijsten!$A$3:$C$4,3,FALSE),"") ->  | O1048: =IF(D1048<Afstanddrempel,E1048,E1048+(D1048-Afstanddrempel)*N1048) -> 

Sheet rapport-tab (hidden)
K1: =Startpagina!B1 -> versie 1.26
A6: Facturatie dierenasielen
A8: =Startpagina!B8 -> Naam dierenasiel | E8: =Naam -> 0 | F8: =Startpagina!D8 -> verplicht veld
A9: =Startpagina!B9 -> Erkenningsnummer (HK30999999) | E9: =HKNummer -> 0 | F9: =Startpagina!D9 -> verplicht veld
A10: =Startpagina!B10 -> Ondernemingsnummer (0999999999) | E10: =KBONummer -> 0 | F10: =Startpagina!D10 -> verplicht veld
A12: =Startpagina!B12 -> Dossiernummer | E12: =Dossiernummer -> 0 | F12: =Startpagina!D12 -> verplicht veld
A13: =Startpagina!B13 -> Datum IBN (dd/mm/jjjj) | E13: =Startpagina!C13 -> 0 | F13: =Startpagina!D13 -> verplicht veld | G13: =Startpagina!E13 -> maximaal 2 jaar terug in de tijd | H13: =Startpagina!F13 -> Tab Dierenarts pas invullen vanaf datum IBN 01/06/2023
A14: =Startpagina!B14 -> Datum bestemmingsbeslissing (dd/mm/jjjj) (*) | E14: =Startpagina!C14 -> 00:00:00 | F14: =Startpagina!D14 -> 
A15: =Startpagina!B15 -> Factuurdatum (dd/mm/jjjj) | E15: =Startpagina!C15 -> 00:00:00 | F15: =Startpagina!D15 -> verplicht veld | H15: =Startpagina!F15 -> Factuurdatum vanaf 01/01/2022
A16: =Startpagina!B16 -> Dit bestand is de bijlage bij factuur met nummer | E16: =Startpagina!C16 -> 0
A17: =Startpagina!B17 -> Bedrag op te nemen op de factuur | E17: =Startpagina!C17 -> 0
E19: =Startpagina!B19 -> Uitsplitsing
D20: =Startpagina!B20 -> Transport | E20: =Startpagina!C20 -> 0
D21: =Startpagina!B21 -> Individuele dieren | E21: =Startpagina!C21 -> 0
D22: =Startpagina!B22 -> Dieren per Interval | E22: =Startpagina!C22 -> 0
D23: =Startpagina!B23 -> Diergeneeskundig verslag | E23: =Startpagina!C23 -> 0 | F23: =Startpagina!D23 -> Niet van toepassing
D24: =Startpagina!B24 -> Dierenartskosten | E24: =Startpagina!C24 -> 0 | F24: =Startpagina!D24 -> Niet van toepassing
A27: * of datum ophaling door de eigenaar of, bij niet-ophaling, de uiterste datum voor ophaling zoals in de bestemmingsbeslissing vastgelegd
A29: Het dierenasiel is verantwoordelijk voor de juistheid van alle aan de afdeling overgemaakte gegevens.
A33: =$E$12 -> 0 | B33: =NOW() -> 2023-09-22T15:35:42.090 | H33: =E8 -> 0 | K33: =E9 -> 0
G34: =Transport!H1 -> TOTAAL
A35: =Transport!B2 -> Transport | G35: =Transport!H2 -> 0
A36: =Transport!B3 -> Vervoermiddel | B36: =Transport!C3 -> Datum rit | C36: =Transport!D3 -> Aantal km (Heen en terug) | D36: =Transport!E3 -> Forfait km HT | E36: =Transport!F3 -> Km vergoeding boven forfait | F36: =Transport!G3 -> Totaal | G36: =Transport!H3 -> Commentaar
A37: =IF(Transport!B4="","",Transport!B4) ->  | B37: =IF(Transport!B4="","",Transport!C4) ->  | C37: =IF(Transport!D4="","",Transport!D4) ->  | D37: =IF(Transport!E4="","",Transport!E4) ->  | E37: =Transport!F4 ->  | F37: =Transport!G4 ->  | G37: =IF(Transport!H4="","",Transport!H4) -> 
A38: =IF(Transport!B5="","",Transport!B5) ->  | B38: =IF(Transport!B5="","",Transport!C5) ->  | C38: =IF(Transport!D5="","",Transport!D5) ->  | D38: =IF(Transport!E5="","",Transport!E5) ->  | E38: =Transport!F5 ->  | F38: =Transport!G5 ->  | G38: =IF(Transport!H5="","",Transport!H5) -> 
A39: =IF(Transport!B6="","",Transport!B6) ->  | B39: =IF(Transport!B6="","",Transport!C6) ->  | C39: =IF(Transport!D6="","",Transport!D6) ->  | D39: =IF(Transport!E6="","",Transport!E6) ->  | E39: =Transport!F6 ->  | F39: =Transport!G6 ->  | G39: =IF(Transport!H6="","",Transport!H6) -> 
A40: =IF(Transport!B7="","",Transport!B7) ->  | B40: =IF(Transport!B7="","",Transport!C7) ->  | C40: =IF(Transport!D7="","",Transport!D7) ->  | D40: =IF(Transport!E7="","",Transport!E7) ->  | E40: =Transport!F7 ->  | F40: =Transport!G7 ->  | G40: =IF(Transport!H7="","",Transport!H7) -> 
A41: =IF(Transport!B8="","",Transport!B8) ->  | B41: =IF(Transport!B8="","",Transport!C8) ->  | C41: =IF(Transport!D8="","",Transport!D8) ->  | D41: =IF(Transport!E8="","",Transport!E8) ->  | E41: =Transport!F8 ->  | F41: =Transport!G8 ->  | G41: =IF(Transport!H8="","",Transport!H8) -> 
A42: =IF(Transport!B9="","",Transport!B9) ->  | B42: =IF(Transport!B9="","",Transport!C9) ->  | C42: =IF(Transport!D9="","",Transport!D9) ->  | D42: =IF(Transport!E9="","",Transport!E9) ->  | E42: =Transport!F9 ->  | F42: =Transport!G9 ->  | G42: =IF(Transport!H9="","",Transport!H9) -> 
A43: =IF(Transport!B10="","",Transport!B10) ->  | B43: =IF(Transport!B10="","",Transport!C10) ->  | C43: =IF(Transport!D10="","",Transport!D10) ->  | D43: =IF(Transport!E10="","",Transport!E10) ->  | E43: =Transport!F10 ->  | F43: =Transport!G10 ->  | G43: =IF(Transport!H10="","",Transport!H10) -> 
A44: =IF(Transport!B11="","",Transport!B11) ->  | B44: =IF(Transport!B11="","",Transport!C11) ->  | C44: =IF(Transport!D11="","",Transport!D11) ->  | D44: =IF(Transport!E11="","",Transport!E11) ->  | E44: =Transport!F11 ->  | F44: =Transport!G11 ->  | G44: =IF(Transport!H11="","",Transport!H11) -> 
A45: =IF(Transport!B12="","",Transport!B12) ->  | B45: =IF(Transport!B12="","",Transport!C12) ->  | C45: =IF(Transport!D12="","",Transport!D12) ->  | D45: =IF(Transport!E12="","",Transport!E12) ->  | E45: =Transport!F12 ->  | F45: =Transport!G12 ->  | G45: =IF(Transport!H12="","",Transport!H12) -> 
A46: =IF(Transport!B13="","",Transport!B13) ->  | B46: =IF(Transport!B13="","",Transport!C13) ->  | C46: =IF(Transport!D13="","",Transport!D13) ->  | D46: =IF(Transport!E13="","",Transport!E13) ->  | E46: =Transport!F13 ->  | F46: =Transport!G13 ->  | G46: =IF(Transport!H13="","",Transport!H13) -> 
A47: =IF(Transport!B14="","",Transport!B14) ->  | B47: =IF(Transport!B14="","",Transport!C14) ->  | C47: =IF(Transport!D14="","",Transport!D14) ->  | D47: =IF(Transport!E14="","",Transport!E14) ->  | E47: =Transport!F14 ->  | F47: =Transport!G14 ->  | G47: =IF(Transport!H14="","",Transport!H14) -> 
B48: =IF(Transport!B18="","",Transport!C18) ->  | C48: =IF(Transport!D18="","",Transport!D18) ->  | D48: =IF(Transport!E18="","",Transport!E18) ->  | E48: =Transport!F18 ->  | F48: =Transport!G18 ->  | G48: =IF(Transport!H18="","",Transport!H18) -> 
H49: ='Individuele dieren'!I1 -> TOTAAL
A50: ='Individuele dieren'!B2 -> Individuele dieren | H50: ='Individuele dieren'!I2 -> 0
A51: ='Individuele dieren'!B3 -> Diersoort | B51: ='Individuele dieren'!C3 -> Tarief per dier | C51: ='Individuele dieren'!D3 -> Aantal | D51: ='Individuele dieren'!E3 -> Datum in | E51: ='Individuele dieren'!F3 -> Datum uit | F51: ='Individuele dieren'!G3 -> Aantal dagen | G51: ='Individuele dieren'!H3 -> Totaal | H51: ='Individuele dieren'!I3 -> Commentaar
A52: =IF('Individuele dieren'!B4>0,'Individuele dieren'!B4,"") ->  | B52: =IF('Individuele dieren'!C4>0,'Individuele dieren'!C4,"") ->  | C52: =IF('Individuele dieren'!B4>0,'Individuele dieren'!D4,"") ->  | D52: =IF('Individuele dieren'!B4>0,'Individuele dieren'!E4,"") ->  | E52: =IF('Individuele dieren'!B4>0,'Individuele dieren'!F4,"") ->  | F52: =IF('Individuele dieren'!B4>0,'Individuele dieren'!G4,"") ->  | G52: =IF('Individuele dieren'!H4>0,'Individuele dieren'!H4,"") ->  | H52: =IF('Individuele dieren'!I4>0,'Individuele dieren'!I4,"") -> 
A53: =IF('Individuele dieren'!B5>0,'Individuele dieren'!B5,"") ->  | B53: =IF('Individuele dieren'!C5>0,'Individuele dieren'!C5,"") ->  | C53: =IF('Individuele dieren'!B5>0,'Individuele dieren'!D5,"") ->  | D53: =IF('Individuele dieren'!B5>0,'Individuele dieren'!E5,"") ->  | E53: =IF('Individuele dieren'!B5>0,'Individuele dieren'!F5,"") ->  | F53: =IF('Individuele dieren'!B5>0,'Individuele dieren'!G5,"") ->  | G53: =IF('Individuele dieren'!H5>0,'Individuele dieren'!H5,"") ->  | H53: =IF('Individuele dieren'!I5>0,'Individuele dieren'!I5,"") -> 
A54: =IF('Individuele dieren'!B6>0,'Individuele dieren'!B6,"") ->  | B54: =IF('Individuele dieren'!C6>0,'Individuele dieren'!C6,"") ->  | C54: =IF('Individuele dieren'!B6>0,'Individuele dieren'!D6,"") ->  | D54: =IF('Individuele dieren'!B6>0,'Individuele dieren'!E6,"") ->  | E54: =IF('Individuele dieren'!B6>0,'Individuele dieren'!F6,"") ->  | F54: =IF('Individuele dieren'!B6>0,'Individuele dieren'!G6,"") ->  | G54: =IF('Individuele dieren'!H6>0,'Individuele dieren'!H6,"") ->  | H54: =IF('Individuele dieren'!I6>0,'Individuele dieren'!I6,"") -> 
A55: =IF('Individuele dieren'!B7>0,'Individuele dieren'!B7,"") ->  | B55: =IF('Individuele dieren'!C7>0,'Individuele dieren'!C7,"") ->  | C55: =IF('Individuele dieren'!B7>0,'Individuele dieren'!D7,"") ->  | D55: =IF('Individuele dieren'!B7>0,'Individuele dieren'!E7,"") ->  | E55: =IF('Individuele dieren'!B7>0,'Individuele dieren'!F7,"") ->  | F55: =IF('Individuele dieren'!B7>0,'Individuele dieren'!G7,"") ->  | G55: =IF('Individuele dieren'!H7>0,'Individuele dieren'!H7,"") ->  | H55: =IF('Individuele dieren'!I7>0,'Individuele dieren'!I7,"") -> 
A56: =IF('Individuele dieren'!B8>0,'Individuele dieren'!B8,"") ->  | B56: =IF('Individuele dieren'!C8>0,'Individuele dieren'!C8,"") ->  | C56: =IF('Individuele dieren'!B8>0,'Individuele dieren'!D8,"") ->  | D56: =IF('Individuele dieren'!B8>0,'Individuele dieren'!E8,"") ->  | E56: =IF('Individuele dieren'!B8>0,'Individuele dieren'!F8,"") ->  | F56: =IF('Individuele dieren'!B8>0,'Individuele dieren'!G8,"") ->  | G56: =IF('Individuele dieren'!H8>0,'Individuele dieren'!H8,"") ->  | H56: =IF('Individuele dieren'!I8>0,'Individuele dieren'!I8,"") -> 
A57: =IF('Individuele dieren'!B9>0,'Individuele dieren'!B9,"") ->  | B57: =IF('Individuele dieren'!C9>0,'Individuele dieren'!C9,"") ->  | C57: =IF('Individuele dieren'!B9>0,'Individuele dieren'!D9,"") ->  | D57: =IF('Individuele dieren'!B9>0,'Individuele dieren'!E9,"") ->  | E57: =IF('Individuele dieren'!B9>0,'Individuele dieren'!F9,"") ->  | F57: =IF('Individuele dieren'!B9>0,'Individuele dieren'!G9,"") ->  | G57: =IF('Individuele dieren'!H9>0,'Individuele dieren'!H9,"") ->  | H57: =IF('Individuele dieren'!I9>0,'Individuele dieren'!I9,"") -> 
A58: =IF('Individuele dieren'!B10>0,'Individuele dieren'!B10,"") ->  | B58: =IF('Individuele dieren'!C10>0,'Individuele dieren'!C10,"") ->  | C58: =IF('Individuele dieren'!B10>0,'Individuele dieren'!D10,"") ->  | D58: =IF('Individuele dieren'!B10>0,'Individuele dieren'!E10,"") ->  | E58: =IF('Individuele dieren'!B10>0,'Individuele dieren'!F10,"") ->  | F58: =IF('Individuele dieren'!B10>0,'Individuele dieren'!G10,"") ->  | G58: =IF('Individuele dieren'!H10>0,'Individuele dieren'!H10,"") ->  | H58: =IF('Individuele dieren'!I10>0,'Individuele dieren'!I10,"") -> 
A59: =IF('Individuele dieren'!B11>0,'Individuele dieren'!B11,"") ->  | B59: =IF('Individuele dieren'!C11>0,'Individuele dieren'!C11,"") ->  | C59: =IF('Individuele dieren'!B11>0,'Individuele dieren'!D11,"") ->  | D59: =IF('Individuele dieren'!B11>0,'Individuele dieren'!E11,"") ->  | E59: =IF('Individuele dieren'!B11>0,'Individuele dieren'!F11,"") ->  | F59: =IF('Individuele dieren'!B11>0,'Individuele dieren'!G11,"") ->  | G59: =IF('Individuele dieren'!H11>0,'Individuele dieren'!H11,"") ->  | H59: =IF('Individuele dieren'!I11>0,'Individuele dieren'!I11,"") -> 
A60: =IF('Individuele dieren'!B12>0,'Individuele dieren'!B12,"") ->  | B60: =IF('Individuele dieren'!C12>0,'Individuele dieren'!C12,"") ->  | C60: =IF('Individuele dieren'!B12>0,'Individuele dieren'!D12,"") ->  | D60: =IF('Individuele dieren'!B12>0,'Individuele dieren'!E12,"") ->  | E60: =IF('Individuele dieren'!B12>0,'Individuele dieren'!F12,"") ->  | F60: =IF('Individuele dieren'!B12>0,'Individuele dieren'!G12,"") ->  | G60: =IF('Individuele dieren'!H12>0,'Individuele dieren'!H12,"") ->  | H60: =IF('Individuele dieren'!I12>0,'Individuele dieren'!I12,"") -> 
A61: =IF('Individuele dieren'!B13>0,'Individuele dieren'!B13,"") ->  | B61: =IF('Individuele dieren'!C13>0,'Individuele dieren'!C13,"") ->  | C61: =IF('Individuele dieren'!B13>0,'Individuele dieren'!D13,"") ->  | D61: =IF('Individuele dieren'!B13>0,'Individuele dieren'!E13,"") ->  | E61: =IF('Individuele dieren'!B13>0,'Individuele dieren'!F13,"") ->  | F61: =IF('Individuele dieren'!B13>0,'Individuele dieren'!G13,"") ->  | G61: =IF('Individuele dieren'!H13>0,'Individuele dieren'!H13,"") ->  | H61: =IF('Individuele dieren'!I13>0,'Individuele dieren'!I13,"") -> 
A63: =A95 -> 0 | B63: =NOW() -> 2023-09-22T15:35:42.090 | H63: =H95 -> 0 | K63: =K95 -> 0
I64: =Interval!K1 -> TOTAAL
A65: =Interval!B2 -> Dieren per Interval | I65: =Interval!K2 -> 0
A66: =Interval!B3 -> In/Uitheems | B66: =Interval!C3 -> Diersoort | C66: =Interval!D3 -> Aantal | D66: =Interval!F3 -> Bedrag per interval | E66: =Interval!G3 -> Datum in | F66: =Interval!H3 -> Datum uit | G66: =Interval!I3 -> Aantal dagen | H66: =Interval!J3 -> Totaal | I66: =Interval!K3 -> Commentaar
A67: =IF(Interval!B4<>"",Interval!B4,"") ->  | B67: =IF(Interval!C4<>"",Interval!C4,"") ->  | C67: =IF(Interval!D4<>"",Interval!D4,"") ->  | D67: =IF(Interval!F4=0,"",Interval!F4) ->  | E67: =IF(Interval!F4="","",Interval!G4) ->  | F67: =IF(Interval!F4="","",Interval!H4) ->  | G67: =IF(Interval!C4<>"",Interval!I4,"") ->  | H67: =IF(Interval!C4<>"",Interval!J4,"") ->  | I67: =IF(Interval!K4<>"",Interval!K4,"") -> 
A68: =IF(Interval!B5<>"",Interval!B5,"") ->  | B68: =IF(Interval!C5<>"",Interval!C5,"") ->  | C68: =IF(Interval!D5<>"",Interval!D5,"") ->  | D68: =IF(Interval!F5=0,"",Interval!F5) ->  | E68: =IF(Interval!F5="","",Interval!G5) ->  | F68: =IF(Interval!F5="","",Interval!H5) ->  | G68: =IF(Interval!C5<>"",Interval!I5,"") ->  | H68: =IF(Interval!C5<>"",Interval!J5,"") ->  | I68: =IF(Interval!K5<>"",Interval!K5,"") -> 
A69: =IF(Interval!B6<>"",Interval!B6,"") ->  | B69: =IF(Interval!C6<>"",Interval!C6,"") ->  | C69: =IF(Interval!D6<>"",Interval!D6,"") ->  | D69: =IF(Interval!F6=0,"",Interval!F6) ->  | E69: =IF(Interval!F6="","",Interval!G6) ->  | F69: =IF(Interval!F6="","",Interval!H6) ->  | G69: =IF(Interval!C6<>"",Interval!I6,"") ->  | H69: =IF(Interval!C6<>"",Interval!J6,"") ->  | I69: =IF(Interval!K6<>"",Interval!K6,"") -> 
A70: =IF(Interval!B7<>"",Interval!B7,"") ->  | B70: =IF(Interval!C7<>"",Interval!C7,"") ->  | C70: =IF(Interval!D7<>"",Interval!D7,"") ->  | D70: =IF(Interval!F7=0,"",Interval!F7) ->  | E70: =IF(Interval!F7="","",Interval!G7) ->  | F70: =IF(Interval!F7="","",Interval!H7) ->  | G70: =IF(Interval!C7<>"",Interval!I7,"") ->  | H70: =IF(Interval!C7<>"",Interval!J7,"") ->  | I70: =IF(Interval!K7<>"",Interval!K7,"") -> 
A71: =IF(Interval!B8<>"",Interval!B8,"") ->  | B71: =IF(Interval!C8<>"",Interval!C8,"") ->  | C71: =IF(Interval!D8<>"",Interval!D8,"") ->  | D71: =IF(Interval!F8=0,"",Interval!F8) ->  | E71: =IF(Interval!F8="","",Interval!G8) ->  | F71: =IF(Interval!F8="","",Interval!H8) ->  | G71: =IF(Interval!C8<>"",Interval!I8,"") ->  | H71: =IF(Interval!C8<>"",Interval!J8,"") ->  | I71: =IF(Interval!K8<>"",Interval!K8,"") -> 
A72: =IF(Interval!B9<>"",Interval!B9,"") ->  | B72: =IF(Interval!C9<>"",Interval!C9,"") ->  | C72: =IF(Interval!D9<>"",Interval!D9,"") ->  | D72: =IF(Interval!F9=0,"",Interval!F9) ->  | E72: =IF(Interval!F9="","",Interval!G9) ->  | F72: =IF(Interval!F9="","",Interval!H9) ->  | G72: =IF(Interval!C9<>"",Interval!I9,"") ->  | H72: =IF(Interval!C9<>"",Interval!J9,"") ->  | I72: =IF(Interval!K9<>"",Interval!K9,"") -> 
A73: =IF(Interval!B10<>"",Interval!B10,"") ->  | B73: =IF(Interval!C10<>"",Interval!C10,"") ->  | C73: =IF(Interval!D10<>"",Interval!D10,"") ->  | D73: =IF(Interval!F10=0,"",Interval!F10) ->  | E73: =IF(Interval!F10="","",Interval!G10) ->  | F73: =IF(Interval!F10="","",Interval!H10) ->  | G73: =IF(Interval!C10<>"",Interval!I10,"") ->  | H73: =IF(Interval!C10<>"",Interval!J10,"") ->  | I73: =IF(Interval!K10<>"",Interval!K10,"") -> 
A74: =IF(Interval!B11<>"",Interval!B11,"") ->  | B74: =IF(Interval!C11<>"",Interval!C11,"") ->  | C74: =IF(Interval!D11<>"",Interval!D11,"") ->  | D74: =IF(Interval!F11=0,"",Interval!F11) ->  | E74: =IF(Interval!F11="","",Interval!G11) ->  | F74: =IF(Interval!F11="","",Interval!H11) ->  | G74: =IF(Interval!C11<>"",Interval!I11,"") ->  | H74: =IF(Interval!C11<>"",Interval!J11,"") ->  | I74: =IF(Interval!K11<>"",Interval!K11,"") -> 
A75: =IF(Interval!B12<>"",Interval!B12,"") ->  | B75: =IF(Interval!C12<>"",Interval!C12,"") ->  | C75: =IF(Interval!D12<>"",Interval!D12,"") ->  | D75: =IF(Interval!F12=0,"",Interval!F12) ->  | E75: =IF(Interval!F12="","",Interval!G12) ->  | F75: =IF(Interval!F12="","",Interval!H12) ->  | G75: =IF(Interval!C12<>"",Interval!I12,"") ->  | H75: =IF(Interval!C12<>"",Interval!J12,"") ->  | I75: =IF(Interval!K12<>"",Interval!K12,"") -> 
A76: =IF(Interval!B13<>"",Interval!B13,"") ->  | B76: =IF(Interval!C13<>"",Interval!C13,"") ->  | C76: =IF(Interval!D13<>"",Interval!D13,"") ->  | D76: =IF(Interval!F13=0,"",Interval!F13) ->  | E76: =IF(Interval!F13="","",Interval!G13) ->  | F76: =IF(Interval!F13="","",Interval!H13) ->  | G76: =IF(Interval!C13<>"",Interval!I13,"") ->  | H76: =IF(Interval!C13<>"",Interval!J13,"") ->  | I76: =IF(Interval!K13<>"",Interval!K13,"") -> 
A77: =IF(Interval!B14<>"",Interval!B14,"") ->  | B77: =IF(Interval!C14<>"",Interval!C14,"") ->  | C77: =IF(Interval!D14<>"",Interval!D14,"") ->  | D77: =IF(Interval!F14=0,"",Interval!F14) ->  | E77: =IF(Interval!F14="","",Interval!G14) ->  | F77: =IF(Interval!F14="","",Interval!H14) ->  | G77: =IF(Interval!C14<>"",Interval!I14,"") ->  | H77: =IF(Interval!C14<>"",Interval!J14,"") ->  | I77: =IF(Interval!K14<>"",Interval!K14,"") -> 
A78: =IF(Interval!B15<>"",Interval!B15,"") ->  | B78: =IF(Interval!C15<>"",Interval!C15,"") ->  | C78: =IF(Interval!D15<>"",Interval!D15,"") ->  | D78: =IF(Interval!F15=0,"",Interval!F15) ->  | E78: =IF(Interval!F15="","",Interval!G15) ->  | F78: =IF(Interval!F15="","",Interval!H15) ->  | G78: =IF(Interval!C15<>"",Interval!I15,"") ->  | H78: =IF(Interval!C15<>"",Interval!J15,"") ->  | I78: =IF(Interval!K15<>"",Interval!K15,"") -> 
A79: =IF(Interval!B16<>"",Interval!B16,"") ->  | B79: =IF(Interval!C16<>"",Interval!C16,"") ->  | C79: =IF(Interval!D16<>"",Interval!D16,"") ->  | D79: =IF(Interval!F16=0,"",Interval!F16) ->  | E79: =IF(Interval!F16="","",Interval!G16) ->  | F79: =IF(Interval!F16="","",Interval!H16) ->  | G79: =IF(Interval!C16<>"",Interval!I16,"") ->  | H79: =IF(Interval!C16<>"",Interval!J16,"") ->  | I79: =IF(Interval!K16<>"",Interval!K16,"") -> 
A80: =IF(Interval!B17<>"",Interval!B17,"") ->  | B80: =IF(Interval!C17<>"",Interval!C17,"") ->  | C80: =IF(Interval!D17<>"",Interval!D17,"") ->  | D80: =IF(Interval!F17=0,"",Interval!F17) ->  | E80: =IF(Interval!F17="","",Interval!G17) ->  | F80: =IF(Interval!F17="","",Interval!H17) ->  | G80: =IF(Interval!C17<>"",Interval!I17,"") ->  | H80: =IF(Interval!C17<>"",Interval!J17,"") ->  | I80: =IF(Interval!K17<>"",Interval!K17,"") -> 
A81: =IF(Interval!B18<>"",Interval!B18,"") ->  | B81: =IF(Interval!C18<>"",Interval!C18,"") ->  | C81: =IF(Interval!D18<>"",Interval!D18,"") ->  | D81: =IF(Interval!F18=0,"",Interval!F18) ->  | E81: =IF(Interval!F18="","",Interval!G18) ->  | F81: =IF(Interval!F18="","",Interval!H18) ->  | G81: =IF(Interval!C18<>"",Interval!I18,"") ->  | H81: =IF(Interval!C18<>"",Interval!J18,"") ->  | I81: =IF(Interval!K18<>"",Interval!K18,"") -> 
A95: =A33 -> 0 | B95: =B33 -> 2023-09-22T15:35:42.090 | H95: =H33 -> 0 | K95: =K33 -> 0
K97: =Dierenarts!P1 -> TOTAAL
A98: =Dierenarts!B2 -> Diergeneeskundig verslag | F98: =Dierenarts!I3 -> Tab Dierenarts pas invullen vanaf datum IBN 01/06/2023 | K98: =Dierenarts!P2 -> 0
A99: =Dierenarts!B3 -> Dierenarts | B99: =Dierenarts!C3 -> Datum | C99: =Dierenarts!D3 -> Aantal dieren | D99: =Dierenarts!E3 -> EUR
A100: =Dierenarts!B4 -> 0 | B100: =Dierenarts!C4 -> 00:00:00 | C100: =Dierenarts!D4 -> 0 | D100: =Dierenarts!E4 -> 0
A101: =Dierenarts!B5 -> 0 | B101: =Dierenarts!C5 -> 00:00:00 | C101: =Dierenarts!D5 -> 0 | D101: =Dierenarts!E5 -> 0
A102: =Dierenarts!B6 -> 0 | B102: =Dierenarts!C6 -> 00:00:00 | C102: =Dierenarts!D6 -> 0 | D102: =Dierenarts!E6 -> 0
A103: =Dierenarts!B7 -> 0 | B103: =Dierenarts!C7 -> 00:00:00 | C103: =Dierenarts!D7 -> 0 | D103: =Dierenarts!E7 -> 0
A105: =Dierenarts!B9 -> Dierenartskosten | C105: =Dierenarts!D9 ->  | K105: =Dierenarts!P9 -> 0
A106: =Dierenarts!B10 -> Naam/ omschrijving | B106: =Dierenarts!C10 -> Diersoort | C106: =Dierenarts!D10 -> Identificatie-nummer | D106: =Dierenarts!E10 -> Geslacht (enkel bij Kat) | E106: =Dierenarts!F10 -> Identificeren | F106: =Dierenarts!H10 -> Registreren | G106: =Dierenarts!J10 -> Paspoort | H106: =Dierenarts!L10 -> Vaccinatie | I106: =Dierenarts!N10 -> Sterilisatie/ castratie | K106: =Dierenarts!P10 -> Totaal
A107: =IF(Dierenarts!B11<>"",Dierenarts!B11,"") ->  | B107: =IF(Dierenarts!C11<>"",Dierenarts!C11,"") ->  | C107: =IF(Dierenarts!D11<>"",Dierenarts!D11,"") ->  | D107: =IF(Dierenarts!E11<>"",Dierenarts!E11,"") ->  | E107: =IF(Dierenarts!F11<>"",Dierenarts!F11,"") ->  | F107: =IF(Dierenarts!H11<>"",Dierenarts!H11,"") ->  | G107: =IF(Dierenarts!J11<>"",Dierenarts!J11,"") ->  | H107: =IF(Dierenarts!L11<>"",Dierenarts!L11,"") ->  | I107: =IF(Dierenarts!N11<>"",Dierenarts!N11,"") ->  | K107: =IF(Dierenarts!P11<>"",Dierenarts!P11,"") -> 0
A108: =IF(Dierenarts!B12<>"",Dierenarts!B12,"") ->  | B108: =IF(Dierenarts!C12<>"",Dierenarts!C12,"") ->  | C108: =IF(Dierenarts!D12<>"",Dierenarts!D12,"") ->  | D108: =IF(Dierenarts!E12<>"",Dierenarts!E12,"") ->  | E108: =IF(Dierenarts!F12<>"",Dierenarts!F12,"") ->  | F108: =IF(Dierenarts!H12<>"",Dierenarts!H12,"") ->  | G108: =IF(Dierenarts!J12<>"",Dierenarts!J12,"") ->  | H108: =IF(Dierenarts!L12<>"",Dierenarts!L12,"") ->  | I108: =IF(Dierenarts!N12<>"",Dierenarts!N12,"") ->  | K108: =IF(Dierenarts!P12<>"",Dierenarts!P12,"") -> 0
A109: =IF(Dierenarts!B13<>"",Dierenarts!B13,"") ->  | B109: =IF(Dierenarts!C13<>"",Dierenarts!C13,"") ->  | C109: =IF(Dierenarts!D13<>"",Dierenarts!D13,"") ->  | D109: =IF(Dierenarts!E13<>"",Dierenarts!E13,"") ->  | E109: =IF(Dierenarts!F13<>"",Dierenarts!F13,"") ->  | F109: =IF(Dierenarts!H13<>"",Dierenarts!H13,"") ->  | G109: =IF(Dierenarts!J13<>"",Dierenarts!J13,"") ->  | H109: =IF(Dierenarts!L13<>"",Dierenarts!L13,"") ->  | I109: =IF(Dierenarts!N13<>"",Dierenarts!N13,"") ->  | K109: =IF(Dierenarts!P13<>"",Dierenarts!P13,"") -> 0
A110: =IF(Dierenarts!B14<>"",Dierenarts!B14,"") ->  | B110: =IF(Dierenarts!C14<>"",Dierenarts!C14,"") ->  | C110: =IF(Dierenarts!D14<>"",Dierenarts!D14,"") ->  | D110: =IF(Dierenarts!E14<>"",Dierenarts!E14,"") ->  | E110: =IF(Dierenarts!F14<>"",Dierenarts!F14,"") ->  | F110: =IF(Dierenarts!H14<>"",Dierenarts!H14,"") ->  | G110: =IF(Dierenarts!J14<>"",Dierenarts!J14,"") ->  | H110: =IF(Dierenarts!L14<>"",Dierenarts!L14,"") ->  | I110: =IF(Dierenarts!N14<>"",Dierenarts!N14,"") ->  | K110: =IF(Dierenarts!P14<>"",Dierenarts!P14,"") -> 0
A111: =IF(Dierenarts!B15<>"",Dierenarts!B15,"") ->  | B111: =IF(Dierenarts!C15<>"",Dierenarts!C15,"") ->  | C111: =IF(Dierenarts!D15<>"",Dierenarts!D15,"") ->  | D111: =IF(Dierenarts!E15<>"",Dierenarts!E15,"") ->  | E111: =IF(Dierenarts!F15<>"",Dierenarts!F15,"") ->  | F111: =IF(Dierenarts!H15<>"",Dierenarts!H15,"") ->  | G111: =IF(Dierenarts!J15<>"",Dierenarts!J15,"") ->  | H111: =IF(Dierenarts!L15<>"",Dierenarts!L15,"") ->  | I111: =IF(Dierenarts!N15<>"",Dierenarts!N15,"") ->  | K111: =IF(Dierenarts!P15<>"",Dierenarts!P15,"") -> 0
A112: =IF(Dierenarts!B16<>"",Dierenarts!B16,"") ->  | B112: =IF(Dierenarts!C16<>"",Dierenarts!C16,"") ->  | C112: =IF(Dierenarts!D16<>"",Dierenarts!D16,"") ->  | D112: =IF(Dierenarts!E16<>"",Dierenarts!E16,"") ->  | E112: =IF(Dierenarts!F16<>"",Dierenarts!F16,"") ->  | F112: =IF(Dierenarts!H16<>"",Dierenarts!H16,"") ->  | G112: =IF(Dierenarts!J16<>"",Dierenarts!J16,"") ->  | H112: =IF(Dierenarts!L16<>"",Dierenarts!L16,"") ->  | I112: =IF(Dierenarts!N16<>"",Dierenarts!N16,"") ->  | K112: =IF(Dierenarts!P16<>"",Dierenarts!P16,"") -> 0
A113: =IF(Dierenarts!B17<>"",Dierenarts!B17,"") ->  | B113: =IF(Dierenarts!C17<>"",Dierenarts!C17,"") ->  | C113: =IF(Dierenarts!D17<>"",Dierenarts!D17,"") ->  | D113: =IF(Dierenarts!E17<>"",Dierenarts!E17,"") ->  | E113: =IF(Dierenarts!F17<>"",Dierenarts!F17,"") ->  | F113: =IF(Dierenarts!H17<>"",Dierenarts!H17,"") ->  | G113: =IF(Dierenarts!J17<>"",Dierenarts!J17,"") ->  | H113: =IF(Dierenarts!L17<>"",Dierenarts!L17,"") ->  | I113: =IF(Dierenarts!N17<>"",Dierenarts!N17,"") ->  | K113: =IF(Dierenarts!P17<>"",Dierenarts!P17,"") -> 0
A114: =IF(Dierenarts!B18<>"",Dierenarts!B18,"") ->  | B114: =IF(Dierenarts!C18<>"",Dierenarts!C18,"") ->  | C114: =IF(Dierenarts!D18<>"",Dierenarts!D18,"") ->  | D114: =IF(Dierenarts!E18<>"",Dierenarts!E18,"") ->  | E114: =IF(Dierenarts!F18<>"",Dierenarts!F18,"") ->  | F114: =IF(Dierenarts!H18<>"",Dierenarts!H18,"") ->  | G114: =IF(Dierenarts!J18<>"",Dierenarts!J18,"") ->  | H114: =IF(Dierenarts!L18<>"",Dierenarts!L18,"") ->  | I114: =IF(Dierenarts!N18<>"",Dierenarts!N18,"") ->  | K114: =IF(Dierenarts!P18<>"",Dierenarts!P18,"") -> 0
A115: =IF(Dierenarts!B19<>"",Dierenarts!B19,"") ->  | B115: =IF(Dierenarts!C19<>"",Dierenarts!C19,"") ->  | C115: =IF(Dierenarts!D19<>"",Dierenarts!D19,"") ->  | D115: =IF(Dierenarts!E19<>"",Dierenarts!E19,"") ->  | E115: =IF(Dierenarts!F19<>"",Dierenarts!F19,"") ->  | F115: =IF(Dierenarts!H19<>"",Dierenarts!H19,"") ->  | G115: =IF(Dierenarts!J19<>"",Dierenarts!J19,"") ->  | H115: =IF(Dierenarts!L19<>"",Dierenarts!L19,"") ->  | I115: =IF(Dierenarts!N19<>"",Dierenarts!N19,"") ->  | K115: =IF(Dierenarts!P19<>"",Dierenarts!P19,"") -> 0
A116: =IF(Dierenarts!B20<>"",Dierenarts!B20,"") ->  | B116: =IF(Dierenarts!C20<>"",Dierenarts!C20,"") ->  | C116: =IF(Dierenarts!D20<>"",Dierenarts!D20,"") ->  | D116: =IF(Dierenarts!E20<>"",Dierenarts!E20,"") ->  | E116: =IF(Dierenarts!F20<>"",Dierenarts!F20,"") ->  | F116: =IF(Dierenarts!H20<>"",Dierenarts!H20,"") ->  | G116: =IF(Dierenarts!J20<>"",Dierenarts!J20,"") ->  | H116: =IF(Dierenarts!L20<>"",Dierenarts!L20,"") ->  | I116: =IF(Dierenarts!N20<>"",Dierenarts!N20,"") ->  | K116: =IF(Dierenarts!P20<>"",Dierenarts!P20,"") -> 0
A117: =IF(Dierenarts!B21<>"",Dierenarts!B21,"") ->  | B117: =IF(Dierenarts!C21<>"",Dierenarts!C21,"") ->  | C117: =IF(Dierenarts!D21<>"",Dierenarts!D21,"") ->  | D117: =IF(Dierenarts!E21<>"",Dierenarts!E21,"") ->  | E117: =IF(Dierenarts!F21<>"",Dierenarts!F21,"") ->  | F117: =IF(Dierenarts!H21<>"",Dierenarts!H21,"") ->  | G117: =IF(Dierenarts!J21<>"",Dierenarts!J21,"") ->  | H117: =IF(Dierenarts!L21<>"",Dierenarts!L21,"") ->  | I117: =IF(Dierenarts!N21<>"",Dierenarts!N21,"") ->  | K117: =IF(Dierenarts!P21<>"",Dierenarts!P21,"") -> 0
A118: =IF(Dierenarts!B22<>"",Dierenarts!B22,"") ->  | B118: =IF(Dierenarts!C22<>"",Dierenarts!C22,"") ->  | C118: =IF(Dierenarts!D22<>"",Dierenarts!D22,"") ->  | D118: =IF(Dierenarts!E22<>"",Dierenarts!E22,"") ->  | E118: =IF(Dierenarts!F22<>"",Dierenarts!F22,"") ->  | F118: =IF(Dierenarts!H22<>"",Dierenarts!H22,"") ->  | G118: =IF(Dierenarts!J22<>"",Dierenarts!J22,"") ->  | H118: =IF(Dierenarts!L22<>"",Dierenarts!L22,"") ->  | I118: =IF(Dierenarts!N22<>"",Dierenarts!N22,"") ->  | K118: =IF(Dierenarts!P22<>"",Dierenarts!P22,"") -> 0
A119: =IF(Dierenarts!B23<>"",Dierenarts!B23,"") ->  | B119: =IF(Dierenarts!C23<>"",Dierenarts!C23,"") ->  | C119: =IF(Dierenarts!D23<>"",Dierenarts!D23,"") ->  | D119: =IF(Dierenarts!E23<>"",Dierenarts!E23,"") ->  | E119: =IF(Dierenarts!F23<>"",Dierenarts!F23,"") ->  | F119: =IF(Dierenarts!H23<>"",Dierenarts!H23,"") ->  | G119: =IF(Dierenarts!J23<>"",Dierenarts!J23,"") ->  | H119: =IF(Dierenarts!L23<>"",Dierenarts!L23,"") ->  | I119: =IF(Dierenarts!N23<>"",Dierenarts!N23,"") ->  | K119: =IF(Dierenarts!P23<>"",Dierenarts!P23,"") -> 0
A120: =IF(Dierenarts!B24<>"",Dierenarts!B24,"") ->  | B120: =IF(Dierenarts!C24<>"",Dierenarts!C24,"") ->  | C120: =IF(Dierenarts!D24<>"",Dierenarts!D24,"") ->  | D120: =IF(Dierenarts!E24<>"",Dierenarts!E24,"") ->  | E120: =IF(Dierenarts!F24<>"",Dierenarts!F24,"") ->  | F120: =IF(Dierenarts!H24<>"",Dierenarts!H24,"") ->  | G120: =IF(Dierenarts!J24<>"",Dierenarts!J24,"") ->  | H120: =IF(Dierenarts!L24<>"",Dierenarts!L24,"") ->  | I120: =IF(Dierenarts!N24<>"",Dierenarts!N24,"") ->  | K120: =IF(Dierenarts!P24<>"",Dierenarts!P24,"") -> 0
A121: =IF(Dierenarts!B25<>"",Dierenarts!B25,"") ->  | B121: =IF(Dierenarts!C25<>"",Dierenarts!C25,"") ->  | C121: =IF(Dierenarts!D25<>"",Dierenarts!D25,"") ->  | D121: =IF(Dierenarts!E25<>"",Dierenarts!E25,"") ->  | E121: =IF(Dierenarts!F25<>"",Dierenarts!F25,"") ->  | F121: =IF(Dierenarts!H25<>"",Dierenarts!H25,"") ->  | G121: =IF(Dierenarts!J25<>"",Dierenarts!J25,"") ->  | H121: =IF(Dierenarts!L25<>"",Dierenarts!L25,"") ->  | I121: =IF(Dierenarts!N25<>"",Dierenarts!N25,"") ->  | K121: =IF(Dierenarts!P25<>"",Dierenarts!P25,"") -> 0
A122: =IF(Dierenarts!B26<>"",Dierenarts!B26,"") ->  | B122: =IF(Dierenarts!C26<>"",Dierenarts!C26,"") ->  | C122: =IF(Dierenarts!D26<>"",Dierenarts!D26,"") ->  | D122: =IF(Dierenarts!E26<>"",Dierenarts!E26,"") ->  | E122: =IF(Dierenarts!F26<>"",Dierenarts!F26,"") ->  | F122: =IF(Dierenarts!H26<>"",Dierenarts!H26,"") ->  | G122: =IF(Dierenarts!J26<>"",Dierenarts!J26,"") ->  | H122: =IF(Dierenarts!L26<>"",Dierenarts!L26,"") ->  | I122: =IF(Dierenarts!N26<>"",Dierenarts!N26,"") ->  | K122: =IF(Dierenarts!P26<>"",Dierenarts!P26,"") -> 0
A123: =IF(Dierenarts!B27<>"",Dierenarts!B27,"") ->  | B123: =IF(Dierenarts!C27<>"",Dierenarts!C27,"") ->  | C123: =IF(Dierenarts!D27<>"",Dierenarts!D27,"") ->  | D123: =IF(Dierenarts!E27<>"",Dierenarts!E27,"") ->  | E123: =IF(Dierenarts!F27<>"",Dierenarts!F27,"") ->  | F123: =IF(Dierenarts!H27<>"",Dierenarts!H27,"") ->  | G123: =IF(Dierenarts!J27<>"",Dierenarts!J27,"") ->  | H123: =IF(Dierenarts!L27<>"",Dierenarts!L27,"") ->  | I123: =IF(Dierenarts!N27<>"",Dierenarts!N27,"") ->  | K123: =IF(Dierenarts!P27<>"",Dierenarts!P27,"") -> 0
A124: =IF(Dierenarts!B28<>"",Dierenarts!B28,"") ->  | B124: =IF(Dierenarts!C28<>"",Dierenarts!C28,"") ->  | C124: =IF(Dierenarts!D28<>"",Dierenarts!D28,"") ->  | D124: =IF(Dierenarts!E28<>"",Dierenarts!E28,"") ->  | E124: =IF(Dierenarts!F28<>"",Dierenarts!F28,"") ->  | F124: =IF(Dierenarts!H28<>"",Dierenarts!H28,"") ->  | G124: =IF(Dierenarts!J28<>"",Dierenarts!J28,"") ->  | H124: =IF(Dierenarts!L28<>"",Dierenarts!L28,"") ->  | I124: =IF(Dierenarts!N28<>"",Dierenarts!N28,"") ->  | K124: =IF(Dierenarts!P28<>"",Dierenarts!P28,"") -> 0
A125: =IF(Dierenarts!B29<>"",Dierenarts!B29,"") ->  | B125: =IF(Dierenarts!C29<>"",Dierenarts!C29,"") ->  | C125: =IF(Dierenarts!D29<>"",Dierenarts!D29,"") ->  | D125: =IF(Dierenarts!E29<>"",Dierenarts!E29,"") ->  | E125: =IF(Dierenarts!F29<>"",Dierenarts!F29,"") ->  | F125: =IF(Dierenarts!H29<>"",Dierenarts!H29,"") ->  | G125: =IF(Dierenarts!J29<>"",Dierenarts!J29,"") ->  | H125: =IF(Dierenarts!L29<>"",Dierenarts!L29,"") ->  | I125: =IF(Dierenarts!N29<>"",Dierenarts!N29,"") ->  | K125: =IF(Dierenarts!P29<>"",Dierenarts!P29,"") -> 0
A126: =IF(Dierenarts!B30<>"",Dierenarts!B30,"") ->  | B126: =IF(Dierenarts!C30<>"",Dierenarts!C30,"") ->  | C126: =IF(Dierenarts!D30<>"",Dierenarts!D30,"") ->  | D126: =IF(Dierenarts!E30<>"",Dierenarts!E30,"") ->  | E126: =IF(Dierenarts!F30<>"",Dierenarts!F30,"") ->  | F126: =IF(Dierenarts!H30<>"",Dierenarts!H30,"") ->  | G126: =IF(Dierenarts!J30<>"",Dierenarts!J30,"") ->  | H126: =IF(Dierenarts!L30<>"",Dierenarts!L30,"") ->  | I126: =IF(Dierenarts!N30<>"",Dierenarts!N30,"") ->  | K126: =IF(Dierenarts!P30<>"",Dierenarts!P30,"") -> 0
A127: =IF(Dierenarts!B31<>"",Dierenarts!B31,"") ->  | B127: =IF(Dierenarts!C31<>"",Dierenarts!C31,"") ->  | C127: =IF(Dierenarts!D31<>"",Dierenarts!D31,"") ->  | D127: =IF(Dierenarts!E31<>"",Dierenarts!E31,"") ->  | E127: =IF(Dierenarts!F31<>"",Dierenarts!F31,"") ->  | F127: =IF(Dierenarts!H31<>"",Dierenarts!H31,"") ->  | G127: =IF(Dierenarts!J31<>"",Dierenarts!J31,"") ->  | H127: =IF(Dierenarts!L31<>"",Dierenarts!L31,"") ->  | I127: =IF(Dierenarts!N31<>"",Dierenarts!N31,"") ->  | K127: =IF(Dierenarts!P31<>"",Dierenarts!P31,"") -> 0
A128: =IF(Dierenarts!B32<>"",Dierenarts!B32,"") ->  | B128: =IF(Dierenarts!C32<>"",Dierenarts!C32,"") ->  | C128: =IF(Dierenarts!D32<>"",Dierenarts!D32,"") ->  | D128: =IF(Dierenarts!E32<>"",Dierenarts!E32,"") ->  | E128: =IF(Dierenarts!F32<>"",Dierenarts!F32,"") ->  | F128: =IF(Dierenarts!H32<>"",Dierenarts!H32,"") ->  | G128: =IF(Dierenarts!J32<>"",Dierenarts!J32,"") ->  | H128: =IF(Dierenarts!L32<>"",Dierenarts!L32,"") ->  | I128: =IF(Dierenarts!N32<>"",Dierenarts!N32,"") ->  | K128: =IF(Dierenarts!P32<>"",Dierenarts!P32,"") -> 0
A129: =IF(Dierenarts!B33<>"",Dierenarts!B33,"") ->  | B129: =IF(Dierenarts!C33<>"",Dierenarts!C33,"") ->  | C129: =IF(Dierenarts!D33<>"",Dierenarts!D33,"") ->  | D129: =IF(Dierenarts!E33<>"",Dierenarts!E33,"") ->  | E129: =IF(Dierenarts!F33<>"",Dierenarts!F33,"") ->  | F129: =IF(Dierenarts!H33<>"",Dierenarts!H33,"") ->  | G129: =IF(Dierenarts!J33<>"",Dierenarts!J33,"") ->  | H129: =IF(Dierenarts!L33<>"",Dierenarts!L33,"") ->  | I129: =IF(Dierenarts!N33<>"",Dierenarts!N33,"") ->  | K129: =IF(Dierenarts!P33<>"",Dierenarts!P33,"") -> 0
A130: =IF(Dierenarts!B34<>"",Dierenarts!B34,"") ->  | B130: =IF(Dierenarts!C34<>"",Dierenarts!C34,"") ->  | C130: =IF(Dierenarts!D34<>"",Dierenarts!D34,"") ->  | D130: =IF(Dierenarts!E34<>"",Dierenarts!E34,"") ->  | E130: =IF(Dierenarts!F34<>"",Dierenarts!F34,"") ->  | F130: =IF(Dierenarts!H34<>"",Dierenarts!H34,"") ->  | G130: =IF(Dierenarts!J34<>"",Dierenarts!J34,"") ->  | H130: =IF(Dierenarts!L34<>"",Dierenarts!L34,"") ->  | I130: =IF(Dierenarts!N34<>"",Dierenarts!N34,"") ->  | K130: =IF(Dierenarts!P34<>"",Dierenarts!P34,"") -> 0
A131: =IF(Dierenarts!B35<>"",Dierenarts!B35,"") ->  | B131: =IF(Dierenarts!C35<>"",Dierenarts!C35,"") ->  | C131: =IF(Dierenarts!D35<>"",Dierenarts!D35,"") ->  | D131: =IF(Dierenarts!E35<>"",Dierenarts!E35,"") ->  | E131: =IF(Dierenarts!F35<>"",Dierenarts!F35,"") ->  | F131: =IF(Dierenarts!H35<>"",Dierenarts!H35,"") ->  | G131: =IF(Dierenarts!J35<>"",Dierenarts!J35,"") ->  | H131: =IF(Dierenarts!L35<>"",Dierenarts!L35,"") ->  | I131: =IF(Dierenarts!N35<>"",Dierenarts!N35,"") ->  | K131: =IF(Dierenarts!P35<>"",Dierenarts!P35,"") -> 0
A132: =IF(Dierenarts!B36<>"",Dierenarts!B36,"") ->  | B132: =IF(Dierenarts!C36<>"",Dierenarts!C36,"") ->  | C132: =IF(Dierenarts!D36<>"",Dierenarts!D36,"") ->  | D132: =IF(Dierenarts!E36<>"",Dierenarts!E36,"") ->  | E132: =IF(Dierenarts!F36<>"",Dierenarts!F36,"") ->  | F132: =IF(Dierenarts!H36<>"",Dierenarts!H36,"") ->  | G132: =IF(Dierenarts!J36<>"",Dierenarts!J36,"") ->  | H132: =IF(Dierenarts!L36<>"",Dierenarts!L36,"") ->  | I132: =IF(Dierenarts!N36<>"",Dierenarts!N36,"") ->  | K132: =IF(Dierenarts!P36<>"",Dierenarts!P36,"") -> 0
A133: =IF(Dierenarts!B37<>"",Dierenarts!B37,"") ->  | B133: =IF(Dierenarts!C37<>"",Dierenarts!C37,"") ->  | C133: =IF(Dierenarts!D37<>"",Dierenarts!D37,"") ->  | D133: =IF(Dierenarts!E37<>"",Dierenarts!E37,"") ->  | E133: =IF(Dierenarts!F37<>"",Dierenarts!F37,"") ->  | F133: =IF(Dierenarts!H37<>"",Dierenarts!H37,"") ->  | G133: =IF(Dierenarts!J37<>"",Dierenarts!J37,"") ->  | H133: =IF(Dierenarts!L37<>"",Dierenarts!L37,"") ->  | I133: =IF(Dierenarts!N37<>"",Dierenarts!N37,"") ->  | K133: =IF(Dierenarts!P37<>"",Dierenarts!P37,"") -> 0
A134: =IF(Dierenarts!B38<>"",Dierenarts!B38,"") ->  | B134: =IF(Dierenarts!C38<>"",Dierenarts!C38,"") ->  | C134: =IF(Dierenarts!D38<>"",Dierenarts!D38,"") ->  | D134: =IF(Dierenarts!E38<>"",Dierenarts!E38,"") ->  | E134: =IF(Dierenarts!F38<>"",Dierenarts!F38,"") ->  | F134: =IF(Dierenarts!H38<>"",Dierenarts!H38,"") ->  | G134: =IF(Dierenarts!J38<>"",Dierenarts!J38,"") ->  | H134: =IF(Dierenarts!L38<>"",Dierenarts!L38,"") ->  | I134: =IF(Dierenarts!N38<>"",Dierenarts!N38,"") ->  | K134: =IF(Dierenarts!P38<>"",Dierenarts!P38,"") -> 0
A135: =IF(Dierenarts!B39<>"",Dierenarts!B39,"") ->  | B135: =IF(Dierenarts!C39<>"",Dierenarts!C39,"") ->  | C135: =IF(Dierenarts!D39<>"",Dierenarts!D39,"") ->  | D135: =IF(Dierenarts!E39<>"",Dierenarts!E39,"") ->  | E135: =IF(Dierenarts!F39<>"",Dierenarts!F39,"") ->  | F135: =IF(Dierenarts!H39<>"",Dierenarts!H39,"") ->  | G135: =IF(Dierenarts!J39<>"",Dierenarts!J39,"") ->  | H135: =IF(Dierenarts!L39<>"",Dierenarts!L39,"") ->  | I135: =IF(Dierenarts!N39<>"",Dierenarts!N39,"") ->  | K135: =IF(Dierenarts!P39<>"",Dierenarts!P39,"") -> 0
A136: =IF(Dierenarts!B40<>"",Dierenarts!B40,"") ->  | B136: =IF(Dierenarts!C40<>"",Dierenarts!C40,"") ->  | C136: =IF(Dierenarts!D40<>"",Dierenarts!D40,"") ->  | D136: =IF(Dierenarts!E40<>"",Dierenarts!E40,"") ->  | E136: =IF(Dierenarts!F40<>"",Dierenarts!F40,"") ->  | F136: =IF(Dierenarts!H40<>"",Dierenarts!H40,"") ->  | G136: =IF(Dierenarts!J40<>"",Dierenarts!J40,"") ->  | H136: =IF(Dierenarts!L40<>"",Dierenarts!L40,"") ->  | I136: =IF(Dierenarts!N40<>"",Dierenarts!N40,"") ->  | K136: =IF(Dierenarts!P40<>"",Dierenarts!P40,"") -> 0
A138: =A63 -> 0 | B138: =NOW() -> 2023-09-22T15:35:42.090 | H138: =H63 -> 0 | K138: =K63 -> 0

Sheet Prices (hidden)
A1: nr | B1: combo hierop sorteren | D1: Category | E1: Name | F1: van | G1: tot | H1: prijs | N1: Uitheems
A2: 510 | B2: =D2&E2&TEXT(F2,"0000") -> InheemsAmfibieën0001 | C2: =H2 -> 3.15 | D2: Inheems | E2: Amfibieën | F2: 1 | G2: 5 | H2: 3.15 | I2: =D2&E2 -> InheemsAmfibieën
A3: 511 | B3: InheemsAmfibieën0006 | C3: 9.45 | D3: Inheems | E3: Amfibieën | F3: 6 | G3: 15 | H3: 9.45 | I3: InheemsAmfibieën
A4: 512 | B4: InheemsAmfibieën0016 | C4: 22.05 | D4: Inheems | E4: Amfibieën | F4: 16 | G4: 35 | H4: 22.05 | I4: InheemsAmfibieën
A5: 513 | B5: InheemsAmfibieën0036 | C5: 34.65 | D5: Inheems | E5: Amfibieën | F5: 36 | G5: 55 | H5: 34.65 | I5: InheemsAmfibieën
A6: 514 | B6: InheemsAmfibieën0051 | C6: 47.25 | D6: Inheems | E6: Amfibieën | F6: 51 | G6: 75 | H6: 47.25 | I6: InheemsAmfibieën
A7: 515 | B7: InheemsAmfibieën0076 | C7: 63 | D7: Inheems | E7: Amfibieën | F7: 76 | G7: 100 | H7: 63 | I7: InheemsAmfibieën
A8: 402 | B8: InheemsDuiven0001 | C8: 1.02 | D8: Inheems | E8: Duiven | F8: 1 | G8: 3 | H8: 1.02 | I8: InheemsDuiven
A9: 403 | B9: InheemsDuiven0004 | C9: 3.4 | D9: Inheems | E9: Duiven | F9: 4 | G9: 10 | H9: 3.4 | I9: InheemsDuiven
A10: 404 | B10: InheemsDuiven0011 | C10: 8.5 | D10: Inheems | E10: Duiven | F10: 11 | G10: 25 | H10: 8.5 | I10: InheemsDuiven
A11: 405 | B11: InheemsDuiven0026 | C11: 17 | D11: Inheems | E11: Duiven | F11: 26 | G11: 50 | H11: 17 | I11: InheemsDuiven
A12: 406 | B12: InheemsDuiven0051 | C12: 34 | D12: Inheems | E12: Duiven | F12: 51 | G12: 100 | H12: 34 | I12: InheemsDuiven
A13: 407 | B13: InheemsDuiven0101 | C13: 51 | D13: Inheems | E13: Duiven | F13: 101 | G13: 150 | H13: 51 | I13: InheemsDuiven
A14: 408 | B14: InheemsDuiven0151 | C14: 68 | D14: Inheems | E14: Duiven | F14: 151 | G14: 200 | H14: 68 | I14: InheemsDuiven
A15: 409 | B15: InheemsDuiven0201 | C15: 85 | D15: Inheems | E15: Duiven | F15: 201 | G15: 250 | H15: 85 | I15: InheemsDuiven
A16: 410 | B16: InheemsDuiven0251 | C16: 102 | D16: Inheems | E16: Duiven | F16: 251 | G16: 300 | H16: 102 | I16: InheemsDuiven
A17: 411 | B17: InheemsDuiven0301 | C17: 119 | D17: Inheems | E17: Duiven | F17: 301 | G17: 350 | H17: 119 | I17: InheemsDuiven
A18: 412 | B18: InheemsDuiven0351 | C18: 136 | D18: Inheems | E18: Duiven | F18: 351 | G18: 400 | H18: 136 | I18: InheemsDuiven
A19: 413 | B19: InheemsDuiven0401 | C19: 153 | D19: Inheems | E19: Duiven | F19: 401 | G19: 450 | H19: 153 | I19: InheemsDuiven
A20: 414 | B20: InheemsDuiven0451 | C20: 170 | D20: Inheems | E20: Duiven | F20: 451 | G20: 500 | H20: 170 | I20: InheemsDuiven
A21: 415 | B21: InheemsEenden en hoenderen0001 | C21: 2.4 | D21: Inheems | E21: Eenden en hoenderen | F21: 1 | G21: 3 | H21: 2.4 | I21: InheemsEenden en hoenderen
A22: 416 | B22: InheemsEenden en hoenderen0004 | C22: 8 | D22: Inheems | E22: Eenden en hoenderen | F22: 4 | G22: 10 | H22: 8 | I22: InheemsEenden en hoenderen
A23: 417 | B23: InheemsEenden en hoenderen0011 | C23: 20 | D23: Inheems | E23: Eenden en hoenderen | F23: 11 | G23: 25 | H23: 20 | I23: InheemsEenden en hoenderen
A24: 418 | B24: InheemsEenden en hoenderen0026 | C24: 40 | D24: Inheems | E24: Eenden en hoenderen | F24: 26 | G24: 50 | H24: 40 | I24: InheemsEenden en hoenderen
A25: 419 | B25: InheemsEenden en hoenderen0051 | C25: 80 | D25: Inheems | E25: Eenden en hoenderen | F25: 51 | G25: 100 | H25: 80 | I25: InheemsEenden en hoenderen
A26: 420 | B26: InheemsEenden en hoenderen0101 | C26: 120 | D26: Inheems | E26: Eenden en hoenderen | F26: 101 | G26: 150 | H26: 120 | I26: InheemsEenden en hoenderen
A27: 421 | B27: InheemsEenden en hoenderen0151 | C27: 160 | D27: Inheems | E27: Eenden en hoenderen | F27: 151 | G27: 200 | H27: 160 | I27: InheemsEenden en hoenderen
A28: 422 | B28: InheemsEenden en hoenderen0201 | C28: 200 | D28: Inheems | E28: Eenden en hoenderen | F28: 201 | G28: 250 | H28: 200 | I28: InheemsEenden en hoenderen
A29: 423 | B29: InheemsEenden en hoenderen0251 | C29: 240 | D29: Inheems | E29: Eenden en hoenderen | F29: 251 | G29: 300 | H29: 240 | I29: InheemsEenden en hoenderen
A30: 424 | B30: InheemsEenden en hoenderen0301 | C30: 280 | D30: Inheems | E30: Eenden en hoenderen | F30: 301 | G30: 350 | H30: 280 | I30: InheemsEenden en hoenderen
A31: 425 | B31: InheemsEenden en hoenderen0351 | C31: 320 | D31: Inheems | E31: Eenden en hoenderen | F31: 351 | G31: 400 | H31: 320 | I31: InheemsEenden en hoenderen
A32: 426 | B32: InheemsEenden en hoenderen0401 | C32: 360 | D32: Inheems | E32: Eenden en hoenderen | F32: 401 | G32: 450 | H32: 360 | I32: InheemsEenden en hoenderen
A33: 427 | B33: InheemsEenden en hoenderen0451 | C33: 400 | D33: Inheems | E33: Eenden en hoenderen | F33: 451 | G33: 500 | H33: 400 | I33: InheemsEenden en hoenderen
A34: 522 | B34: InheemsFazant & Wilde Eend0001 | C34: 2.4 | D34: Inheems | E34: Fazant & Wilde Eend | F34: 1 | G34: 3 | H34: 2.4 | I34: InheemsFazant & Wilde Eend
A35: 523 | B35: InheemsFazant & Wilde Eend0004 | C35: 8 | D35: Inheems | E35: Fazant & Wilde Eend | F35: 4 | G35: 10 | H35: 8 | I35: InheemsFazant & Wilde Eend
A36: 524 | B36: InheemsFazant & Wilde Eend0011 | C36: 20 | D36: Inheems | E36: Fazant & Wilde Eend | F36: 11 | G36: 25 | H36: 20 | I36: InheemsFazant & Wilde Eend
A37: 525 | B37: InheemsFazant & Wilde Eend0026 | C37: 40 | D37: Inheems | E37: Fazant & Wilde Eend | F37: 26 | G37: 50 | H37: 40 | I37: InheemsFazant & Wilde Eend
A38: 526 | B38: InheemsFazant & Wilde Eend0051 | C38: 25 | D38: Inheems | E38: Fazant & Wilde Eend | F38: 51 | G38: 75 | H38: 25 | I38: InheemsFazant & Wilde Eend
A39: 527 | B39: InheemsFazant & Wilde Eend0076 | C39: 50 | D39: Inheems | E39: Fazant & Wilde Eend | F39: 76 | G39: 100 | H39: 50 | I39: InheemsFazant & Wilde Eend
A40: 528 | B40: InheemsFazant & Wilde Eend0101 | C40: 75 | D40: Inheems | E40: Fazant & Wilde Eend | F40: 101 | G40: 200 | H40: 75 | I40: InheemsFazant & Wilde Eend
A41: 529 | B41: InheemsFazant & Wilde Eend0201 | C41: 96 | D41: Inheems | E41: Fazant & Wilde Eend | F41: 201 | G41: 300 | H41: 96 | I41: InheemsFazant & Wilde Eend
A42: 530 | B42: InheemsFazant & Wilde Eend0301 | C42: 115 | D42: Inheems | E42: Fazant & Wilde Eend | F42: 301 | G42: 400 | H42: 115 | I42: InheemsFazant & Wilde Eend
A43: 531 | B43: InheemsFazant & Wilde Eend0401 | C43: 138 | D43: Inheems | E43: Fazant & Wilde Eend | F43: 401 | G43: 500 | H43: 138 | I43: InheemsFazant & Wilde Eend
A44: 532 | B44: InheemsFazant & Wilde Eend0501 | C44: 161 | D44: Inheems | E44: Fazant & Wilde Eend | F44: 501 | G44: 600 | H44: 161 | I44: InheemsFazant & Wilde Eend
A45: 533 | B45: InheemsFazant & Wilde Eend0601 | C45: 176 | D45: Inheems | E45: Fazant & Wilde Eend | F45: 601 | G45: 700 | H45: 176 | I45: InheemsFazant & Wilde Eend
A46: 534 | B46: InheemsFazant & Wilde Eend0701 | C46: 189 | D46: Inheems | E46: Fazant & Wilde Eend | F46: 701 | G46: 800 | H46: 189 | I46: InheemsFazant & Wilde Eend
A47: 535 | B47: InheemsFazant & Wilde Eend0801 | C47: 202 | D47: Inheems | E47: Fazant & Wilde Eend | F47: 801 | G47: 900 | H47: 202 | I47: InheemsFazant & Wilde Eend
A48: 536 | B48: InheemsFazant & Wilde Eend0901 | C48: 214 | D48: Inheems | E48: Fazant & Wilde Eend | F48: 901 | G48: 1000 | H48: 214 | I48: InheemsFazant & Wilde Eend
A49: 537 | B49: InheemsFazant & Wilde Eend1001 | C49: 300 | D49: Inheems | E49: Fazant & Wilde Eend | F49: 1001 | G49: 1500 | H49: 300 | I49: InheemsFazant & Wilde Eend
A50: 538 | B50: InheemsFazant & Wilde Eend1501 | C50: 375 | D50: Inheems | E50: Fazant & Wilde Eend | F50: 1501 | G50: 2000 | H50: 375 | I50: InheemsFazant & Wilde Eend
A51: 440 | B51: InheemsGanzen en zwanen0001 | C51: 3.45 | D51: Inheems | E51: Ganzen en zwanen | F51: 1 | G51: 3 | H51: 3.45 | I51: InheemsGanzen en zwanen
A52: 441 | B52: InheemsGanzen en zwanen0004 | C52: 11.5 | D52: Inheems | E52: Ganzen en zwanen | F52: 4 | G52: 10 | H52: 11.5 | I52: InheemsGanzen en zwanen
A53: 442 | B53: InheemsGanzen en zwanen0011 | C53: 28.75 | D53: Inheems | E53: Ganzen en zwanen | F53: 11 | G53: 25 | H53: 28.75 | I53: InheemsGanzen en zwanen
A54: 443 | B54: InheemsGanzen en zwanen0026 | C54: 57.5 | D54: Inheems | E54: Ganzen en zwanen | F54: 26 | G54: 50 | H54: 57.5 | I54: InheemsGanzen en zwanen
A55: 444 | B55: InheemsGanzen en zwanen0051 | C55: 86.25 | D55: Inheems | E55: Ganzen en zwanen | F55: 51 | G55: 75 | H55: 86.25 | I55: InheemsGanzen en zwanen
A56: 445 | B56: InheemsGanzen en zwanen0076 | C56: 115 | D56: Inheems | E56: Ganzen en zwanen | F56: 76 | G56: 100 | H56: 115 | I56: InheemsGanzen en zwanen
A57: 389 | B57: InheemsInsectenetende wildzang0001 | C57: 1.95 | D57: Inheems | E57: Insectenetende wildzang | F57: 1 | G57: 3 | H57: 1.95 | I57: InheemsInsectenetende wildzang
A58: 390 | B58: InheemsInsectenetende wildzang0004 | C58: 6.5 | D58: Inheems | E58: Insectenetende wildzang | F58: 4 | G58: 10 | H58: 6.5 | I58: InheemsInsectenetende wildzang
A59: 391 | B59: InheemsInsectenetende wildzang0011 | C59: 16.25 | D59: Inheems | E59: Insectenetende wildzang | F59: 11 | G59: 25 | H59: 16.25 | I59: InheemsInsectenetende wildzang
A60: 392 | B60: InheemsInsectenetende wildzang0026 | C60: 32.5 | D60: Inheems | E60: Insectenetende wildzang | F60: 26 | G60: 50 | H60: 32.5 | I60: InheemsInsectenetende wildzang
A61: 393 | B61: InheemsInsectenetende wildzang0051 | C61: 65 | D61: Inheems | E61: Insectenetende wildzang | F61: 51 | G61: 100 | H61: 65 | I61: InheemsInsectenetende wildzang
A62: 394 | B62: InheemsInsectenetende wildzang0101 | C62: 97.5 | D62: Inheems | E62: Insectenetende wildzang | F62: 101 | G62: 150 | H62: 97.5 | I62: InheemsInsectenetende wildzang
A63: 395 | B63: InheemsInsectenetende wildzang0151 | C63: 130 | D63: Inheems | E63: Insectenetende wildzang | F63: 151 | G63: 200 | H63: 130 | I63: InheemsInsectenetende wildzang
A64: 396 | B64: InheemsInsectenetende wildzang0201 | C64: 162.5 | D64: Inheems | E64: Insectenetende wildzang | F64: 201 | G64: 250 | H64: 162.5 | I64: InheemsInsectenetende wildzang
A65: 397 | B65: InheemsInsectenetende wildzang0251 | C65: 195 | D65: Inheems | E65: Insectenetende wildzang | F65: 251 | G65: 300 | H65: 195 | I65: InheemsInsectenetende wildzang
A66: 398 | B66: =D66&E66&TEXT(F66,"0000") -> InheemsInsectenetende wildzang0301 | C66: =H66 -> 227.5 | D66: Inheems | E66: Insectenetende wildzang | F66: 301 | G66: 350 | H66: 227.5 | I66: =D66&E66 -> InheemsInsectenetende wildzang
A67: 399 | B67: InheemsInsectenetende wildzang0351 | C67: 260 | D67: Inheems | E67: Insectenetende wildzang | F67: 351 | G67: 400 | H67: 260 | I67: InheemsInsectenetende wildzang
A68: 400 | B68: InheemsInsectenetende wildzang0401 | C68: 292.5 | D68: Inheems | E68: Insectenetende wildzang | F68: 401 | G68: 450 | H68: 292.5 | I68: InheemsInsectenetende wildzang
A69: 401 | B69: InheemsInsectenetende wildzang0451 | C69: 325 | D69: Inheems | E69: Insectenetende wildzang | F69: 451 | G69: 500 | H69: 325 | I69: InheemsInsectenetende wildzang
A70: 460 | B70: InheemsKraaiachtigen0001 | C70: 1.95 | D70: Inheems | E70: Kraaiachtigen | F70: 1 | G70: 3 | H70: 1.95 | I70: InheemsKraaiachtigen
A71: 461 | B71: InheemsKraaiachtigen0005 | C71: 6.5 | D71: Inheems | E71: Kraaiachtigen | F71: 5 | G71: 10 | H71: 6.5 | I71: InheemsKraaiachtigen
A72: 462 | B72: InheemsKraaiachtigen0011 | C72: 13 | D72: Inheems | E72: Kraaiachtigen | F72: 11 | G72: 20 | H72: 13 | I72: InheemsKraaiachtigen
A73: 463 | B73: InheemsKraaiachtigen0021 | C73: 22.75 | D73: Inheems | E73: Kraaiachtigen | F73: 21 | G73: 35 | H73: 22.75 | I73: InheemsKraaiachtigen
A74: 464 | B74: InheemsKraaiachtigen0036 | C74: 32.5 | D74: Inheems | E74: Kraaiachtigen | F74: 36 | G74: 50 | H74: 32.5 | I74: InheemsKraaiachtigen
A75: 465 | B75: InheemsKraaiachtigen0051 | C75: 48.75 | D75: Inheems | E75: Kraaiachtigen | F75: 51 | G75: 75 | H75: 48.75 | I75: InheemsKraaiachtigen
A76: 466 | B76: InheemsKraaiachtigen0076 | C76: 65 | D76: Inheems | E76: Kraaiachtigen | F76: 76 | G76: 100 | H76: 65 | I76: InheemsKraaiachtigen
A77: 539 | B77: InheemsMeeuwachtigen0001 | C77: 15.09 | D77: Inheems | E77: Meeuwachtigen | F77: 1 | G77: 3 | H77: 15.09 | I77: InheemsMeeuwachtigen
A78: 540 | B78: InheemsMeeuwachtigen0004 | C78: 30.18 | D78: Inheems | E78: Meeuwachtigen | F78: 4 | G78: 6 | H78: 30.18 | I78: InheemsMeeuwachtigen
A79: 541 | B79: InheemsMeeuwachtigen0007 | C79: 45.27 | D79: Inheems | E79: Meeuwachtigen | F79: 7 | G79: 9 | H79: 45.27 | I79: InheemsMeeuwachtigen
A80: 542 | B80: InheemsMeeuwachtigen0010 | C80: 60.36 | D80: Inheems | E80: Meeuwachtigen | F80: 10 | G80: 12 | H80: 60.36 | I80: InheemsMeeuwachtigen
A81: 543 | B81: InheemsMeeuwachtigen0013 | C81: 75.45 | D81: Inheems | E81: Meeuwachtigen | F81: 13 | G81: 15 | H81: 75.45 | I81: InheemsMeeuwachtigen
A82: 544 | B82: InheemsMeeuwachtigen0016 | C82: 85.51 | D82: Inheems | E82: Meeuwachtigen | F82: 16 | G82: 17 | H82: 85.51 | I82: InheemsMeeuwachtigen
A83: 545 | B83: InheemsMeeuwachtigen0018 | C83: 100.6 | D83: Inheems | E83: Meeuwachtigen | F83: 18 | G83: 20 | H83: 100.6 | I83: InheemsMeeuwachtigen
A84: 446 | B84: InheemsReigers, ooievaars, kraanvogels0001 | C84: 10.06 | D84: Inheems | E84: Reigers, ooievaars, kraanvogels | F84: 1 | G84: 2 | H84: 10.06 | I84: InheemsReigers, ooievaars, kraanvogels
A85: 447 | B85: InheemsReigers, ooievaars, kraanvogels0003 | C85: 25.15 | D85: Inheems | E85: Reigers, ooievaars, kraanvogels | F85: 3 | G85: 5 | H85: 25.15 | I85: InheemsReigers, ooievaars, kraanvogels
A86: 448 | B86: InheemsReigers, ooievaars, kraanvogels0006 | C86: 45.27 | D86: Inheems | E86: Reigers, ooievaars, kraanvogels | F86: 6 | G86: 9 | H86: 45.27 | I86: InheemsReigers, ooievaars, kraanvogels
A87: 449 | B87: InheemsReigers, ooievaars, kraanvogels0010 | C87: 60.36 | D87: Inheems | E87: Reigers, ooievaars, kraanvogels | F87: 10 | G87: 12 | H87: 60.36 | I87: InheemsReigers, ooievaars, kraanvogels
A88: 450 | B88: InheemsReigers, ooievaars, kraanvogels0013 | C88: 75.45 | D88: Inheems | E88: Reigers, ooievaars, kraanvogels | F88: 13 | G88: 15 | H88: 75.45 | I88: InheemsReigers, ooievaars, kraanvogels
A89: 451 | B89: InheemsReigers, ooievaars, kraanvogels0016 | C89: 85.51 | D89: Inheems | E89: Reigers, ooievaars, kraanvogels | F89: 16 | G89: 17 | H89: 85.51 | I89: InheemsReigers, ooievaars, kraanvogels
A90: 452 | B90: InheemsReigers, ooievaars, kraanvogels0018 | C90: 100.6 | D90: Inheems | E90: Reigers, ooievaars, kraanvogels | F90: 18 | G90: 20 | H90: 100.6 | I90: InheemsReigers, ooievaars, kraanvogels
A91: 516 | B91: InheemsReptielen0001 | C91: 9.1 | D91: Inheems | E91: Reptielen | F91: 1 | G91: 5 | H91: 9.1 | I91: InheemsReptielen
A92: 517 | B92: InheemsReptielen0006 | C92: 27.3 | D92: Inheems | E92: Reptielen | F92: 6 | G92: 15 | H92: 27.3 | I92: InheemsReptielen
A93: 518 | B93: InheemsReptielen0016 | C93: 63.7 | D93: Inheems | E93: Reptielen | F93: 16 | G93: 35 | H93: 63.7 | I93: InheemsReptielen
A94: 519 | B94: InheemsReptielen0036 | C94: 100.1 | D94: Inheems | E94: Reptielen | F94: 36 | G94: 55 | H94: 100.1 | I94: InheemsReptielen
A95: 520 | B95: InheemsReptielen0051 | C95: 136.5 | D95: Inheems | E95: Reptielen | F95: 51 | G95: 75 | H95: 136.5 | I95: InheemsReptielen
A96: 521 | B96: InheemsReptielen0076 | C96: 182 | D96: Inheems | E96: Reptielen | F96: 76 | G96: 100 | H96: 182 | I96: InheemsReptielen
A97: 467 | B97: InheemsRoofvogels (categorie A+B)0001 | C97: 6.22 | D97: Inheems | E97: Roofvogels (categorie A+B) | F97: 1 | G97: 2 | H97: 6.22 | I97: InheemsRoofvogels (categorie A+B)
A98: 468 | B98: InheemsRoofvogels (categorie A+B)0003 | C98: 15.55 | D98: Inheems | E98: Roofvogels (categorie A+B) | F98: 3 | G98: 5 | H98: 15.55 | I98: InheemsRoofvogels (categorie A+B)
A99: 469 | B99: InheemsRoofvogels (categorie A+B)0006 | C99: 27.99 | D99: Inheems | E99: Roofvogels (categorie A+B) | F99: 6 | G99: 9 | H99: 27.99 | I99: InheemsRoofvogels (categorie A+B)
A100: 470 | B100: InheemsRoofvogels (categorie A+B)0010 | C100: 37.32 | D100: Inheems | E100: Roofvogels (categorie A+B) | F100: 10 | G100: 12 | H100: 37.32 | I100: InheemsRoofvogels (categorie A+B)
A101: 471 | B101: InheemsRoofvogels (categorie A+B)0013 | C101: 46.65 | D101: Inheems | E101: Roofvogels (categorie A+B) | F101: 13 | G101: 15 | H101: 46.65 | I101: InheemsRoofvogels (categorie A+B)
A102: 472 | B102: InheemsRoofvogels (categorie C)0001 | C102: 12.6 | D102: Inheems | E102: Roofvogels (categorie C) | F102: 1 | G102: 3 | H102: 12.6 | I102: InheemsRoofvogels (categorie C)
A103: 473 | B103: InheemsRoofvogels (categorie C)0004 | C103: 25.2 | D103: Inheems | E103: Roofvogels (categorie C) | F103: 4 | G103: 6 | H103: 25.2 | I103: InheemsRoofvogels (categorie C)
A104: 474 | B104: InheemsRoofvogels (categorie C)0007 | C104: 37.8 | D104: Inheems | E104: Roofvogels (categorie C) | F104: 7 | G104: 9 | H104: 37.8 | I104: InheemsRoofvogels (categorie C)
A105: 475 | B105: InheemsRoofvogels (categorie C)0010 | C105: 50.4 | D105: Inheems | E105: Roofvogels (categorie C) | F105: 10 | G105: 12 | H105: 50.4 | I105: InheemsRoofvogels (categorie C)
A106: 476 | B106: InheemsRoofvogels (categorie C)0013 | C106: 63 | D106: Inheems | E106: Roofvogels (categorie C) | F106: 13 | G106: 15 | H106: 63 | I106: InheemsRoofvogels (categorie C)
A107: 477 | B107: InheemsRoofvogels (categorie D)0001 | C107: 14.4 | D107: Inheems | E107: Roofvogels (categorie D) | F107: 1 | G107: 3 | H107: 14.4 | I107: InheemsRoofvogels (categorie D)
A108: 478 | B108: InheemsRoofvogels (categorie D)0004 | C108: 28.8 | D108: Inheems | E108: Roofvogels (categorie D) | F108: 4 | G108: 6 | H108: 28.8 | I108: InheemsRoofvogels (categorie D)
A109: 479 | B109: InheemsRoofvogels (categorie D)0007 | C109: 43.2 | D109: Inheems | E109: Roofvogels (categorie D) | F109: 7 | G109: 9 | H109: 43.2 | I109: InheemsRoofvogels (categorie D)
A110: 480 | B110: InheemsRoofvogels (categorie D)0010 | C110: 57.6 | D110: Inheems | E110: Roofvogels (categorie D) | F110: 10 | G110: 12 | H110: 57.6 | I110: InheemsRoofvogels (categorie D)
A111: 481 | B111: InheemsRoofvogels (categorie D)0013 | C111: 72 | D111: Inheems | E111: Roofvogels (categorie D) | F111: 13 | G111: 15 | H111: 72 | I111: InheemsRoofvogels (categorie D)
A112: 482 | B112: InheemsRoofvogels (categorie E)0001 | C112: 15.6 | D112: Inheems | E112: Roofvogels (categorie E) | F112: 1 | G112: 3 | H112: 15.6 | I112: InheemsRoofvogels (categorie E)
A113: 483 | B113: InheemsRoofvogels (categorie E)0004 | C113: 31.2 | D113: Inheems | E113: Roofvogels (categorie E) | F113: 4 | G113: 6 | H113: 31.2 | I113: InheemsRoofvogels (categorie E)
A114: 484 | B114: InheemsRoofvogels (categorie E)0007 | C114: 46.8 | D114: Inheems | E114: Roofvogels (categorie E) | F114: 7 | G114: 9 | H114: 46.8 | I114: InheemsRoofvogels (categorie E)
A115: 485 | B115: InheemsRoofvogels (categorie E)0010 | C115: 62.4 | D115: Inheems | E115: Roofvogels (categorie E) | F115: 10 | G115: 12 | H115: 62.4 | I115: InheemsRoofvogels (categorie E)
A116: 486 | B116: InheemsRoofvogels (categorie E)0013 | C116: 78 | D116: Inheems | E116: Roofvogels (categorie E) | F116: 13 | G116: 15 | H116: 78 | I116: InheemsRoofvogels (categorie E)
A117: 487 | B117: InheemsRoofvogels (categorie F)0001 | C117: 18.9 | D117: Inheems | E117: Roofvogels (categorie F) | F117: 1 | G117: 3 | H117: 18.9 | I117: InheemsRoofvogels (categorie F)
A118: 488 | B118: InheemsRoofvogels (categorie F)0004 | C118: 37.8 | D118: Inheems | E118: Roofvogels (categorie F) | F118: 4 | G118: 6 | H118: 37.8 | I118: InheemsRoofvogels (categorie F)
A119: 489 | B119: InheemsRoofvogels (categorie F)0007 | C119: 56.7 | D119: Inheems | E119: Roofvogels (categorie F) | F119: 7 | G119: 9 | H119: 56.7 | I119: InheemsRoofvogels (categorie F)
A120: 490 | B120: InheemsRoofvogels (categorie F)0010 | C120: 75.6 | D120: Inheems | E120: Roofvogels (categorie F) | F120: 10 | G120: 12 | H120: 75.6 | I120: InheemsRoofvogels (categorie F)
A121: 491 | B121: InheemsRoofvogels (categorie F)0013 | C121: 94.5 | D121: Inheems | E121: Roofvogels (categorie F) | F121: 13 | G121: 15 | H121: 94.5 | I121: InheemsRoofvogels (categorie F)
A122: 428 | B122: InheemsWaad- en Weidevogels0001 | C122: 2.7 | D122: Inheems | E122: Waad- en Weidevogels | F122: 1 | G122: 3 | H122: 2.7 | I122: InheemsWaad- en Weidevogels
A123: 429 | B123: InheemsWaad- en Weidevogels0004 | C123: 9 | D123: Inheems | E123: Waad- en Weidevogels | F123: 4 | G123: 10 | H123: 9 | I123: InheemsWaad- en Weidevogels
A124: 430 | B124: InheemsWaad- en Weidevogels0011 | C124: 22.5 | D124: Inheems | E124: Waad- en Weidevogels | F124: 11 | G124: 25 | H124: 22.5 | I124: InheemsWaad- en Weidevogels
A125: 431 | B125: InheemsWaad- en Weidevogels0026 | C125: 49.5 | D125: Inheems | E125: Waad- en Weidevogels | F125: 26 | G125: 55 | H125: 49.5 | I125: InheemsWaad- en Weidevogels
A126: 432 | B126: InheemsWaad- en Weidevogels0056 | C126: 67.5 | D126: Inheems | E126: Waad- en Weidevogels | F126: 56 | G126: 75 | H126: 67.5 | I126: InheemsWaad- en Weidevogels
A127: 433 | B127: InheemsWaad- en Weidevogels0076 | C127: 90 | D127: Inheems | E127: Waad- en Weidevogels | F127: 76 | G127: 100 | H127: 90 | I127: InheemsWaad- en Weidevogels
A128: 376 | B128: InheemsZaadetende wildzang0001 | C128: 0.39 | D128: Inheems | E128: Zaadetende wildzang | F128: 1 | G128: 3 | H128: =G128*0.13 -> 0.39 | I128: InheemsZaadetende wildzang
A129: 377 | B129: InheemsZaadetende wildzang0004 | C129: 3.4 | D129: Inheems | E129: Zaadetende wildzang | F129: 4 | G129: 10 | H129: 3.4 | I129: InheemsZaadetende wildzang
A130: 378 | B130: =D130&E130&TEXT(F130,"0000") -> InheemsZaadetende wildzang0011 | C130: =H130 -> 8.5 | D130: Inheems | E130: Zaadetende wildzang | F130: 11 | G130: 25 | H130: 8.5 | I130: =D130&E130 -> InheemsZaadetende wildzang
A131: 379 | B131: InheemsZaadetende wildzang0026 | C131: 17 | D131: Inheems | E131: Zaadetende wildzang | F131: 26 | G131: 50 | H131: 17 | I131: InheemsZaadetende wildzang
A132: 380 | B132: InheemsZaadetende wildzang0051 | C132: 34 | D132: Inheems | E132: Zaadetende wildzang | F132: 51 | G132: 100 | H132: 34 | I132: InheemsZaadetende wildzang
A133: 381 | B133: InheemsZaadetende wildzang0101 | C133: 51 | D133: Inheems | E133: Zaadetende wildzang | F133: 101 | G133: 150 | H133: 51 | I133: InheemsZaadetende wildzang
A134: 382 | B134: InheemsZaadetende wildzang0151 | C134: 68 | D134: Inheems | E134: Zaadetende wildzang | F134: 151 | G134: 200 | H134: 68 | I134: InheemsZaadetende wildzang
A135: 383 | B135: InheemsZaadetende wildzang0201 | C135: 85 | D135: Inheems | E135: Zaadetende wildzang | F135: 201 | G135: 250 | H135: 85 | I135: InheemsZaadetende wildzang
A136: 384 | B136: InheemsZaadetende wildzang0251 | C136: 102 | D136: Inheems | E136: Zaadetende wildzang | F136: 251 | G136: 300 | H136: 102 | I136: InheemsZaadetende wildzang
A137: 385 | B137: InheemsZaadetende wildzang0301 | C137: 119 | D137: Inheems | E137: Zaadetende wildzang | F137: 301 | G137: 350 | H137: 119 | I137: InheemsZaadetende wildzang
A138: 386 | B138: InheemsZaadetende wildzang0351 | C138: 136 | D138: Inheems | E138: Zaadetende wildzang | F138: 351 | G138: 400 | H138: 136 | I138: InheemsZaadetende wildzang
A139: 387 | B139: InheemsZaadetende wildzang0401 | C139: 153 | D139: Inheems | E139: Zaadetende wildzang | F139: 401 | G139: 450 | H139: 153 | I139: InheemsZaadetende wildzang
A140: 388 | B140: InheemsZaadetende wildzang0451 | C140: 170 | D140: Inheems | E140: Zaadetende wildzang | F140: 451 | G140: 500 | H140: 170 | I140: InheemsZaadetende wildzang
A141: 434 | B141: InheemsZeevogels0001 | C141: 3 | D141: Inheems | E141: Zeevogels | F141: 1 | G141: 3 | H141: 3 | I141: InheemsZeevogels
A142: 453 | B142: InheemsZeevogels0001 | C142: 15.09 | D142: Inheems | E142: Zeevogels | F142: 1 | G142: 3 | H142: 15.09 | I142: InheemsZeevogels
A143: 435 | B143: InheemsZeevogels0004 | C143: 10 | D143: Inheems | E143: Zeevogels | F143: 4 | G143: 10 | H143: 10 | I143: InheemsZeevogels
A144: 454 | B144: InheemsZeevogels0004 | C144: 30.18 | D144: Inheems | E144: Zeevogels | F144: 4 | G144: 6 | H144: 30.18 | I144: InheemsZeevogels
A145: 455 | B145: InheemsZeevogels0007 | C145: 45.27 | D145: Inheems | E145: Zeevogels | F145: 7 | G145: 9 | H145: 45.27 | I145: InheemsZeevogels
A146: 456 | B146: InheemsZeevogels0010 | C146: 60.36 | D146: Inheems | E146: Zeevogels | F146: 10 | G146: 12 | H146: 60.36 | I146: InheemsZeevogels
A147: 436 | B147: InheemsZeevogels0011 | C147: 25 | D147: Inheems | E147: Zeevogels | F147: 11 | G147: 25 | H147: 25 | I147: InheemsZeevogels
A148: 457 | B148: InheemsZeevogels0013 | C148: 75.45 | D148: Inheems | E148: Zeevogels | F148: 13 | G148: 15 | H148: 75.45 | I148: InheemsZeevogels
A149: 458 | B149: InheemsZeevogels0016 | C149: 85.51 | D149: Inheems | E149: Zeevogels | F149: 16 | G149: 17 | H149: 85.51 | I149: InheemsZeevogels
A150: 459 | B150: InheemsZeevogels0018 | C150: 100.6 | D150: Inheems | E150: Zeevogels | F150: 18 | G150: 20 | H150: 100.6 | I150: InheemsZeevogels
A151: 437 | B151: InheemsZeevogels0026 | C151: 50 | D151: Inheems | E151: Zeevogels | F151: 26 | G151: 50 | H151: 50 | I151: InheemsZeevogels
A152: 438 | B152: InheemsZeevogels0051 | C152: 75 | D152: Inheems | E152: Zeevogels | F152: 51 | G152: 75 | H152: 75 | I152: InheemsZeevogels
A153: 439 | B153: InheemsZeevogels0076 | C153: 100 | D153: Inheems | E153: Zeevogels | F153: 76 | G153: 100 | H153: 100 | I153: InheemsZeevogels
A154: 504 | B154: InheemsZoogdieren - groot0001 | C154: 28.92 | D154: Inheems | E154: Zoogdieren - groot | F154: 1 | G154: 3 | H154: 28.92 | I154: InheemsZoogdieren - groot
A155: 505 | B155: InheemsZoogdieren - groot0004 | C155: 57.84 | D155: Inheems | E155: Zoogdieren - groot | F155: 4 | G155: 6 | H155: 57.84 | I155: InheemsZoogdieren - groot
A156: 506 | B156: InheemsZoogdieren - groot0007 | C156: 86.76 | D156: Inheems | E156: Zoogdieren - groot | F156: 7 | G156: 9 | H156: 86.76 | I156: InheemsZoogdieren - groot
A157: 507 | B157: InheemsZoogdieren - groot0010 | C157: 115.68 | D157: Inheems | E157: Zoogdieren - groot | F157: 10 | G157: 12 | H157: 115.68 | I157: InheemsZoogdieren - groot
A158: 508 | B158: InheemsZoogdieren - groot0013 | C158: 144.6 | D158: Inheems | E158: Zoogdieren - groot | F158: 13 | G158: 15 | H158: 144.6 | I158: InheemsZoogdieren - groot
A159: 509 | B159: InheemsZoogdieren - groot0016 | C159: 173.52 | D159: Inheems | E159: Zoogdieren - groot | F159: 16 | G159: 18 | H159: 173.52 | I159: InheemsZoogdieren - groot
A160: 492 | B160: InheemsZoogdieren - klein0001 | C160: 5.94 | D160: Inheems | E160: Zoogdieren - klein | F160: 1 | G160: 3 | H160: 5.94 | I160: InheemsZoogdieren - klein
A161: 493 | B161: InheemsZoogdieren - klein0004 | C161: 11.88 | D161: Inheems | E161: Zoogdieren - klein | F161: 4 | G161: 6 | H161: 11.88 | I161: InheemsZoogdieren - klein
A162: 494 | B162: InheemsZoogdieren - klein0007 | C162: 17.82 | D162: Inheems | E162: Zoogdieren - klein | F162: 7 | G162: 9 | H162: 17.82 | I162: InheemsZoogdieren - klein
A163: 495 | B163: InheemsZoogdieren - klein0010 | C163: 23.76 | D163: Inheems | E163: Zoogdieren - klein | F163: 10 | G163: 12 | H163: 23.76 | I163: InheemsZoogdieren - klein
A164: 496 | B164: InheemsZoogdieren - klein0013 | C164: 29.7 | D164: Inheems | E164: Zoogdieren - klein | F164: 13 | G164: 15 | H164: 29.7 | I164: InheemsZoogdieren - klein
A165: 497 | B165: InheemsZoogdieren - klein0016 | C165: 35.64 | D165: Inheems | E165: Zoogdieren - klein | F165: 16 | G165: 18 | H165: 35.64 | I165: InheemsZoogdieren - klein
A166: 498 | B166: InheemsZoogdieren - middel0001 | C166: 16.2 | D166: Inheems | E166: Zoogdieren - middel | F166: 1 | G166: 3 | H166: 16.2 | I166: InheemsZoogdieren - middel
A167: 499 | B167: InheemsZoogdieren - middel0004 | C167: 32.4 | D167: Inheems | E167: Zoogdieren - middel | F167: 4 | G167: 6 | H167: 32.4 | I167: InheemsZoogdieren - middel
A168: 500 | B168: InheemsZoogdieren - middel0007 | C168: 48.6 | D168: Inheems | E168: Zoogdieren - middel | F168: 7 | G168: 9 | H168: 48.6 | I168: InheemsZoogdieren - middel
A169: 501 | B169: InheemsZoogdieren - middel0010 | C169: 64.8 | D169: Inheems | E169: Zoogdieren - middel | F169: 10 | G169: 12 | H169: 64.8 | I169: InheemsZoogdieren - middel
A170: 502 | B170: InheemsZoogdieren - middel0013 | C170: 81 | D170: Inheems | E170: Zoogdieren - middel | F170: 13 | G170: 15 | H170: 81 | I170: InheemsZoogdieren - middel
A171: 503 | B171: InheemsZoogdieren - middel0016 | C171: 97.2 | D171: Inheems | E171: Zoogdieren - middel | F171: 16 | G171: 18 | H171: 97.2 | I171: InheemsZoogdieren - middel
A172: 224 | B172: UitheemsAmfibieen - groot0001 | C172: 2.56 | D172: Uitheems | E172: Amfibieen - groot | F172: 1 | G172: 2 | H172: 2.56 | I172: UitheemsAmfibieen - groot
A173: 225 | B173: UitheemsAmfibieen - groot0003 | C173: 6.4 | D173: Uitheems | E173: Amfibieen - groot | F173: 3 | G173: 5 | H173: 6.4 | I173: UitheemsAmfibieen - groot
A174: 226 | B174: UitheemsAmfibieen - groot0006 | C174: 11.52 | D174: Uitheems | E174: Amfibieen - groot | F174: 6 | G174: 9 | H174: 11.52 | I174: UitheemsAmfibieen - groot
A175: 227 | B175: UitheemsAmfibieen - groot0010 | C175: 19.2 | D175: Uitheems | E175: Amfibieen - groot | F175: 10 | G175: 15 | H175: 19.2 | I175: UitheemsAmfibieen - groot
A176: 228 | B176: UitheemsAmfibieen - groot0016 | C176: 25.6 | D176: Uitheems | E176: Amfibieen - groot | F176: 16 | G176: 20 | H176: 25.6 | I176: UitheemsAmfibieen - groot
A177: 229 | B177: UitheemsAmfibieen - groot0021 | C177: 38.4 | D177: Uitheems | E177: Amfibieen - groot | F177: 21 | G177: 30 | H177: 38.4 | I177: UitheemsAmfibieen - groot
A178: 230 | B178: UitheemsAmfibieen - groot0031 | C178: 51.2 | D178: Uitheems | E178: Amfibieen - groot | F178: 31 | G178: 40 | H178: 51.2 | I178: UitheemsAmfibieen - groot
A179: 231 | B179: UitheemsAmfibieen - groot0041 | C179: 64 | D179: Uitheems | E179: Amfibieen - groot | F179: 41 | G179: 50 | H179: 64 | I179: UitheemsAmfibieen - groot
A180: 232 | B180: UitheemsAmfibieen - groot0051 | C180: 76.8 | D180: Uitheems | E180: Amfibieen - groot | F180: 51 | G180: 60 | H180: 76.8 | I180: UitheemsAmfibieen - groot
A181: 233 | B181: UitheemsAmfibieen - groot0061 | C181: 89.6 | D181: Uitheems | E181: Amfibieen - groot | F181: 61 | G181: 70 | H181: 89.6 | I181: UitheemsAmfibieen - groot
A182: 234 | B182: UitheemsAmfibieen - groot0071 | C182: 102.4 | D182: Uitheems | E182: Amfibieen - groot | F182: 71 | G182: 80 | H182: 102.4 | I182: UitheemsAmfibieen - groot
A183: 235 | B183: UitheemsAmfibieen - groot0081 | C183: 115.2 | D183: Uitheems | E183: Amfibieen - groot | F183: 81 | G183: 90 | H183: 115.2 | I183: UitheemsAmfibieen - groot
A184: 236 | B184: UitheemsAmfibieen - groot0091 | C184: 128 | D184: Uitheems | E184: Amfibieen - groot | F184: 91 | G184: 100 | H184: 128 | I184: UitheemsAmfibieen - groot
A185: 237 | B185: UitheemsAmfibieen - groot0101 | C185: 153.6 | D185: Uitheems | E185: Amfibieen - groot | F185: 101 | G185: 120 | H185: 153.6 | I185: UitheemsAmfibieen - groot
A186: 196 | B186: UitheemsAmfibieen - klein0001 | C186: 3.15 | D186: Uitheems | E186: Amfibieen - klein | F186: 1 | G186: 5 | H186: 3.15 | I186: UitheemsAmfibieen - klein
A187: 197 | B187: UitheemsAmfibieen - klein0006 | C187: 9.45 | D187: Uitheems | E187: Amfibieen - klein | F187: 6 | G187: 15 | H187: 9.45 | I187: UitheemsAmfibieen - klein
A188: 198 | B188: UitheemsAmfibieen - klein0016 | C188: 22.05 | D188: Uitheems | E188: Amfibieen - klein | F188: 16 | G188: 35 | H188: 22.05 | I188: UitheemsAmfibieen - klein
A189: 199 | B189: UitheemsAmfibieen - klein0036 | C189: 34.65 | D189: Uitheems | E189: Amfibieen - klein | F189: 36 | G189: 55 | H189: 34.65 | I189: UitheemsAmfibieen - klein
A190: 200 | B190: UitheemsAmfibieen - klein0051 | C190: 47.25 | D190: Uitheems | E190: Amfibieen - klein | F190: 51 | G190: 75 | H190: 47.25 | I190: UitheemsAmfibieen - klein
A191: 201 | B191: UitheemsAmfibieen - klein0076 | C191: 63 | D191: Uitheems | E191: Amfibieen - klein | F191: 76 | G191: 100 | H191: 63 | I191: UitheemsAmfibieen - klein
A192: 202 | B192: UitheemsAmfibieen - klein0101 | C192: 94.5 | D192: Uitheems | E192: Amfibieen - klein | F192: 101 | G192: 150 | H192: 94.5 | I192: UitheemsAmfibieen - klein
A193: 203 | B193: UitheemsAmfibieen - klein0151 | C193: 126 | D193: Uitheems | E193: Amfibieen - klein | F193: 151 | G193: 200 | H193: 126 | I193: UitheemsAmfibieen - klein
A194: 204 | B194: =D194&E194&TEXT(F194,"0000") -> UitheemsAmfibieen - klein0201 | C194: =H194 -> 157.5 | D194: Uitheems | E194: Amfibieen - klein | F194: 201 | G194: 250 | H194: 157.5 | I194: =D194&E194 -> UitheemsAmfibieen - klein
A195: 205 | B195: UitheemsAmfibieen - klein0251 | C195: 189 | D195: Uitheems | E195: Amfibieen - klein | F195: 251 | G195: 300 | H195: 189 | I195: UitheemsAmfibieen - klein
A196: 206 | B196: UitheemsAmfibieen - klein0301 | C196: 220.5 | D196: Uitheems | E196: Amfibieen - klein | F196: 301 | G196: 350 | H196: 220.5 | I196: UitheemsAmfibieen - klein
A197: 207 | B197: UitheemsAmfibieen - klein0351 | C197: 252 | D197: Uitheems | E197: Amfibieen - klein | F197: 351 | G197: 400 | H197: 252 | I197: UitheemsAmfibieen - klein
A198: 208 | B198: UitheemsAmfibieen - klein0401 | C198: 283.5 | D198: Uitheems | E198: Amfibieen - klein | F198: 401 | G198: 450 | H198: 283.5 | I198: UitheemsAmfibieen - klein
A199: 209 | B199: UitheemsAmfibieen - klein0451 | C199: 315 | D199: Uitheems | E199: Amfibieen - klein | F199: 451 | G199: 500 | H199: 315 | I199: UitheemsAmfibieen - klein
A200: 210 | B200: UitheemsAmfibieen - middel0001 | C200: 4.1 | D200: Uitheems | E200: Amfibieen - middel | F200: 1 | G200: 5 | H200: 4.1 | I200: UitheemsAmfibieen - middel
... 347 more rows

Sheet Lijsten (hidden)
A1: keuze | B1: tarief | C1: tarief | G1: keuze | H1: keuze | I1: keuze | K1: keuze | M1: tarief | P1: Keuze | S1: Keuze
A2: Vervoermiddel | B2: Forfait heen/terug | C2: Bijkomende vergoeding/km | E2: Periode: | G2: Individuele dieren | H2: Inheems/Uitheems | I2: Uitheems diersoorten | K2: Inheemse diersoorten | M2: Individuele dieren | N2: Tarief per individueel dier | P2: Diersoort | Q2: Identificeren | S2: Geslacht Kat
A3: Auto/bestelwagen | B3: 40 | C3: 0.8 | E3: Januari - Maart | G3: Hond | H3: Inheems | I3: Eenden en hoenderen | K3: Eenden en hoenderen | M3: (Hangbuik)varken | N3: 10 | P3: Hond | Q3: 6 | R3: 1 | S3: Kater
A4: Vrachtwagen/trailer | B4: 80 | C4: 1.2 | E4: April - Juni | G4: Kat | H4: Uitheems | I4: Zoogdieren - klein | K4: Zoogdieren - klein | M4: Ezel | N4: 10 | P4: Kat | Q4: 6 | R4: 2 | S4: Kattin
E5: Juli - September | G5: Paard | I5: Uitheemse vogels - klein | K5: Amfibieën | M5: Fret | N5: 5 | P5: Kleine Herkauwer | Q5: 2.5 | R5: 3
E6: Oktober - December | G6: Ezel | I6: Ganzen en zwanen | K6: Duiven | M6: Geit | N6: 8 | P6: Paard/Pony/Ezel | Q6: 6 | R6: 4
A7: Afstanddrempel | B7: 50 | G7: Fret | I7: Geleedpotigen | K7: Fazant & Wilde Eend | M7: Hond | N7: 10
G8: Geit | I8: Grote herbivoren | K8: Ganzen en zwanen | M8: Kat | N8: 10 | Q8: Registreren | S8: Keuze
A9: tab dierenarts vanaf | B9: 2023-06-01 | C9: Tab Dierenarts pas invullen vanaf datum IBN | D9: =C9&TEXT(B9,"dd/mm/jjjj") -> Tab Dierenarts pas invullen vanaf datum IBN 01/06/2023 | G9: (Hangbuik)varken | I9: Grote katachtigen | K9: Insectenetende wildzang | M9: Konijn | N9: 3 | P9: Hond | Q9: 10.46 | S9: janee
A10: factuurdatum vanaf | B10: 2022-01-01 | C10: Factuurdatum vanaf | D10: =C10&TEXT(B10,"dd/mm/jjjj") -> Factuurdatum vanaf 01/01/2022 | G10: Konijn | I10: Hagedissen | K10: Kraaiachtigen | M10: Paard | N10: 10 | P10: Kat | Q10: 2.9 | S10: ja
G11: Pony | I11: Kleine/Middel katachtigen | K11: Meeuwachtigen | M11: Pony | N11: 10 | P11: Kleine Herkauwer | Q11: 0 | S11: nee
A12: dwz2023 | G12: Rund | I12: Koraal | K12: Reigers, ooievaars, kraanvogels | M12: Rund | N12: 10 | P12: Paard/Pony/Ezel | Q12: 49.58
G13: Schaap | I13: Krokodillen < 1 m | K13: Reptielen | M13: Schaap | N13: 8
A14: Diergeneeskundig verslag: 35,00 euro, te vermeerderen met 5 euro per schijf van 10 dieren dwz | I14: Krokodillen > 1 m | K14: Roofvogels (categorie A+B)
A15: 1-10 dieren: 35 euro | I15: Landschildpadden | K15: Roofvogels (categorie C) | Q15: Paspoort
A16: 11-20 dieren: 40 euro | I16: Papegaaien | K16: Roofvogels (categorie D) | P16: Kat | Q16: 0
A17: 21-30 dieren: 45 euro | I17: Primaten groot | K17: Roofvogels (categorie E) | P17: Hond | Q17: 1
I18: Primaten klein | K18: Roofvogels (categorie F) | P18: Kleine Herkauwer | Q18: 0
A19: 1 | B19: 5 | C19: =A19/10 -> 0.1 | D19: =30+ROUNDUP(A19/10,0)*5 -> 35 | I19: Primaten middel | K19: Waad- en Weidevogels | P19: Paard/Pony/Ezel | Q19: 26.15
A20: 2 | B20: 5 | C20: =A20/10 -> 0.2 | D20: =30+ROUNDUP(A20/10,0)*5 -> 35 | I20: Primaten zeer groot | K20: Zaadetende wildzang
A21: 3 | B21: 5 | C21: 0.3 | D21: 35 | I21: Roofvogels (categorie A+B) | K21: Zeevogels
A22: 4 | B22: 5 | C22: 0.4 | D22: 35 | I22: Roofvogels (categorie C) | K22: Zoogdieren - groot | Q22: Vaccinatie
A23: 5 | B23: 5 | C23: 0.5 | D23: 35 | I23: Roofvogels (categorie D) | K23: Zoogdieren - middel | P23: Hond | Q23: 40
A24: 6 | B24: 5 | C24: 0.6 | D24: 35 | I24: Roofvogels (categorie E) | P24: Kat | Q24: 40
A25: 7 | B25: 5 | C25: 0.7 | D25: 35 | I25: Roofvogels (categorie F) | P25: Kleine Herkauwer | Q25: 0
A26: 8 | B26: 5 | C26: 0.8 | D26: 35 | I26: Slangen < 1m | P26: Paard/Pony/Ezel | Q26: 0
A27: 9 | B27: 5 | C27: 0.9 | D27: 35 | I27: Slangen > 1m
A28: 10 | B28: 5 | C28: 1 | D28: 35 | I28: Uitheemse amfibieën - Groot
A29: 11 | B29: 10 | C29: =A29/10 -> 1.1 | D29: 40 | I29: Uitheemse amfibieën - klein | Q29: Sterilisatie/castratie kattin
A30: 12 | B30: 10 | D30: 40 | I30: Uitheemse vogels - groot | P30: Kater | Q30: 30
A31: 13 | B31: 10 | D31: 40 | I31: Uitheemse vogels - middel | P31: Kattin | Q31: 70
A32: 14 | B32: 10 | D32: 40 | I32: Vissen > 200 gram
A33: 15 | B33: 10 | D33: 40 | I33: Vissen 0-100 gram
A34: 16 | B34: 10 | D34: 40 | I34: Vissen 100-200 gram
A35: 17 | B35: 10 | D35: 40 | I35: Waterschildpadden
A36: 18 | B36: 10 | D36: 40 | I36: Zoogdieren - groot
A37: 19 | B37: 10 | D37: 40 | I37: Zoogdieren - middel
A38: 20 | B38: 10 | D38: 40
A39: 21 | B39: 15 | D39: 45
A40: 22 | B40: 15 | D40: 45
A41: 23 | B41: 15 | D41: 45
